﻿Directorate,Service,Division,Responsible Unit,Expense Type,Payment Date,Trans No,Net Amount,Supplier Name
Adults Services,Public Health,Smoking and Tobacco,Public Health Team - 2,Third Party Payments - Other Establishments,16/12/2015,3559659,"-334,849.36",Chelsea and Westmeinster Hospital NHS Foundation Trust
Adults Services,Public Health,Smoking and Tobacco,Public Health Team - 2,Third Party Payments - Other Establishments,16/12/2015,3515070,"-89,855.06",Chelsea and Westmeinster Hospital NHS Foundation Trust
Adults Services,Public Health,Smoking and Tobacco,Public Health Team - 2,Third Party Payments - Other Establishments,16/12/2015,3559719,"-87,843.25",Chelsea and Westmeinster Hospital NHS Foundation Trust
Adults Services,Public Health,Smoking and Tobacco,Public Health Team - 2,Third Party Payments - Other Establishments,16/12/2015,3559736,"-59,235.90",Chelsea and Westmeinster Hospital NHS Foundation Trust
Children's Services,Education Services,Other Strategic Functions,High Needs Other Boroughs,Third Party Payments - Payments to Schools,23/12/2015,3468170,"-39,620.00",Wandsworth Council
Children's Services,Education Services,Other Strategic Functions,Special Education Needs DSG,Independent Schools - Payment Of Fees,23/12/2015,3563224,"-18,166.67",Transitional Care LTD
Development & Renewal,General Fund/Council Fund,Homelessness,Hmlss Fams-Bed and Breakfast,Third Party Payments - One Room,21/12/2015,3559794,"-13,288.33",PARK HOTEL
Development & Renewal,General Fund/Council Fund,Homelessness,Hmlss Fams-Bed and Breakfast,Third Party Payments - One Room,21/12/2015,3559792,"-11,041.67",PARK HOTEL
Resource Services,No Service Specified,No Division Specified,Balance Sheet,HMRC Creditor - SMP Claimed,11/12/2015,3566457,"-8,118.54",H M Revenue & Customs Only
Children's Services,Education Services,Other Strategic Functions,Special Education Needs DSG,Independent Schools - Payment Of Fees,23/12/2015,3534210,"-7,933.34",Transitional Care LTD
"Directorate of Law, Probity and Governance",Corporate & Democratic Core,Democratic Representation & Management,One Tower Hamlets,Third Party Payments - Voluntary Associations,21/12/2015,3570196,"-7,840.00",URBAN INCLUSION COMMUNITY
Adults Services,Adult Social Care,Older People (Aged 65 or over) including Older Mental Ill,Learning Dis Commissioning,Client Contributions for Social Care - Residential Care,23/12/2015,3571023,"-7,629.32",ROSELOCK LTD
Development & Renewal,General Fund/Council Fund,Homelessness,Hmlss Fams-Bed and Breakfast,Third Party Payments - One Room,21/12/2015,3559793,"-7,540.00",PARK HOTEL
Adults Services,Adult Social Care,Older People (Aged 65 or over) including Older Mental Ill,Older People Commissioning,Social Care - Nursing Care,23/12/2015,3576193,"-7,057.14",LIFE STYLE CARE (2011) PLC
Adults Services,Adult Social Care,Older People (Aged 65 or over) including Older Mental Ill,Older People Commissioning,Social Care - Residential Care,23/12/2015,3576192,"-6,800.00",GATEWAY HOUSING ASSOCIATION
Adults Services,Adult Social Care,Older People (Aged 65 or over) including Older Mental Ill,Older People Commissioning,Social Care - Nursing Care,18/12/2015,3567735,"-5,643.00",SANCTUARY CARE LTD
Adults Services,Adult Social Care,Older People (Aged 65 or over) including Older Mental Ill,Older People Commissioning,Social Care - Residential Care,18/12/2015,3573409,"-4,960.00",GATEWAY HOUSING ASSOCIATION
Children's Services,Children's Social Care,Children Looked After,S23 Fam Pl P&V-F/Care,Childrens Act Section 23 - Placement Fee,23/12/2015,3574053,"-4,708.00",Greater London Fostering LTD
Adults Services,Public Health,Smoking and Tobacco,Public Health Team - 2,Third Party Payments - Voluntary Associations,11/12/2015,3559997,"-3,330.00",Positive East
Children's Services,Children's Social Care,Children Looked After,LCS/Allowances-Accom,Leaving Care Financial Assistance - Supp Accom/Hous Rents,18/12/2015,3560050,"-2,825.69",Newhaven 16 Plus
Development & Renewal,General Fund/Council Fund,Homelessness,Hmlss Fams-Priv Lic Accom,Third Party Payments - Two Rooms,02/12/2015,3563214,"-2,672.21",elliot leigh property management ltd
Children's Services,Children's Social Care,Children Looked After,Leaving Care-UASC,Leaving Care Financial Assistance - Supp Accom/Hous Rents,18/12/2015,3546173,"-2,400.00",Pangea Support Services
Adults Services,Adult Social Care,Older People (Aged 65 or over) including Older Mental Ill,Older People Commissioning,Social Care - Homecare,23/12/2015,3576025,"-2,389.84",Mantra Recruitment
Children's Services,No Service Specified,No Division Specified,Childrens Services IT Trading,Services - Professional Fees - Consultants Fees,18/12/2015,3563385,"-1,999.90",TTS GROUP LTD
Children's Services,No Service Specified,No Division Specified,Childrens Services IT Trading,Services - Professional Fees - Consultants Fees,18/12/2015,3563387,"-1,999.90",TTS GROUP LTD
Adults Services,Adult Social Care,Older People (Aged 65 or over) including Older Mental Ill,Older People Commissioning,Social Care - Residential Care,18/12/2015,3573286,"-1,766.86",ANCHOR TRUST HOMES ACCOUNT
Adults Services,Adult Social Care,Older People (Aged 65 or over) including Older Mental Ill,Mental Health Commissioning,Social Care - Direct Payments,16/12/2015,3571035,"-1,542.74",DAVID HOWARD LTD CLIENT ACCOUNT
Adults Services,Adult Social Care,Older People (Aged 65 or over) including Older Mental Ill,Older People Commissioning,Social Care - Residential Care,18/12/2015,3573247,"-1,490.71",ROBERTA HOUSE & ELIZABETH HOUSE
Adults Services,Adult Social Care,Older People (Aged 65 or over) including Older Mental Ill,Older People Commissioning,Social Care - Residential Care,21/12/2015,3556079,"-1,414.97",AMBITION 24 HOURS
Adults Services,Adult Social Care,Older People (Aged 65 or over) including Older Mental Ill,Older People Commissioning,Social Care - Residential Care,09/12/2015,3558384,"-1,330.08",Forest Drive Residential Home Ltd
Adults Services,Adult Social Care,Older People (Aged 65 or over) including Older Mental Ill,Older People Commissioning,Client Contributions for Social Care - Nursing Care,18/12/2015,3573273,"-1,117.72",SANCTUARY CARE LTD
Children's Services,No Service Specified,No Division Specified,Schools Catering,Kitchen Supplies - Food and Beverages,11/12/2015,3569290,"-1,100.42",Thomas Ridley & Son Ltd
Adults Services,Adult Social Care,Older People (Aged 65 or over) including Older Mental Ill,Older People Commissioning,Social Care - Residential Care,23/12/2015,3576018,"-1,100.36",PARK VIEW CARE HOME
Adults Services,Adult Social Care,Older People (Aged 65 or over) including Older Mental Ill,Mental Health Commissioning,Social Care - Residential Care,18/12/2015,3573444,"-1,097.40",SHANTI HEALTHCARE LTD
Adults Services,Adult Social Care,Older People (Aged 65 or over) including Older Mental Ill,Older People Commissioning,Social Care - Residential Care,18/12/2015,3573360,"-1,096.95",BUPA CARE HOMES LTD
Adults Services,Adult Social Care,Older People (Aged 65 or over) including Older Mental Ill,Older People Commissioning,Client Contributions for Social Care - Nursing Care,18/12/2015,3573307,"-1,093.90",SANCTUARY CARE LTD
Adults Services,Adult Social Care,Older People (Aged 65 or over) including Older Mental Ill,Older People Commissioning,Social Care - Residential Care,18/12/2015,3573231,"-1,088.77",ALTON HOUSE
Adults Services,Adult Social Care,Older People (Aged 65 or over) including Older Mental Ill,Mental Health Commissioning,Social Care - Residential Care,18/12/2015,3573445,"-1,087.53",SHANTI HEALTHCARE LTD
Adults Services,Adult Social Care,Older People (Aged 65 or over) including Older Mental Ill,Older People Commissioning,Client Contributions for Social Care - Nursing Care,18/12/2015,3573287,"-1,083.36",SANCTUARY CARE LTD
Adults Services,Adult Social Care,Older People (Aged 65 or over) including Older Mental Ill,Older People Commissioning,Social Care - Nursing Care,18/12/2015,3571268,"-1,081.60",SANCTUARY CARE LTD
Adults Services,Adult Social Care,Older People (Aged 65 or over) including Older Mental Ill,Older People Commissioning,Social Care - Residential Care,02/12/2015,3561056,"-1,064.88",PARK VIEW CARE HOME
Resource Services,No Service Specified,No Division Specified,Balance Sheet,HMRC Creditor - SMP Claimed,11/12/2015,3566456,"-1,027.32",H M Revenue & Customs Only
Adults Services,Adult Social Care,Older People (Aged 65 or over) including Older Mental Ill,Physical Dis Commissioning,Social Care - Direct Payments,16/12/2015,3571026,-989.38,DAVID HOWARD LTD CLIENT ACCOUNT
Resource Services,Corporate & Democratic Core,Corporate Management,Payroll,Administration Charges - Administration Charges,09/12/2015,3566765,-980.00,Unison
Children's Services,Children's Social Care,Children Looked After,S23 Fam Pl P&V-F/Care,Childrens Act Section 23 - Placement Fee,16/12/2015,3570328,-962.00,Link Fostering Agency
Adults Services,Adult Social Care,Older People (Aged 65 or over) including Older Mental Ill,Older People Commissioning,Social Care - Residential Care,18/12/2015,3573236,-959.05,QUEENSCOURT NURSING HOME
Adults Services,Adult Social Care,Older People (Aged 65 or over) including Older Mental Ill,Older People Commissioning,Social Care - Residential Care,23/12/2015,3576394,-942.66,Scimitar Care Hotels PLC
Adults Services,Adult Social Care,Older People (Aged 65 or over) including Older Mental Ill,Older People Commissioning,Social Care - Residential Care,18/12/2015,3573283,-939.30,ANCHOR TRUST HOMES ACCOUNT
Adults Services,No Service Specified,No Division Specified,Capital-Minor Works (SC),Building Works - Main Works,18/12/2015,3570058,-934.03,SYSTEMAX EUROPE LIMITED (MISCO)
Adults Services,Adult Social Care,Older People (Aged 65 or over) including Older Mental Ill,Older People Commissioning,Client Contributions for Social Care - Nursing Care,18/12/2015,3573268,-914.72,SANCTUARY CARE LTD
Adults Services,Adult Social Care,Older People (Aged 65 or over) including Older Mental Ill,Older People Commissioning,Social Care - Residential Care,02/12/2015,3562742,-912.26,Scimitar Care Hotels PLC
Adults Services,Adult Social Care,Older People (Aged 65 or over) including Older Mental Ill,Older People Commissioning,Client Contributions for Social Care - Nursing Care,18/12/2015,3573295,-896.78,HORNCHURCH VCT LTD
Adults Services,Adult Social Care,Older People (Aged 65 or over) including Older Mental Ill,Older People Commissioning,Social Care - Residential Care,18/12/2015,3573245,-886.12,ANCHOR TRUST HOMES ACCOUNT
Adults Services,Adult Social Care,Older People (Aged 65 or over) including Older Mental Ill,Older People Commissioning,Client Contributions for Social Care - Nursing Care,18/12/2015,3573326,-846.78,SANCTUARY CARE LTD
Adults Services,Adult Social Care,Older People (Aged 65 or over) including Older Mental Ill,Older People Commissioning,Social Care - Residential Care,18/12/2015,3573357,-845.99,ANCHOR TRUST HOMES ACCOUNT
Adults Services,Adult Social Care,Older People (Aged 65 or over) including Older Mental Ill,Older People Commissioning,Social Care - Direct Payments,04/12/2015,3565072,-820.74,DAVID HOWARD LTD CLIENT ACCOUNT
Adults Services,Adult Social Care,Older People (Aged 65 or over) including Older Mental Ill,Older People Commissioning,Social Care - Residential Care,18/12/2015,3573366,-820.71,CARE FIRST CARE HOMES LTD
Adults Services,Adult Social Care,Older People (Aged 65 or over) including Older Mental Ill,Older People Commissioning,Social Care - Residential Care,18/12/2015,3573284,-809.27,ANCHOR TRUST HOMES ACCOUNT
Adults Services,Adult Social Care,Older People (Aged 65 or over) including Older Mental Ill,Older People Commissioning,Client Contributions for Social Care - Nursing Care,18/12/2015,3573267,-783.85,BARCHESTER HEALTHCARE LTD
Adults Services,Adult Social Care,Older People (Aged 65 or over) including Older Mental Ill,Older People Commissioning,Client Contributions for Social Care - Nursing Care,18/12/2015,3573237,-758.48,SANCTUARY CARE LTD
Adults Services,Adult Social Care,Older People (Aged 65 or over) including Older Mental Ill,Older People Commissioning,Social Care - Residential Care,18/12/2015,3573288,-757.59,SUMMERDALE COURT CARE CENTRE
Children's Services,Children's Social Care,Children Looked After,LCS/Allowances-Accom,Leaving Care Financial Assistance - Supp Accom/Hous Rents,18/12/2015,3560073,-727.20,Newhaven 16 Plus
Adults Services,Adult Social Care,Older People (Aged 65 or over) including Older Mental Ill,Older People Commissioning,Social Care - Residential Care,23/12/2015,3576213,-723.85,ASTON GRANGE NURSING HOME
Adults Services,Adult Social Care,Older People (Aged 65 or over) including Older Mental Ill,Older People Commissioning,Social Care - Residential Care,23/12/2015,3576404,-706.44,ETON HOUSE
Adults Services,Adult Social Care,Older People (Aged 65 or over) including Older Mental Ill,Older People Commissioning,Social Care - Residential Care,02/12/2015,3562725,-700.50,ASTON GRANGE NURSING HOME
Adults Services,Adult Social Care,Older People (Aged 65 or over) including Older Mental Ill,Learning Dis Commissioning,Client Contributions for Social Care - Residential Care,16/12/2015,3570954,-686.12,FUTURE LIFE LTD
Adults Services,Adult Social Care,Older People (Aged 65 or over) including Older Mental Ill,Older People Commissioning,Social Care - Residential Care,02/12/2015,3562755,-683.66,ETON HOUSE
Children's Services,Children's Social Care,Children Looked After,Leaving Care-UASC,Leaving Care Financial Assistance - Supp Accom/Hous Rents,18/12/2015,3546121,-659.68,Pangea Support Services
Adults Services,Adult Social Care,Older People (Aged 65 or over) including Older Mental Ill,Older People Commissioning,Client Contributions for Social Care - Nursing Care,18/12/2015,3573248,-655.25,LIFE STYLE CARE (2011) PLC
Adults Services,Adult Social Care,Older People (Aged 65 or over) including Older Mental Ill,Older People Commissioning,Social Care - Residential Care,02/12/2015,3562800,-642.22,SANCTUARY CARE LTD
Adults Services,Adult Social Care,Older People (Aged 65 or over) including Older Mental Ill,Older People Commissioning,Social Care - Residential Care,18/12/2015,3573253,-629.87,GLENSIDE RESIDENTIAL HOME
Adults Services,Adult Social Care,Older People (Aged 65 or over) including Older Mental Ill,Older People Commissioning,Client Contributions for Social Care - Nursing Care,18/12/2015,3573299,-611.80,SANCTUARY CARE LTD
Adults Services,Adult Social Care,Older People (Aged 65 or over) including Older Mental Ill,Physical Dis Commissioning,Social Care - Residential Care,18/12/2015,3573209,-601.31,MISSION CARE
Adults Services,Adult Social Care,Older People (Aged 65 or over) including Older Mental Ill,Learning Dis Commissioning,Client Contributions for Social Care - Residential Care,16/12/2015,3570914,-590.81,STALLCOMBE HOUSE
Adults Services,Adult Social Care,Older People (Aged 65 or over) including Older Mental Ill,Older People Commissioning,Social Care - Residential Care,18/12/2015,3573276,-579.87,HANNAH LEVY HOUSE TRUST
Children's Services,No Service Specified,No Division Specified,Schools Catering,Kitchen Supplies - Food and Beverages,04/12/2015,3565018,-579.00,William White Meats Ltd
Adults Services,Adult Social Care,Older People (Aged 65 or over) including Older Mental Ill,Older People Commissioning,Social Care - Residential Care,07/12/2015,3561110,-574.03,MILLARD HOUSE RESIDENTAIL CARE HOME
Adults Services,Adult Social Care,Older People (Aged 65 or over) including Older Mental Ill,Older People Commissioning,Social Care - Residential Care,18/12/2015,3573310,-573.10,East Thames Group Ltd
Adults Services,Adult Social Care,Older People (Aged 65 or over) including Older Mental Ill,Older People Commissioning,Social Care - Residential Care,23/12/2015,3576403,-569.95,SANCTUARY CARE LTD
Adults Services,Adult Social Care,Older People (Aged 65 or over) including Older Mental Ill,Older People Commissioning,Social Care - Residential Care,18/12/2015,3573220,-568.28,THE ISLAND RESIDENTIAL HOME LTD
Adults Services,Adult Social Care,Older People (Aged 65 or over) including Older Mental Ill,Older People Commissioning,Social Care - Residential Care,23/12/2015,3576185,-568.18,North Park Care Home (Barchester Healthcare)
Adults Services,Adult Social Care,Older People (Aged 65 or over) including Older Mental Ill,Mental Health Commissioning,Social Care - Residential Care,18/12/2015,3573418,-568.14,ASHLEY HEALTHCARE LTD
Adults Services,Adult Social Care,Older People (Aged 65 or over) including Older Mental Ill,Older People Commissioning,Social Care - Residential Care,18/12/2015,3573362,-566.28,ST MICHAELS LODGE T/A SHAKTHI HEALTHCARE LIMITED
Adults Services,Adult Social Care,Older People (Aged 65 or over) including Older Mental Ill,Older People Commissioning,Social Care - Residential Care,23/12/2015,3576527,-565.28,RUNWOOD HOMES PLC
Adults Services,Adult Social Care,Older People (Aged 65 or over) including Older Mental Ill,Older People Commissioning,Social Care - Residential Care,18/12/2015,3573275,-564.37,Redacted Section 40 FOI Act
Adults Services,Adult Social Care,Older People (Aged 65 or over) including Older Mental Ill,Learning Dis Commissioning,Client Contributions for Social Care - Residential Care,16/12/2015,3570904,-561.32,OAKDOWN HOUSE LTD
Adults Services,Adult Social Care,Older People (Aged 65 or over) including Older Mental Ill,Learning Dis Commissioning,Client Contributions for Social Care - Residential Care,16/12/2015,3570919,-559.33,Norwood Ravenswood Services LTD
Adults Services,Adult Social Care,Older People (Aged 65 or over) including Older Mental Ill,Learning Dis Commissioning,Client Contributions for Social Care - Residential Care,16/12/2015,3570923,-559.33,THROWLEIGH LODGE
Adults Services,Adult Social Care,Older People (Aged 65 or over) including Older Mental Ill,Learning Dis Commissioning,Client Contributions for Social Care - Residential Care,16/12/2015,3570924,-559.33,ASHGATE HOUSE LTD
Adults Services,Adult Social Care,Older People (Aged 65 or over) including Older Mental Ill,Learning Dis Commissioning,Client Contributions for Social Care - Residential Care,16/12/2015,3570928,-559.33,FAMILY CARE HOMES LTD
Adults Services,Adult Social Care,Older People (Aged 65 or over) including Older Mental Ill,Learning Dis Commissioning,Client Contributions for Social Care - Residential Care,16/12/2015,3570931,-559.33,CRAEGMOOR HEALTHCARE
Adults Services,Adult Social Care,Older People (Aged 65 or over) including Older Mental Ill,Learning Dis Commissioning,Social Care - Residential Care,16/12/2015,3570968,-559.33,ROSEACRE RESIDENTIAL HOME
Adults Services,Adult Social Care,Older People (Aged 65 or over) including Older Mental Ill,Learning Dis Commissioning,Client Contributions for Social Care - Residential Care,16/12/2015,3570970,-559.33,HEREWARD CARE SERVICES
Adults Services,Adult Social Care,Older People (Aged 65 or over) including Older Mental Ill,Learning Dis Commissioning,Client Contributions for Social Care - Residential Care,16/12/2015,3570972,-559.33,SOLOR CARE GROUP LTD
Adults Services,Adult Social Care,Older People (Aged 65 or over) including Older Mental Ill,Learning Dis Commissioning,Client Contributions for Social Care - Residential Care,16/12/2015,3570973,-559.33,TIMALA HEALTH CARE LTD
Adults Services,Adult Social Care,Older People (Aged 65 or over) including Older Mental Ill,Learning Dis Commissioning,Client Contributions for Social Care - Residential Care,16/12/2015,3570976,-559.33,ELEANOR NURSING CARE LTD
Adults Services,Adult Social Care,Older People (Aged 65 or over) including Older Mental Ill,Learning Dis Commissioning,Client Contributions for Social Care - Residential Care,16/12/2015,3571007,-559.33,SAHARA HOMES LIMITED
Adults Services,Adult Social Care,Older People (Aged 65 or over) including Older Mental Ill,Physical Dis Commissioning,Social Care - Residential Care,18/12/2015,3573186,-559.33,ACTION ON HEARING LOSS
Adults Services,Adult Social Care,Older People (Aged 65 or over) including Older Mental Ill,Physical Dis Commissioning,Social Care - Nursing Care,18/12/2015,3573196,-559.33,BUPA CARE HOMES
Adults Services,Adult Social Care,Older People (Aged 65 or over) including Older Mental Ill,Physical Dis Commissioning,Social Care - Nursing Care,18/12/2015,3573197,-559.33,LEONARD CHESHIRE FOUNDATION
Adults Services,Adult Social Care,Older People (Aged 65 or over) including Older Mental Ill,Physical Dis Commissioning,Social Care - Residential Care,18/12/2015,3573212,-559.33,ROBERTA HOUSE & ELIZABETH HOUSE
Adults Services,Adult Social Care,Older People (Aged 65 or over) including Older Mental Ill,Older People Commissioning,Social Care - Residential Care,18/12/2015,3573221,-559.33,R&G SPARKES LTD
Adults Services,Adult Social Care,Older People (Aged 65 or over) including Older Mental Ill,Older People Commissioning,Social Care - Residential Care,18/12/2015,3573223,-559.33,ROYAL ALFRED SEAFARERS SOCIETY
Adults Services,Adult Social Care,Older People (Aged 65 or over) including Older Mental Ill,Older People Commissioning,Social Care - Residential Care,18/12/2015,3573225,-559.33,CEDAR LODGE CARE HOME
Adults Services,Adult Social Care,Older People (Aged 65 or over) including Older Mental Ill,Older People Commissioning,Social Care - Residential Care,18/12/2015,3573228,-559.33,Norwood Ravenswood Services LTD
Adults Services,Adult Social Care,Older People (Aged 65 or over) including Older Mental Ill,Older People Commissioning,Social Care - Residential Care,18/12/2015,3573229,-559.33,THE LODGE
Adults Services,Adult Social Care,Older People (Aged 65 or over) including Older Mental Ill,Older People Commissioning,Social Care - Residential Care,18/12/2015,3573254,-559.33,NIGHTINGALE HOUSE
Adults Services,Adult Social Care,Older People (Aged 65 or over) including Older Mental Ill,Older People Commissioning,Social Care - Residential Care,18/12/2015,3573264,-559.33,ANCHOR TRUST HOMES ACCOUNT
Adults Services,Adult Social Care,Older People (Aged 65 or over) including Older Mental Ill,Older People Commissioning,Client Contributions for Social Care - Nursing Care,18/12/2015,3573272,-559.33,TREES PARK (EAST HAM) LIMITED
Adults Services,Adult Social Care,Older People (Aged 65 or over) including Older Mental Ill,Older People Commissioning,Social Care - Residential Care,18/12/2015,3573281,-559.33,ANCHOR TRUST HOMES ACCOUNT
Adults Services,Adult Social Care,Older People (Aged 65 or over) including Older Mental Ill,Older People Commissioning,Social Care - Residential Care,18/12/2015,3573282,-559.33,LIFE STYLE CARE (2011) PLC
Adults Services,Adult Social Care,Older People (Aged 65 or over) including Older Mental Ill,Older People Commissioning,Client Contributions for Social Care - Nursing Care,18/12/2015,3573289,-559.33,SANCTUARY CARE LTD
Adults Services,Adult Social Care,Older People (Aged 65 or over) including Older Mental Ill,Older People Commissioning,Client Contributions for Social Care - Nursing Care,18/12/2015,3573296,-559.33,SANCTUARY CARE LTD
Adults Services,Adult Social Care,Older People (Aged 65 or over) including Older Mental Ill,Older People Commissioning,Social Care - Residential Care,18/12/2015,3573301,-559.33,LITTLEDENE HOUSE
Adults Services,Adult Social Care,Older People (Aged 65 or over) including Older Mental Ill,Older People Commissioning,Client Contributions for Social Care - Nursing Care,18/12/2015,3573371,-559.33,SANCTUARY CARE LTD
Adults Services,Adult Social Care,Older People (Aged 65 or over) including Older Mental Ill,Older People Commissioning,Social Care - Residential Care,18/12/2015,3573390,-559.33,ANCHOR TRUST HOMES ACCOUNT
Adults Services,Adult Social Care,Older People (Aged 65 or over) including Older Mental Ill,Older People Commissioning,Social Care - Residential Care,18/12/2015,3573408,-559.33,GATEWAY HOUSING ASSOCIATION
Adults Services,Adult Social Care,Older People (Aged 65 or over) including Older Mental Ill,Mental Health Commissioning,Social Care - Residential Care,18/12/2015,3573436,-559.33,ST MICHAELS LODGE T/A SHAKTHI HEALTHCARE LIMITED
Adults Services,Adult Social Care,Older People (Aged 65 or over) including Older Mental Ill,Mental Health Commissioning,Social Care - Residential Care,18/12/2015,3573490,-559.33,East Thames Group Ltd
Adults Services,Adult Social Care,Older People (Aged 65 or over) including Older Mental Ill,Older People Commissioning,Client Contributions for Social Care - Nursing Care,23/12/2015,3576020,-559.33,Chadderton Total care Unit Ltd
Adults Services,Adult Social Care,Older People (Aged 65 or over) including Older Mental Ill,Older People Commissioning,Client Contributions for Social Care - Nursing Care,23/12/2015,3576132,-559.33,SWISS COTTAGE - Roseberry Care Centres
Adults Services,Adult Social Care,Older People (Aged 65 or over) including Older Mental Ill,Older People Commissioning,Social Care - Residential Care,23/12/2015,3576499,-559.33,CARE UK COMMUNITY PARTNERSHIPS LTD
Adults Services,Adult Social Care,Older People (Aged 65 or over) including Older Mental Ill,Older People Commissioning,Client Contributions for Social Care - Nursing Care,23/12/2015,3576507,-559.33,FOUR SEASONS HEALTH CARE
Adults Services,Adult Social Care,Older People (Aged 65 or over) including Older Mental Ill,Older People Commissioning,Client Contributions for Social Care - Nursing Care,18/12/2015,3573305,-556.00,SANCTUARY CARE LTD
Adults Services,Adult Social Care,Older People (Aged 65 or over) including Older Mental Ill,Older People Commissioning,Social Care - Residential Care,02/12/2015,3562754,-551.58,SANCTUARY CARE LTD
Adults Services,Adult Social Care,Older People (Aged 65 or over) including Older Mental Ill,Learning Dis Commissioning,Client Contributions for Social Care - Residential Care,16/12/2015,3570969,-548.92,GROVE VILLA CARE
Adults Services,Adult Social Care,Older People (Aged 65 or over) including Older Mental Ill,Mental Health Commissioning,Social Care - Residential Care,18/12/2015,3573486,-548.92,THE ISLAND RESIDENTIAL HOME LTD
Adults Services,Adult Social Care,Older People (Aged 65 or over) including Older Mental Ill,Older People Commissioning,Social Care - Residential Care,02/12/2015,3562730,-541.29,JEWISH CARE
Adults Services,Adult Social Care,Older People (Aged 65 or over) including Older Mental Ill,Older People Commissioning,Client Contributions for Social Care - Nursing Care,02/12/2015,3561064,-541.28,Chadderton Total care Unit Ltd
Adults Services,Adult Social Care,Older People (Aged 65 or over) including Older Mental Ill,Older People Commissioning,Client Contributions for Social Care - Nursing Care,02/12/2015,3561121,-541.28,SWISS COTTAGE - Roseberry Care Centres
Adults Services,Adult Social Care,Older People (Aged 65 or over) including Older Mental Ill,Older People Commissioning,Social Care - Residential Care,02/12/2015,3561309,-541.28,Bennetts Castlle Care Home
Adults Services,Adult Social Care,Older People (Aged 65 or over) including Older Mental Ill,Older People Commissioning,Social Care - Residential Care,02/12/2015,3562798,-541.28,SANCTUARY CARE LTD
Adults Services,Adult Social Care,Older People (Aged 65 or over) including Older Mental Ill,Mental Health Commissioning,Social Care - Residential Care,02/12/2015,3562801,-541.28,SANCTUARY CARE LTD
Adults Services,Adult Social Care,Older People (Aged 65 or over) including Older Mental Ill,Older People Commissioning,Social Care - Residential Care,02/12/2015,3562808,-541.28,SANCTUARY CARE LTD
Adults Services,Adult Social Care,Older People (Aged 65 or over) including Older Mental Ill,Older People Commissioning,Social Care - Residential Care,02/12/2015,3562971,-541.28,CARE UK COMMUNITY PARTNERSHIPS LTD
Adults Services,Adult Social Care,Older People (Aged 65 or over) including Older Mental Ill,Older People Commissioning,Client Contributions for Social Care - Nursing Care,02/12/2015,3562977,-541.28,FOUR SEASONS HEALTH CARE
Adults Services,Adult Social Care,Older People (Aged 65 or over) including Older Mental Ill,Older People Commissioning,Social Care - Residential Care,02/12/2015,3563046,-541.28,SANCTUARY CARE LTD
Adults Services,Adult Social Care,Older People (Aged 65 or over) including Older Mental Ill,Older People Commissioning,Social Care - Residential Care,07/12/2015,3561050,-541.28,BARCHESTER HEALTHCARE
Adults Services,Adult Social Care,Older People (Aged 65 or over) including Older Mental Ill,Older People Commissioning,Client Contributions for Social Care - Nursing Care,14/12/2015,3562960,-541.28,H-C ONE LTD - TOWER BRIDGE
Adults Services,Adult Social Care,Older People (Aged 65 or over) including Older Mental Ill,Older People Commissioning,Social Care - Residential Care,16/12/2015,3570655,-541.28,WEST LONDON MISSION SOCIAL WORK ACCOUNT
Adults Services,Adult Social Care,Older People (Aged 65 or over) including Older Mental Ill,Older People Commissioning,Social Care - Residential Care,23/12/2015,3562972,-541.28,Broadening Choices For Older People (Brookvale Care Home)
Adults Services,Adult Social Care,Older People (Aged 65 or over) including Older Mental Ill,Older People Commissioning,Social Care - Residential Care,02/12/2015,3562741,-538.80,ASHBOURNE HEALTHCARE
Adults Services,Adult Social Care,Older People (Aged 65 or over) including Older Mental Ill,Older People Commissioning,Client Contributions for Social Care - Nursing Care,02/12/2015,3561312,-531.22,LIFE STYLE CARE (2011) PLC
Adults Services,Adult Social Care,Older People (Aged 65 or over) including Older Mental Ill,Older People Commissioning,Client Contributions for Social Care - Nursing Care,18/12/2015,3573242,-528.02,SANCTUARY CARE LTD
Adults Services,Adult Social Care,Older People (Aged 65 or over) including Older Mental Ill,Older People Commissioning,Social Care - Residential Care,18/12/2015,3573389,-521.64,ANCHOR TRUST HOMES ACCOUNT
Children's Services,Children's Social Care,Children Looked After,Leaving Care-UASC,Leaving Care Financial Assistance - Supp Accom/Hous Rents,18/12/2015,3560053,-514.29,Newhaven 16 Plus
Resource Services,No Service Specified,No Division Specified,Balance Sheet,HMRC Creditor - SPPB Claimed,11/12/2015,3566456,-513.66,H M Revenue & Customs Only
Adults Services,Adult Social Care,Older People (Aged 65 or over) including Older Mental Ill,Learning Dis Commissioning,Client Contributions for Social Care - Residential Care,16/12/2015,3570934,-508.18,CRAEGMOOR HEALTHCARE
Adults Services,Adult Social Care,Older People (Aged 65 or over) including Older Mental Ill,Learning Dis Commissioning,Client Contributions for Social Care - Residential Care,16/12/2015,3570974,-508.18,FAMILY CARE HOMES LTD
Adults Services,Adult Social Care,Older People (Aged 65 or over) including Older Mental Ill,Learning Dis Commissioning,Client Contributions for Social Care - Residential Care,23/12/2015,3576515,-505.20,ROSELOCK LTD
Adults Services,Adult Social Care,Older People (Aged 65 or over) including Older Mental Ill,Learning Dis Commissioning,Client Contributions for Social Care - Residential Care,23/12/2015,3576516,-505.20,ROSELOCK LTD
Adults Services,Adult Social Care,Older People (Aged 65 or over) including Older Mental Ill,Older People Commissioning,Social Care - Direct Payments,16/12/2015,3571040,500.00,DAVID HOWARD LTD CLIENT ACCOUNT
Children's Services,Children's Social Care,Commissioning and Social Work,FS & P-Stepney/Wapping,Services - Professional Fees - Financial Services Fees,04/12/2015,3538438,500.00,Respect
Children's Services,Children's Social Care,Children Looked After,LCS/Allowances-Accom,Leaving Care Financial Assistance - Grant Payment Education/Training/Employment Support,09/12/2015,3566753,500.00,MR KANE SMITH
Communities & Localities,Cultural and Related Services,Recreation & Sport,Sports Development,Tools and Equipment - Hire - Equipment Hire,11/12/2015,3546027,500.00,SFA RUMA
Communities & Localities,Cultural and Related Services,Open Spaces,Victoria Park,Events & Exhibition Supplies,16/12/2015,3569828,500.00,Geoff Bayford
Communities & Localities,No Service Specified,No Division Specified,Arts-Park Events,Sundry Creditors - Rechargeable Works - Rendered Accounts/Refunds,18/12/2015,3572924,500.00,Community Solutions
Communities & Localities,Environmental and Regulatory Services,Community Safety (CCTV),CCTV,Payments to Private Contractors - CCTV Maintenance,18/12/2015,3574111,500.00,Murray McCaw - Electrician and CCTV
Development & Renewal,General Fund/Council Fund,Enabling,Lettings Management,Removal Fees,04/12/2015,3482184,500.00,EC1 Removals Ltd
Development & Renewal,General Fund/Council Fund,Homelessness,Hmlss Fams-Casch Incent(Fams),Rent Deposits,21/12/2015,3575676,500.00,Premier Mobile Homes Ltd
Children's Services,No Service Specified,No Division Specified,Schools Catering,Kitchen Supplies - Food and Beverages,23/12/2015,3560601,500.20,Thomas Ridley & Son Ltd
Adults Services,Adult Social Care,Older People (Aged 65 or over) including Older Mental Ill,Physical Dis Commissioning,Social Care - Homecare,02/12/2015,3562637,500.40,Age UK Tower Hamlets
Adults Services,Adult Social Care,Older People (Aged 65 or over) including Older Mental Ill,Physical Dis Commissioning,Social Care - Homecare,09/12/2015,3567761,500.40,AGE UK EAST LONDON
Adults Services,Adult Social Care,Older People (Aged 65 or over) including Older Mental Ill,Older People Commissioning,Social Care - Direct Payments,09/12/2015,3567655,500.65,DAVID HOWARD LTD CLIENT ACCOUNT
Children's Services,No Service Specified,No Division Specified,Schools Catering,Kitchen Supplies - Food and Beverages,14/12/2015,3559452,501.09,William White Meats Ltd
Resource Services,Corporate & Democratic Core,Corporate Management,Multi Functional Printers,Photocopier Operating Lease,18/12/2015,3569226,501.23,Xerox Finance LTD
Development & Renewal,Corporate & Democratic Core,Corporate Management,S&I - Management Team,Computing - Purchase of Hardware,18/12/2015,3560776,501.54,Specialist Computer Centres PLC
Children's Services,No Service Specified,No Division Specified,Schools Catering,Kitchen Supplies - Food and Beverages,04/12/2015,3545844,501.97,Thomas Ridley & Son Ltd
Children's Services,No Service Specified,No Division Specified,Schools Catering,Kitchen Supplies - Food and Beverages,23/12/2015,3564052,502.59,Thomas Ridley & Son Ltd
Children's Services,No Service Specified,No Division Specified,Schools Catering,Kitchen Supplies - Food and Beverages,23/12/2015,3566455,502.84,William White Meats Ltd
Adults Services,Adult Social Care,Older People (Aged 65 or over) including Older Mental Ill,Older People Commissioning,Social Care - Homecare,04/12/2015,3552691,504.00,Bluebird Care (Havering)
Communities & Localities,Other Operating Income and Expenditure,Trading Account Surpluses and Deficits,Client Fleet Mngmnt,Transport Dept Charges,23/12/2015,3565636,504.00,L&F Plant Hire t/a Tipperhire
Adults Services,Adult Social Care,Older People (Aged 65 or over) including Older Mental Ill,Physical Dis Commissioning,Social Care - Homecare,09/12/2015,3566793,504.10,AQUAFLO CARE LTD
Communities & Localities,Cultural and Related Services,Culture & Heritage,Arts-Park Events,Events & Exhibition Supplies,11/12/2015,3555646,505.00,Oliver Landpower Ltd
Adults Services,Adult Social Care,Older People (Aged 65 or over) including Older Mental Ill,Mental Health Commissioning,Social Care - Day Care,23/12/2015,3576270,505.48,St Hilda's East Community Centre
Children's Services,No Service Specified,No Division Specified,Schools Catering,Kitchen Supplies - Food and Beverages,16/12/2015,3555989,505.99,Thomas Ridley & Son Ltd
Children's Services,No Service Specified,No Division Specified,Schools Catering,Kitchen Supplies - Food and Beverages,23/12/2015,3560656,507.07,Thomas Ridley & Son Ltd
Children's Services,No Service Specified,No Division Specified,Schools Catering,Kitchen Supplies - Food and Beverages,23/12/2015,3560563,507.14,Thomas Ridley & Son Ltd
Adults Services,Adult Social Care,Older People (Aged 65 or over) including Older Mental Ill,Older People Commissioning,Social Care - Homecare,02/12/2015,3562842,507.50,CIRCLE SUPPORT CONSORTIUM
Adults Services,Adult Social Care,Older People (Aged 65 or over) including Older Mental Ill,Older People Commissioning,Social Care - Homecare,02/12/2015,3562855,507.50,CIRCLE SUPPORT CONSORTIUM
Adults Services,Adult Social Care,Older People (Aged 65 or over) including Older Mental Ill,Older People Commissioning,Social Care - Homecare,02/12/2015,3562868,507.50,CIRCLE SUPPORT CONSORTIUM
Adults Services,Adult Social Care,Older People (Aged 65 or over) including Older Mental Ill,Older People Commissioning,Social Care - Homecare,02/12/2015,3562875,507.50,CIRCLE SUPPORT CONSORTIUM
Adults Services,Adult Social Care,Older People (Aged 65 or over) including Older Mental Ill,Older People Commissioning,Social Care - Homecare,02/12/2015,3562889,507.50,CIRCLE SUPPORT CONSORTIUM
Adults Services,Adult Social Care,Older People (Aged 65 or over) including Older Mental Ill,Older People Commissioning,Social Care - Homecare,02/12/2015,3562901,507.50,CIRCLE SUPPORT CONSORTIUM
Adults Services,Adult Social Care,Older People (Aged 65 or over) including Older Mental Ill,Older People Commissioning,Social Care - Homecare,02/12/2015,3562913,507.50,CIRCLE SUPPORT CONSORTIUM
Adults Services,Adult Social Care,Older People (Aged 65 or over) including Older Mental Ill,Older People Commissioning,Social Care - Homecare,02/12/2015,3562921,507.50,CIRCLE SUPPORT CONSORTIUM
Adults Services,Adult Social Care,Older People (Aged 65 or over) including Older Mental Ill,Older People Commissioning,Social Care - Homecare,02/12/2015,3562935,507.50,CIRCLE SUPPORT CONSORTIUM
Adults Services,Adult Social Care,Older People (Aged 65 or over) including Older Mental Ill,Older People Commissioning,Social Care - Homecare,02/12/2015,3562950,507.50,CIRCLE SUPPORT CONSORTIUM
Adults Services,Adult Social Care,Older People (Aged 65 or over) including Older Mental Ill,Older People Commissioning,Social Care - Homecare,16/12/2015,3571104,507.50,SEVACARE UK LTD
Adults Services,Adult Social Care,Older People (Aged 65 or over) including Older Mental Ill,Older People Commissioning,Social Care - Homecare,16/12/2015,3571112,507.50,SEVACARE UK LTD
Adults Services,Adult Social Care,Older People (Aged 65 or over) including Older Mental Ill,Physical Dis Commissioning,Social Care - Homecare,16/12/2015,3571122,507.50,SEVACARE UK LTD
Corporate Cost and Central Items,Corporate & Democratic Core,Democratic Representation & Management,Pension Fund Management,Staff Advertising,16/12/2015,3555667,507.50,Penna PLC
Children's Services,No Service Specified,No Division Specified,Schools Catering,Kitchen Supplies - Food and Beverages,23/12/2015,3557494,508.24,Thomas Ridley & Son Ltd
Adults Services,Adult Social Care,Older People (Aged 65 or over) including Older Mental Ill,Older People Commissioning,Social Care - Direct Payments,09/12/2015,3567473,508.62,DAVID HOWARD LTD CLIENT ACCOUNT
Children's Services,No Service Specified,No Division Specified,Schools Catering,Kitchen Supplies - Food and Beverages,02/12/2015,3560300,508.84,William White Meats Ltd
Children's Services,No Service Specified,No Division Specified,Schools Catering,Kitchen Supplies - Food and Beverages,02/12/2015,3560268,508.97,William White Meats Ltd
Adults Services,Adult Social Care,Older People (Aged 65 or over) including Older Mental Ill,Learning Dis Commissioning,Social Care - Prevention & Support,23/12/2015,3565066,509.18,FIRST CALL CARE SERVICES LTD
Communities & Localities,Education Services,Services to Young People and Other Community Learners,Outdoor,Educational/Training Supplies - Arts & Crafts,23/12/2015,3565757,510.00,Access Exhibitions
Development & Renewal,Corporate & Democratic Core,Corporate Management,CLM CLC,Repairs and Maintenance - Responsive - Repair & Maintenance,18/12/2015,3571795,510.10,Kone plc
Adults Services,Adult Social Care,Older People (Aged 65 or over) including Older Mental Ill,Older People Commissioning,Social Care - Homecare,09/12/2015,3566952,510.30,Mantra Recruitment
Adults Services,Adult Social Care,Older People (Aged 65 or over) including Older Mental Ill,Learning Dis Commissioning,Social Care - Day Care,16/12/2015,3571259,510.30,Mantra Recruitment
Adults Services,Adult Social Care,Older People (Aged 65 or over) including Older Mental Ill,Older People Commissioning,Social Care - Homecare,23/12/2015,3576153,510.30,Mantra Recruitment
Adults Services,General Fund/Council Fund,Homelessness,Supporting People Services,SP - Block Subsidy - Old People-Supp Needs,02/12/2015,3561970,510.86,GATEWAY HOUSING ASSOCIATION
Communities & Localities,Adult Social Care,Other Adult Services,Section 256 Agreements,Medical Requisites,23/12/2015,3566107,511.00,Pristine Health t/a Bell Pharmacy Bow
Children's Services,Education Services,Early Years,Meath Gardens CC,Materials - Cleaning Materials,18/12/2015,3556813,511.69,The Maintenance Supply Co Ltd
Children's Services,No Service Specified,No Division Specified,Schools Catering,Kitchen Supplies - Food and Beverages,02/12/2015,3544469,512.10,Thomas Ridley & Son Ltd
Children's Services,No Service Specified,No Division Specified,Schools Catering,Kitchen Supplies - Food and Beverages,23/12/2015,3560910,512.22,Thomas Ridley & Son Ltd
Adults Services,Adult Social Care,Older People (Aged 65 or over) including Older Mental Ill,Physical Dis Commissioning,Social Care - Homecare,18/12/2015,3573667,512.64,LONDON COMMUNITY HOMECARE LTD
Communities & Localities,Adult Social Care,Other Adult Services,Section 256 Agreements,Medical Requisites,23/12/2015,3566178,512.80,BARKANTINE PHARMACY
Adults Services,Adult Social Care,Older People (Aged 65 or over) including Older Mental Ill,Physical Dis Commissioning,Social Care - Homecare,02/12/2015,3562657,513.00,LONDON COMMUNITY HOMECARE LTD
Adults Services,Adult Social Care,Older People (Aged 65 or over) including Older Mental Ill,Physical Dis Commissioning,Social Care - Homecare,09/12/2015,3567789,513.00,LONDON COMMUNITY HOMECARE LTD
Adults Services,Adult Social Care,Older People (Aged 65 or over) including Older Mental Ill,Physical Dis Commissioning,Social Care - Homecare,09/12/2015,3567920,513.00,LONDON COMMUNITY HOMECARE LTD
Adults Services,Adult Social Care,Older People (Aged 65 or over) including Older Mental Ill,Physical Dis Commissioning,Social Care - Homecare,16/12/2015,3571177,513.00,LONDON COMMUNITY HOMECARE LTD
Development & Renewal,No Service Specified,No Division Specified,Cleaning Materials & Equipment,Materials - Cleaning Materials,23/12/2015,3560372,513.00,GREENER SOLUTIONS LTD
Children's Services,No Service Specified,No Division Specified,Schools Catering,Kitchen Supplies - Food and Beverages,23/12/2015,3564009,513.17,Thomas Ridley & Son Ltd
Adults Services,Adult Social Care,Older People (Aged 65 or over) including Older Mental Ill,Older People Commissioning,Social Care - Day Care,23/12/2015,3576302,513.90,St Hilda's East Community Centre
Adults Services,Adult Social Care,Older People (Aged 65 or over) including Older Mental Ill,Older People Commissioning,Social Care - Day Care,23/12/2015,3576384,513.90,St Hilda's East Community Centre
Adults Services,Adult Social Care,Older People (Aged 65 or over) including Older Mental Ill,Older People Commissioning,Social Care - Direct Payments,09/12/2015,3567350,513.98,DAVID HOWARD LTD CLIENT ACCOUNT
Adults Services,Adult Social Care,Older People (Aged 65 or over) including Older Mental Ill,Older People Commissioning,Social Care - Homecare,23/12/2015,3576091,514.18,ATHLONE CARE LTD
Adults Services,Adult Social Care,Older People (Aged 65 or over) including Older Mental Ill,Mental Health Commissioning,Social Care - Direct Payments,09/12/2015,3567639,514.25,DAVID HOWARD LTD CLIENT ACCOUNT
Children's Services,No Service Specified,No Division Specified,Contract Services M & A,Kitchen Supplies - Food and Beverages,23/12/2015,3564578,514.78,Jones Brothers
Children's Services,No Service Specified,No Division Specified,Schools Catering,Kitchen Supplies - Food and Beverages,16/12/2015,3555935,515.57,Thomas Ridley & Son Ltd
Adults Services,Adult Social Care,Older People (Aged 65 or over) including Older Mental Ill,Older People Commissioning,Social Care - Homecare,23/12/2015,3576240,516.38,Mantra Recruitment
Children's Services,No Service Specified,No Division Specified,Schools Catering,Kitchen Supplies - Food and Beverages,09/12/2015,3548051,516.68,Thomas Ridley & Son Ltd
Adults Services,Adult Social Care,Older People (Aged 65 or over) including Older Mental Ill,Physical Dis Commissioning,Social Care - Homecare,09/12/2015,3568147,516.93,SANCTUARY HOME CARE LIMITED
Adults Services,Adult Social Care,Older People (Aged 65 or over) including Older Mental Ill,Physical Dis Commissioning,Social Care - Direct Payments,09/12/2015,3567668,517.08,D D PAYROLL SERVICES
Adults Services,Adult Social Care,Older People (Aged 65 or over) including Older Mental Ill,Physical Dis Commissioning,Social Care - Homecare,09/12/2015,3567869,517.15,LONDON COMMUNITY HOMECARE LTD
Adults Services,Adult Social Care,Older People (Aged 65 or over) including Older Mental Ill,Physical Dis Commissioning,Social Care - Homecare,18/12/2015,3573731,517.22,LONDON COMMUNITY HOMECARE LTD
Children's Services,No Service Specified,No Division Specified,Sch. Meals A/c - C.F.S. Upper (Harley Grove),Kitchen Supplies - Food and Beverages,16/12/2015,3565771,517.25,Chicken Joes
Communities & Localities,Highways and Transport Services,Parking Services,Parking Shop/Permits,Other Sales and Fees - Residents,23/12/2015,3575985,517.50,Foxtons Ltd
Children's Services,No Service Specified,No Division Specified,Schools Catering,Kitchen Supplies - Food and Beverages,16/12/2015,3555501,518.07,Thomas Ridley & Son Ltd
Children's Services,No Service Specified,No Division Specified,Contract Services M & A,Kitchen Supplies - Food and Beverages,23/12/2015,3564567,518.16,Jones Brothers
Adults Services,Adult Social Care,Older People (Aged 65 or over) including Older Mental Ill,Older People Commissioning,Social Care - Homecare,09/12/2015,3568273,518.30,Soma Healthcare Ltd
Adults Services,Adult Social Care,Older People (Aged 65 or over) including Older Mental Ill,Older People Commissioning,Social Care - Homecare,09/12/2015,3568297,518.30,Soma Healthcare Ltd
Adults Services,Adult Social Care,Older People (Aged 65 or over) including Older Mental Ill,Older People Commissioning,Social Care - Homecare,09/12/2015,3568364,518.30,Soma Healthcare Ltd
Adults Services,Public Health,Smoking and Tobacco,Public Health Team - 2,Payments to Private Contractors - Other Contractors,23/12/2015,3566174,518.82,CHRISCHEM UK LTD
Adults Services,Adult Social Care,Older People (Aged 65 or over) including Older Mental Ill,Older People Commissioning,Social Care - Homecare,02/12/2015,3561106,519.14,ATHLONE CARE LTD
Children's Services,No Service Specified,No Division Specified,Schools Catering,Kitchen Supplies - Food and Beverages,23/12/2015,3566398,519.22,William White Meats Ltd
Children's Services,No Service Specified,No Division Specified,Schools Catering,Kitchen Supplies - Food and Beverages,04/12/2015,3545871,519.65,Thomas Ridley & Son Ltd
Adults Services,Adult Social Care,Older People (Aged 65 or over) including Older Mental Ill,Older People Commissioning,Social Care - Homecare,18/12/2015,3573848,519.75,CIRCLE SUPPORT CONSORTIUM
Adults Services,Adult Social Care,Older People (Aged 65 or over) including Older Mental Ill,Older People Commissioning,Social Care - Homecare,18/12/2015,3573862,519.75,CIRCLE SUPPORT CONSORTIUM
Adults Services,Adult Social Care,Older People (Aged 65 or over) including Older Mental Ill,Older People Commissioning,Social Care - Homecare,23/12/2015,3576466,519.75,CIRCLE SUPPORT CONSORTIUM
Adults Services,Adult Social Care,Older People (Aged 65 or over) including Older Mental Ill,Older People Commissioning,Social Care - Homecare,23/12/2015,3576481,519.75,CIRCLE SUPPORT CONSORTIUM
Development & Renewal,Corporate & Democratic Core,Corporate Management,Mulberry Place Bldg,Materials - Cleaning Materials,21/12/2015,3558739,519.86,The Maintenance Supply Co Ltd
Children's Services,Children's Social Care,Children Looked After,Virtual School PPG,Third Party Payments - Payments to Schools,23/12/2015,3563328,520.00,Brampton Primary School
Development & Renewal,General Fund/Council Fund,Homelessness,Hmlss Fams-Bed and Breakfast,Third Party Payments - One Room,18/12/2015,3572965,520.00,Finefair Management
Resource Services,General Fund/Council Fund,Housing Benefits Administration,Central Benefits Team,Services - Professional Fees - Consultants Fees,23/12/2015,3571790,520.00,Legal Escrow & Arbitration Services Ltd
Children's Services,No Service Specified,No Division Specified,Schools Catering,Kitchen Supplies - Food and Beverages,23/12/2015,3564928,520.47,William White Meats Ltd
Adults Services,Adult Social Care,Older People (Aged 65 or over) including Older Mental Ill,Older People Commissioning,Social Care - Homecare,02/12/2015,3563127,520.50,SANCTUARY HOME CARE LIMITED
Adults Services,Adult Social Care,Older People (Aged 65 or over) including Older Mental Ill,Older People Commissioning,Social Care - Homecare,23/12/2015,3576614,520.50,SANCTUARY HOME CARE LIMITED
Children's Services,No Service Specified,No Division Specified,Sch. Meals A/c - St. Paul's,Tools and Equipment - Purchase,16/12/2015,3559693,521.00,Hobart UK
Children's Services,No Service Specified,No Division Specified,Schools Catering,Tools and Equipment - Purchase,16/12/2015,3559694,521.00,Hobart UK
Children's Services,No Service Specified,No Division Specified,Welfare Catering,Kitchen Supplies - Food and Beverages,04/12/2015,3545521,521.73,Thomas Ridley & Son Ltd
Adults Services,Adult Social Care,Older People (Aged 65 or over) including Older Mental Ill,Older People Commissioning,Social Care - Homecare,16/12/2015,3571134,522.00,SEVACARE UK LTD
Children's Services,No Service Specified,No Division Specified,Schools Catering,Materials - Cleaning Materials,07/12/2015,3546211,522.03,The Maintenance Supply Co Ltd
Communities & Localities,Other Operating Income and Expenditure,Trading Account Surpluses and Deficits,Client Fleet Mngmnt,Non Staff Transport Costs - Reimbursement,23/12/2015,3566602,522.44,Hitachi Capital & Commercial Vehicle Svc
Adults Services,Adult Social Care,Older People (Aged 65 or over) including Older Mental Ill,Older People Commissioning,Social Care - Homecare,04/12/2015,3565084,522.45,Mantra Recruitment
Children's Services,No Service Specified,No Division Specified,Schools Catering,Kitchen Supplies - Food and Beverages,16/12/2015,3555492,522.47,Thomas Ridley & Son Ltd
Adults Services,Adult Social Care,Older People (Aged 65 or over) including Older Mental Ill,Learning Dis Commissioning,Social Care - Homecare,04/12/2015,3565155,523.25,COMMUNITY CARE CONSORTIUM
Adults Services,Adult Social Care,Older People (Aged 65 or over) including Older Mental Ill,Mental Health Commissioning,Social Care - Direct Payments,09/12/2015,3567324,523.46,DAVID HOWARD LTD CLIENT ACCOUNT
Adults Services,Adult Social Care,Older People (Aged 65 or over) including Older Mental Ill,Older People Commissioning,Social Care - Homecare,18/12/2015,3573747,524.16,LONDON COMMUNITY HOMECARE LTD
Adults Services,Public Health,Smoking and Tobacco,Public Health Team - 2,Payments to Private Contractors - Other Contractors,23/12/2015,3566173,524.70,CHRISCHEM UK LTD
Adults Services,Adult Social Care,Older People (Aged 65 or over) including Older Mental Ill,Mental Health Commissioning,Social Care - Homecare,02/12/2015,3562785,524.76,MiHOMECARE LIMITED
Children's Services,Children's Social Care,Service Strategy,CSC Childrens Resources M & A,Training Expenses - Staff External Training (UK Based),02/12/2015,3548175,525.00,A-Z Education Ltd
Children's Services,No Service Specified,No Division Specified,Schools Catering,Kitchen Supplies - Food and Beverages,14/12/2015,3559401,525.00,William White Meats Ltd
Communities & Localities,Education Services,Services to Young People and Other Community Learners,Connexions General Fund,Meeting Expenses,18/12/2015,3557282,525.00,Casablanca Marquees Ltd
Children's Services,No Service Specified,No Division Specified,Schools Catering,Kitchen Supplies - Food and Beverages,11/12/2015,3549107,525.10,Thomas Ridley & Son Ltd
Adults Services,Adult Social Care,Older People (Aged 65 or over) including Older Mental Ill,Learning Dis Commissioning,Social Care - Direct Payments,09/12/2015,3567296,525.18,DAVID HOWARD LTD CLIENT ACCOUNT
Adults Services,Adult Social Care,Older People (Aged 65 or over) including Older Mental Ill,Older People Commissioning,Social Care - Homecare,09/12/2015,3568269,525.60,Soma Healthcare Ltd
Adults Services,Adult Social Care,Older People (Aged 65 or over) including Older Mental Ill,Physical Dis Commissioning,Social Care - Homecare,18/12/2015,3573652,526.52,LONDON COMMUNITY HOMECARE LTD
Children's Services,No Service Specified,No Division Specified,Welfare Catering,Kitchen Supplies - Food and Beverages,16/12/2015,3553891,526.78,Thomas Ridley & Son Ltd
Communities & Localities,Education Services,Services to Young People and Other Community Learners,LAPS 1 - 4,Educational/Training Supplies - Curriculum Visits/Activities,04/12/2015,3546132,526.80,Greenwich Leisure LTD
Adults Services,Adult Social Care,Older People (Aged 65 or over) including Older Mental Ill,Physical Dis Commissioning,Social Care - Direct Payments,09/12/2015,3567277,527.00,DAVID HOWARD LTD CLIENT ACCOUNT
Adults Services,Adult Social Care,Older People (Aged 65 or over) including Older Mental Ill,Older People Commissioning,Social Care - Direct Payments,09/12/2015,3567276,527.13,DAVID HOWARD LTD CLIENT ACCOUNT
Adults Services,Adult Social Care,Older People (Aged 65 or over) including Older Mental Ill,Older People Commissioning,Social Care - Direct Payments,09/12/2015,3567305,527.13,DAVID HOWARD LTD CLIENT ACCOUNT
Adults Services,Adult Social Care,Older People (Aged 65 or over) including Older Mental Ill,Older People Commissioning,Social Care - Homecare,18/12/2015,3573983,527.18,Soma Healthcare Ltd
Adults Services,Adult Social Care,Older People (Aged 65 or over) including Older Mental Ill,Older People Commissioning,Social Care - Direct Payments,09/12/2015,3567588,527.31,DAVID HOWARD LTD CLIENT ACCOUNT
Adults Services,Adult Social Care,Older People (Aged 65 or over) including Older Mental Ill,Older People Commissioning,Social Care - Homecare,02/12/2015,3563116,527.62,SANCTUARY HOME CARE LIMITED
Communities & Localities,Education Services,Services to Young People and Other Community Learners,Shadwell Centre,Materials - Cleaning Materials,23/12/2015,3563245,528.32,Office Depot (Catalogue)
Communities & Localities,Sports Development,Sports Development,Sports Development,Events & Exhibitions,02/12/2015,Payment Card,528.50,bic exhibitions
Communities & Localities,Adult Social Care,Other Adult Services,Section 256 Agreements,Medical Requisites,23/12/2015,3570471,528.87,Frontier Medical Group
Adults Services,Adult Social Care,Older People (Aged 65 or over) including Older Mental Ill,Older People Commissioning,Social Care - Homecare,09/12/2015,3568083,529.25,CIRCLE SUPPORT CONSORTIUM
Adults Services,Adult Social Care,Older People (Aged 65 or over) including Older Mental Ill,Older People Commissioning,Social Care - Homecare,09/12/2015,3568098,529.25,CIRCLE SUPPORT CONSORTIUM
Adults Services,Adult Social Care,Older People (Aged 65 or over) including Older Mental Ill,Older People Commissioning,Social Care - Homecare,18/12/2015,3573881,529.25,CIRCLE SUPPORT CONSORTIUM
Adults Services,Adult Social Care,Older People (Aged 65 or over) including Older Mental Ill,Older People Commissioning,Social Care - Homecare,09/12/2015,3568069,529.57,MiHOMECARE LIMITED
Children's Services,No Service Specified,No Division Specified,Schools Catering,Kitchen Supplies - Food and Beverages,02/12/2015,3543652,530.34,Thomas Ridley & Son Ltd
Adults Services,Adult Social Care,Older People (Aged 65 or over) including Older Mental Ill,Learning Dis Commissioning,Social Care - Homecare,23/12/2015,3576435,530.40,FOCUS CARE LINK LTD
Adults Services,Adult Social Care,Older People (Aged 65 or over) including Older Mental Ill,Learning Dis Commissioning,Social Care - Homecare,04/12/2015,3565154,530.73,COMMUNITY CARE CONSORTIUM
Communities & Localities,Adult Social Care,Other Adult Services,Section 256 Agreements,Medical Requisites,09/12/2015,3563434,531.00,Frontier Medical Group
Communities & Localities,Adult Social Care,Other Adult Services,Section 256 Agreements,Medical Requisites,09/12/2015,3563477,531.00,Frontier Medical Group
Development & Renewal,General Fund/Council Fund,Homelessness,Hmlss Fams-NST Properties,Fixtures and Fittings - Purchases - General,21/12/2015,3558744,531.08,Lodge Group Furniture Supply LTD
Adults Services,Adult Social Care,Older People (Aged 65 or over) including Older Mental Ill,Physical Dis Commissioning,Social Care - Homecare,18/12/2015,3573718,531.16,LONDON COMMUNITY HOMECARE LTD
Communities & Localities,Adult Social Care,Other Adult Services,Section 256 Agreements,Medical Requisites,23/12/2015,3566150,531.40,Ali's Pharmacy
Adults Services,Adult Social Care,Older People (Aged 65 or over) including Older Mental Ill,Older People Commissioning,Social Care - Direct Payments,09/12/2015,3567388,531.43,DAVID HOWARD LTD CLIENT ACCOUNT
Adults Services,Adult Social Care,Older People (Aged 65 or over) including Older Mental Ill,Older People Commissioning,Social Care - Homecare,16/12/2015,3571302,531.82,MiHOMECARE LIMITED
Adults Services,Adult Social Care,Older People (Aged 65 or over) including Older Mental Ill,Older People Commissioning,Social Care - Homecare,16/12/2015,3571306,531.82,MiHOMECARE LIMITED
Adults Services,Adult Social Care,Older People (Aged 65 or over) including Older Mental Ill,Older People Commissioning,Social Care - Homecare,16/12/2015,3571307,531.82,MiHOMECARE LIMITED
Adults Services,Adult Social Care,Older People (Aged 65 or over) including Older Mental Ill,Older People Commissioning,Social Care - Homecare,16/12/2015,3571308,531.82,MiHOMECARE LIMITED
Adults Services,Adult Social Care,Older People (Aged 65 or over) including Older Mental Ill,Learning Dis Commissioning,Social Care - Homecare,04/12/2015,3565228,532.00,COMMUNITY CARE CONSORTIUM
Communities & Localities,No Service Specified,No Division Specified,Temporary Structures,Sundry Creditors - Rechargeable Works - Rendered Accounts/Refunds,11/12/2015,3565862,532.00,K B Scaffolding Limited
Children's Services,No Service Specified,No Division Specified,Schools Catering,Kitchen Supplies - Food and Beverages,02/12/2015,3544579,532.66,Thomas Ridley & Son Ltd
Children's Services,No Service Specified,No Division Specified,Schools Catering,Kitchen Supplies - Food and Beverages,18/12/2015,3557038,532.80,Thomas Ridley & Son Ltd
Resource Services,No Service Specified,No Division Specified,Balance Sheet,HMRC Creditor - Pay-NI,11/12/2015,3566458,532.86,H M Revenue & Customs Only
Adults Services,Adult Social Care,Older People (Aged 65 or over) including Older Mental Ill,Older People Commissioning,Social Care - Homecare,09/12/2015,3568279,532.90,Soma Healthcare Ltd
Children's Services,No Service Specified,No Division Specified,Schools Catering,Kitchen Supplies - Food and Beverages,21/12/2015,3564093,532.94,William White Meats Ltd
Adults Services,Adult Social Care,Older People (Aged 65 or over) including Older Mental Ill,Older People Commissioning,Social Care - Homecare,18/12/2015,3573668,533.40,LONDON COMMUNITY HOMECARE LTD
Adults Services,Adult Social Care,Older People (Aged 65 or over) including Older Mental Ill,Older People Commissioning,Social Care - Homecare,09/12/2015,3568008,533.97,REDSPOT HOMECARE (CONTRACTS) LTD
Children's Services,No Service Specified,No Division Specified,Schools Catering,Kitchen Supplies - Food and Beverages,23/12/2015,3564515,534.42,Thomas Ridley & Son Ltd
Adults Services,Adult Social Care,Older People (Aged 65 or over) including Older Mental Ill,Physical Dis Commissioning,Social Care - Homecare,09/12/2015,3567855,534.60,LONDON COMMUNITY HOMECARE LTD
Adults Services,Adult Social Care,Older People (Aged 65 or over) including Older Mental Ill,Older People Commissioning,Social Care - Homecare,18/12/2015,3573952,534.60,Soma Healthcare Ltd
Adults Services,Adult Social Care,Older People (Aged 65 or over) including Older Mental Ill,Older People Commissioning,Social Care - Homecare,23/12/2015,3576720,534.60,Soma Healthcare Ltd
Adults Services,Adult Social Care,Older People (Aged 65 or over) including Older Mental Ill,Older People Commissioning,Social Care - Homecare,23/12/2015,3576721,534.60,Soma Healthcare Ltd
Children's Services,No Service Specified,No Division Specified,Schools Catering,Kitchen Supplies - Food and Beverages,16/12/2015,3549643,535.42,Thomas Ridley & Son Ltd
Adults Services,Adult Social Care,Older People (Aged 65 or over) including Older Mental Ill,Physical Dis Commissioning,Social Care - Direct Payments,09/12/2015,3567599,535.77,D D PAYROLL SERVICES
Adults Services,Adult Social Care,Older People (Aged 65 or over) including Older Mental Ill,Older People Commissioning,Social Care - Homecare,18/12/2015,3573614,535.80,Oasis Care & Training Agency
Children's Services,No Service Specified,No Division Specified,Schools Catering,Kitchen Supplies - Food and Beverages,16/12/2015,3555893,535.98,Thomas Ridley & Son Ltd
Children's Services,No Service Specified,No Division Specified,Schools Catering,Kitchen Supplies - Food and Beverages,02/12/2015,3560232,536.00,William White Meats Ltd
"Directorate of Law, Probity and Governance",Corporate & Democratic Core,Corporate Management,Tower Design,Office Furniture/Equipment,21/12/2015,3564235,536.00,Ricoh UK
Development & Renewal,No Service Specified,No Division Specified,Communal Energy,Water Services - Metered,23/12/2015,3569692,536.27,Thames Water Utilities LTD
Children's Services,No Service Specified,No Division Specified,Schools Catering,Kitchen Supplies - Food and Beverages,04/12/2015,3545879,536.54,Thomas Ridley & Son Ltd
Adults Services,Adult Social Care,Older People (Aged 65 or over) including Older Mental Ill,Older People Commissioning,Social Care - Day Care,23/12/2015,3576373,536.67,St Hilda's East Community Centre
Adults Services,Adult Social Care,Older People (Aged 65 or over) including Older Mental Ill,Physical Dis Commissioning,Social Care - Homecare,09/12/2015,3568010,537.19,REDSPOT HOMECARE (CONTRACTS) LTD
Adults Services,Adult Social Care,Older People (Aged 65 or over) including Older Mental Ill,Older People Commissioning,Social Care - Homecare,18/12/2015,3573732,538.16,LONDON COMMUNITY HOMECARE LTD
Adults Services,Adult Social Care,Older People (Aged 65 or over) including Older Mental Ill,Older People Commissioning,Social Care - Direct Payments,09/12/2015,3567309,538.65,DAVID HOWARD LTD CLIENT ACCOUNT
Communities & Localities,Other Operating Income and Expenditure,Trading Account Surpluses and Deficits,Vehicle Maintenance Operation,Spare Parts,14/12/2015,3556936,538.87,R A Commercial Components
Adults Services,Adult Social Care,Older People (Aged 65 or over) including Older Mental Ill,Older People Commissioning,Social Care - Homecare,18/12/2015,3573794,539.15,REDSPOT HOMECARE (CONTRACTS) LTD
Adults Services,Adult Social Care,Older People (Aged 65 or over) including Older Mental Ill,Older People Commissioning,Social Care - Homecare,16/12/2015,3571332,539.47,MiHOMECARE LIMITED
Adults Services,Adult Social Care,Older People (Aged 65 or over) including Older Mental Ill,Learning Dis Commissioning,Social Care - Homecare,04/12/2015,3565227,539.60,COMMUNITY CARE CONSORTIUM
Adults Services,Adult Social Care,Older People (Aged 65 or over) including Older Mental Ill,Learning Dis Commissioning,Social Care - Day Care,23/12/2015,3576167,540.00,I C M FOUNDATION CIC - CORE NEWS PROJECT
Adults Services,Adult Social Care,Older People (Aged 65 or over) including Older Mental Ill,Learning Dis Commissioning,Social Care - Homecare,23/12/2015,3576168,540.00,I C M FOUNDATION CIC - CORE NEWS PROJECT
Adults Services,Adult Social Care,Older People (Aged 65 or over) including Older Mental Ill,Learning Dis Commissioning,Social Care - Day Care,23/12/2015,3576169,540.00,I C M FOUNDATION CIC - CORE NEWS PROJECT
Children's Services,Children's Social Care,Children Looked After,S23 Fam Pl In-Hse-Perm F/Care,Childrens Act Section 23 - Commissioned Services,23/12/2015,3575698,540.00,MS MARIA GINN
Communities & Localities,Education Services,Services to Young People and Other Community Learners,MIS - Exams,Training Expenses - Other External Training (Non UK Based),18/12/2015,3556885,540.00,Sports Leaders UK
Development & Renewal,General Fund/Council Fund,Homelessness,Hmlss Fams-Bed and Breakfast,Third Party Payments - One Room,18/12/2015,3572950,540.00,Metro Properties Ltd
Development & Renewal,General Fund/Council Fund,Homelessness,Hmlss Fams-Options Adults Team,Training Expenses - Staff External Training (UK Based),21/12/2015,3560457,540.00,Government Knowledge Training Ltd
Adults Services,Adult Social Care,Older People (Aged 65 or over) including Older Mental Ill,Older People Commissioning,Social Care - Homecare,09/12/2015,3568263,540.20,Soma Healthcare Ltd
Adults Services,Adult Social Care,Older People (Aged 65 or over) including Older Mental Ill,Older People Commissioning,Social Care - Homecare,09/12/2015,3566938,540.68,Mantra Recruitment
Adults Services,Adult Social Care,Older People (Aged 65 or over) including Older Mental Ill,Older People Commissioning,Social Care - Homecare,23/12/2015,3576123,540.68,Mantra Recruitment
Adults Services,Public Health,Smoking and Tobacco,Public Health Team - 2,Payments to Private Contractors - Other Contractors,23/12/2015,3566188,541.35,Jaypharm Chemist
Communities & Localities,Youth Arts,Youth Arts,Youth Arts,Events & Exhibitions,01/12/2015,Payment Card,541.67,phr reception
Communities & Localities,Other Operating Income and Expenditure,Trading Account Surpluses and Deficits,Client Fleet Mngmnt,Transport Dept Charges,07/12/2015,3556493,541.80,L&F Plant Hire t/a Tipperhire
Communities & Localities,Other Operating Income and Expenditure,Trading Account Surpluses and Deficits,Client Fleet Mngmnt,Transport Dept Charges,23/12/2015,3565742,541.80,L&F Plant Hire t/a Tipperhire
Communities & Localities,Other Operating Income and Expenditure,Trading Account Surpluses and Deficits,Client Fleet Mngmnt,Transport Dept Charges,23/12/2015,3565997,541.80,L&F Plant Hire t/a Tipperhire
Communities & Localities,Other Operating Income and Expenditure,Trading Account Surpluses and Deficits,Client Fleet Mngmnt,Transport Dept Charges,23/12/2015,3566243,541.80,L&F Plant Hire t/a Tipperhire
Communities & Localities,Other Operating Income and Expenditure,Trading Account Surpluses and Deficits,Client Fleet Mngmnt,Transport Dept Charges,23/12/2015,3566276,541.80,L&F Plant Hire t/a Tipperhire
Communities & Localities,Other Operating Income and Expenditure,Trading Account Surpluses and Deficits,Client Fleet Mngmnt,Transport Dept Charges,23/12/2015,3566292,541.80,L&F Plant Hire t/a Tipperhire
Communities & Localities,Other Operating Income and Expenditure,Trading Account Surpluses and Deficits,Client Fleet Mngmnt,Transport Dept Charges,23/12/2015,3566305,541.80,L&F Plant Hire t/a Tipperhire
Adults Services,Adult Social Care,Older People (Aged 65 or over) including Older Mental Ill,Physical Dis Commissioning,Social Care - Homecare,02/12/2015,3563110,541.88,SANCTUARY HOME CARE LIMITED
Adults Services,Adult Social Care,Older People (Aged 65 or over) including Older Mental Ill,Physical Dis Commissioning,Social Care - Homecare,04/12/2015,3565401,541.88,SANCTUARY HOME CARE LIMITED
Adults Services,Adult Social Care,Older People (Aged 65 or over) including Older Mental Ill,Physical Dis Commissioning,Social Care - Homecare,23/12/2015,3576634,541.88,SANCTUARY HOME CARE LIMITED
Adults Services,Adult Social Care,Older People (Aged 65 or over) including Older Mental Ill,Physical Dis Commissioning,Social Care - Homecare,09/12/2015,3568179,541.90,SANCTUARY HOME CARE LIMITED
Adults Services,Adult Social Care,Older People (Aged 65 or over) including Older Mental Ill,Physical Dis Commissioning,Social Care - Homecare,16/12/2015,3571610,541.90,SANCTUARY HOME CARE LIMITED
Children's Services,No Service Specified,No Division Specified,Schools Catering,Kitchen Supplies - Food and Beverages,02/12/2015,3543680,542.09,Thomas Ridley & Son Ltd
Adults Services,Adult Social Care,Older People (Aged 65 or over) including Older Mental Ill,Physical Dis Commissioning,Social Care - Homecare,23/12/2015,3576201,542.10,AGE UK EAST LONDON
Adults Services,Adult Social Care,Adults Aged Under 65 with Learning Disabilities,Contr to LD Prov PL Admin,Computing - Purchase of Software,04/12/2015,3548516,542.25,The Speech Centre
Adults Services,Adult Social Care,Older People (Aged 65 or over) including Older Mental Ill,Older People Commissioning,Social Care - Homecare,09/12/2015,3566825,542.36,ATHLONE CARE LTD
Adults Services,Adult Social Care,Older People (Aged 65 or over) including Older Mental Ill,Older People Commissioning,Social Care - Homecare,23/12/2015,3576067,542.36,ATHLONE CARE LTD
Adults Services,Adult Social Care,Older People (Aged 65 or over) including Older Mental Ill,Older People Commissioning,Social Care - Direct Payments,09/12/2015,3567635,542.50,DAVID HOWARD LTD CLIENT ACCOUNT
Adults Services,Adult Social Care,Older People (Aged 65 or over) including Older Mental Ill,Older People Commissioning,Social Care - Homecare,18/12/2015,3573616,542.85,Oasis Care & Training Agency
Adults Services,Adult Social Care,Older People (Aged 65 or over) including Older Mental Ill,Older People Commissioning,Social Care - Homecare,18/12/2015,3573624,542.85,Oasis Care & Training Agency
Adults Services,Adult Social Care,Older People (Aged 65 or over) including Older Mental Ill,Older People Commissioning,Social Care - Homecare,18/12/2015,3573640,542.85,Oasis Care & Training Agency
Adults Services,Adult Social Care,Older People (Aged 65 or over) including Older Mental Ill,Older People Commissioning,Social Care - Direct Payments,09/12/2015,3567463,543.08,DAVID HOWARD LTD CLIENT ACCOUNT
Children's Services,No Service Specified,No Division Specified,Schools Catering,Kitchen Supplies - Food and Beverages,14/12/2015,3558868,543.09,William White Meats Ltd
Development & Renewal,Corporate & Democratic Core,Corporate Management,D & R Supp Serv Holding A/c,Water Services - Metered,23/12/2015,3569026,543.15,Thames Water Utilities LTD
Adults Services,Adult Social Care,Older People (Aged 65 or over) including Older Mental Ill,Older People Commissioning,Social Care - Homecare,18/12/2015,3573516,543.75,SEVACARE UK LTD
Resource Services,Corporate & Democratic Core,Corporate Management,Pensions,Training Expenses - Staff External Training (UK Based),16/12/2015,3570617,544.00,London Borough of Havering
Adults Services,Adult Social Care,Older People (Aged 65 or over) including Older Mental Ill,Physical Dis Commissioning,Social Care - Direct Payments,09/12/2015,3567420,544.32,DAVID HOWARD LTD CLIENT ACCOUNT
Communities & Localities,Other Operating Income and Expenditure,Trading Account Surpluses and Deficits,Vehicle Maintenance Operation,Spare Parts,07/12/2015,3548544,544.49,Bartram Mowers Ltd
Adults Services,Public Health,Smoking and Tobacco,Public Health Team - 2,Payments to Private Contractors - Other Contractors,11/12/2015,3566110,544.89,FLORIDA PHARMACY
Communities & Localities,Education Services,Services to Young People and Other Community Learners,LAPS 1 - 4,Educational/Training Supplies - Curriculum Visits/Activities,14/12/2015,3560686,545.00,Lifeskills Development Ltd
Adults Services,Adult Social Care,Older People (Aged 65 or over) including Older Mental Ill,Older People Commissioning,Social Care - Homecare,18/12/2015,3573088,545.06,Mantra Recruitment
Adults Services,Adult Social Care,Older People (Aged 65 or over) including Older Mental Ill,Older People Commissioning,Social Care - Homecare,18/12/2015,3573100,545.06,Mantra Recruitment
Children's Services,No Service Specified,No Division Specified,Schools Catering,Kitchen Supplies - Food and Beverages,14/12/2015,3557523,545.40,William White Meats Ltd
Adults Services,Adult Social Care,Older People (Aged 65 or over) including Older Mental Ill,Learning Dis Commissioning,Social Care - Homecare,04/12/2015,3558667,545.49,Outward Housing
Development & Renewal,No Service Specified,No Division Specified,CLM Energy,Water Services - Metered,23/12/2015,3565928,545.52,Thames Water Utilities LTD
Adults Services,Adult Social Care,Older People (Aged 65 or over) including Older Mental Ill,Older People Commissioning,Social Care - Homecare,04/12/2015,3565153,545.68,COMMUNITY CARE CONSORTIUM
Children's Services,No Service Specified,No Division Specified,Sch. Meals A/c - C.F.S. Upper (Harley Grove),Kitchen Supplies - Food and Beverages,16/12/2015,3545765,546.25,Chicken Joes
Children's Services,No Service Specified,No Division Specified,Sch. Meals A/c - C.F.S. Upper (Harley Grove),Kitchen Supplies - Food and Beverages,16/12/2015,3565746,546.25,Chicken Joes
Children's Services,No Service Specified,No Division Specified,Schools Catering,Kitchen Supplies - Food and Beverages,09/12/2015,3555476,546.61,William White Meats Ltd
Adults Services,Adult Social Care,Older People (Aged 65 or over) including Older Mental Ill,Older People Commissioning,Social Care - Homecare,16/12/2015,3571216,546.90,LONDON COMMUNITY HOMECARE LTD
Adults Services,Adult Social Care,Older People (Aged 65 or over) including Older Mental Ill,Older People Commissioning,Social Care - Homecare,16/12/2015,3571226,546.94,LONDON COMMUNITY HOMECARE LTD
Children's Services,Children's Social Care,Children Looked After,S23 Fam Pl In-Hse-S/Term F/C,Childrens Act Section 23 - Placement Fee,02/12/2015,3560527,548.57,Mrs Hanifa Akhter Bari
Children's Services,Children's Social Care,Children Looked After,S23 Fam Pl In-Hse-S/Term F/C,Childrens Act Section 23 - Placement Fee,04/12/2015,3563382,548.57,Ms Rebecca McDonald
Communities & Localities,Cultural and Related Services,Recreation & Sport,Sports Development,Recreational Activities,18/12/2015,3558818,548.75,Greenwich Leisure LTD
Adults Services,Adult Social Care,Older People (Aged 65 or over) including Older Mental Ill,Older People Commissioning,Social Care - Homecare,04/12/2015,3565416,549.02,SANCTUARY HOME CARE LIMITED
Adults Services,Adult Social Care,Older People (Aged 65 or over) including Older Mental Ill,Older People Commissioning,Social Care - Homecare,09/12/2015,3568148,549.02,SANCTUARY HOME CARE LIMITED
Children's Services,No Service Specified,No Division Specified,Welfare Catering,Kitchen Supplies - Food and Beverages,04/12/2015,3546165,549.14,William White Meats Ltd
Adults Services,Adult Social Care,Older People (Aged 65 or over) including Older Mental Ill,Older People Commissioning,Social Care - Direct Payments,09/12/2015,3567449,549.28,DAVID HOWARD LTD CLIENT ACCOUNT
Adults Services,Adult Social Care,Older People (Aged 65 or over) including Older Mental Ill,Older People Commissioning,Social Care - Homecare,18/12/2015,3573947,549.45,Soma Healthcare Ltd
Children's Services,No Service Specified,No Division Specified,Schools Catering,Kitchen Supplies - Food and Beverages,23/12/2015,3560935,549.75,Thomas Ridley & Son Ltd
Adults Services,Adult Social Care,Older People (Aged 65 or over) including Older Mental Ill,Older People Commissioning,Social Care - Homecare,18/12/2015,3573638,549.90,Oasis Care & Training Agency
Adults Services,Adult Social Care,Adults Aged Under 65 with Mental Health Needs,Pritchards Road,Water Services - Metered,09/12/2015,3565933,549.94,Thames Water Utilities LTD
Children's Services,Education Services,Early Years,Ocean CC,Educational/Training Supplies - Resources,11/12/2015,3556866,550.00,COMMUNITY PRODUCTS (UK) LTD
Communities & Localities,Education Services,Services to Young People and Other Community Learners,Positive Activities Young Pple,Services - Professional Fees - Consultants Fees,23/12/2015,3560348,550.00,East End Community Foundation
Resource Services,Corporate & Democratic Core,Corporate Management,HR Central Services,Education & Training - Non Staff Tuition Fees,23/12/2015,3558816,550.00,Pulse First Aid Ltd
Children's Services,No Service Specified,No Division Specified,Welfare Catering,Kitchen Supplies - Food and Beverages,18/12/2015,3557387,550.39,William White Meats Ltd
Adults Services,Adult Social Care,Older People (Aged 65 or over) including Older Mental Ill,Physical Dis Commissioning,Social Care - Direct Payments,09/12/2015,3567166,550.56,DAVID HOWARD LTD CLIENT ACCOUNT
Adults Services,Adult Social Care,Older People (Aged 65 or over) including Older Mental Ill,Older People Commissioning,Social Care - Homecare,18/12/2015,3573691,550.61,LONDON COMMUNITY HOMECARE LTD
Resource Services,No Service Specified,No Division Specified,Balance Sheet,Opted-Out Schools Payroll Deductions - AVC - Opt-Out Schs Payments,09/12/2015,3566303,550.83,PRUDENTIAL ASSURANCE COMPANY LTD
Adults Services,Adult Social Care,Older People (Aged 65 or over) including Older Mental Ill,Older People Commissioning,Social Care - Homecare,09/12/2015,3568103,551.00,CIRCLE SUPPORT CONSORTIUM
Children's Services,No Service Specified,No Division Specified,Schools Catering,Kitchen Supplies - Catering Equipment,07/12/2015,3557276,551.25,W V Howe LTD
Children's Services,No Service Specified,No Division Specified,Schools Catering,Kitchen Supplies - Food and Beverages,23/12/2015,3568988,551.59,William White Meats Ltd
Development & Renewal,Corporate & Democratic Core,Corporate Management,Cambridge Heath Complex Bldg,Services - Professional Fees - Security Fees,09/12/2015,3557322,552.00,1st Ace Response and Guarding
Communities & Localities,Other Operating Income and Expenditure,Trading Account Surpluses and Deficits,Vehicle Maintenance Operation,Spare Parts,14/12/2015,3555639,553.07,Bartram Mowers Ltd
Adults Services,Adult Social Care,Older People (Aged 65 or over) including Older Mental Ill,Older People Commissioning,Social Care - Homecare,04/12/2015,3565347,554.32,MiHOMECARE LIMITED
Children's Services,No Service Specified,No Division Specified,Schools Catering,Kitchen Supplies - Food and Beverages,21/12/2015,3564537,554.36,William White Meats Ltd
Adults Services,Adult Social Care,Older People (Aged 65 or over) including Older Mental Ill,Older People Commissioning,Social Care - Direct Payments,09/12/2015,3567698,554.59,DAVID HOWARD LTD CLIENT ACCOUNT
Adults Services,Adult Social Care,Older People (Aged 65 or over) including Older Mental Ill,Mental Health Commissioning,Social Care - Homecare,09/12/2015,3568227,554.80,Soma Healthcare Ltd
Resource Services,Corporate & Democratic Core,Corporate Management,Occupational Health,Social Care - Nursing Care,09/12/2015,3566613,554.80,Barts Health NHS Trust
Development & Renewal,Corporate & Democratic Core,Corporate Management,62 Roman Road Bldg,Repairs and Maintenance - Responsive - Heating Systems,04/12/2015,3542385,555.00,Controlcare Ltd
Children's Services,No Service Specified,No Division Specified,Welfare Catering,Kitchen Supplies - Food and Beverages,23/12/2015,3563264,555.52,Thomas Ridley & Son Ltd
Adults Services,Adult Social Care,Older People (Aged 65 or over) including Older Mental Ill,Learning Dis Commissioning,Social Care - Homecare,02/12/2015,3563165,556.14,SANCTUARY HOME CARE LIMITED
Adults Services,Adult Social Care,Older People (Aged 65 or over) including Older Mental Ill,Learning Dis Commissioning,Social Care - Homecare,09/12/2015,3568186,556.14,SANCTUARY HOME CARE LIMITED
Adults Services,Adult Social Care,Older People (Aged 65 or over) including Older Mental Ill,Older People Commissioning,Social Care - Direct Payments,09/12/2015,3567310,556.67,D D PAYROLL SERVICES
Adults Services,Adult Social Care,Older People (Aged 65 or over) including Older Mental Ill,Mental Health Commissioning,Social Care - Direct Payments,09/12/2015,3567453,556.85,PayPacket Ltd
Adults Services,Adult Social Care,Older People (Aged 65 or over) including Older Mental Ill,Mental Health Commissioning,Social Care - Day Care,23/12/2015,3576290,556.87,St Hilda's East Community Centre
Adults Services,Public Health,Smoking and Tobacco,Public Health Team - 2,Payments to Private Contractors - Other Contractors,23/12/2015,3566149,557.40,Ali's Pharmacy
"Directorate of Law, Probity and Governance",Corporate & Democratic Core,Corporate Management,Business Team,Staff Advertising,09/12/2015,3555865,557.50,Penna PLC
Children's Services,No Service Specified,No Division Specified,Schools Catering,Kitchen Supplies - Food and Beverages,14/12/2015,3557478,557.97,William White Meats Ltd
Adults Services,Adult Social Care,Older People (Aged 65 or over) including Older Mental Ill,Physical Dis Commissioning,Social Care - Homecare,09/12/2015,3568071,558.02,MiHOMECARE LIMITED
Adults Services,Adult Social Care,Older People (Aged 65 or over) including Older Mental Ill,Older People Commissioning,Social Care - Homecare,16/12/2015,3571067,558.25,SEVACARE UK LTD
Adults Services,Adult Social Care,Older People (Aged 65 or over) including Older Mental Ill,Older People Commissioning,Social Care - Homecare,09/12/2015,3568330,558.45,Soma Healthcare Ltd
Children's Services,No Service Specified,No Division Specified,Contract Services M & A,Kitchen Supplies - Food and Beverages,23/12/2015,3564469,558.88,Jones Brothers
Adults Services,Adult Social Care,Older People (Aged 65 or over) including Older Mental Ill,Older People Commissioning,Social Care - Homecare,18/12/2015,3573050,558.90,Mantra Recruitment
Adults Services,Adult Social Care,Older People (Aged 65 or over) including Older Mental Ill,Older People Commissioning,Social Care - Homecare,16/12/2015,3570757,559.08,Carewatch Newham Ltd
Adults Services,Adult Social Care,Older People (Aged 65 or over) including Older Mental Ill,Older People Commissioning,Social Care - Homecare,16/12/2015,3570790,559.08,Carewatch Newham Ltd
Children's Services,No Service Specified,No Division Specified,Schools Catering,Kitchen Supplies - Food and Beverages,02/12/2015,3560318,559.10,William White Meats Ltd
Children's Services,No Service Specified,No Division Specified,Contract Services M & A,Kitchen Supplies - Food and Beverages,23/12/2015,3560904,559.48,Jones Brothers
Adults Services,Adult Social Care,Older People (Aged 65 or over) including Older Mental Ill,Older People Commissioning,Social Care - Homecare,23/12/2015,3576569,559.72,SANCTUARY HOME CARE LIMITED
Adults Services,Adults Services,Adults Services,Adults Services,General,09/12/2015,Payment Card,560.00,travell inn ltd
Adults Services,Adult Social Care,Older People (Aged 65 or over) including Older Mental Ill,Physical Dis Commissioning,Social Care - Direct Payments,09/12/2015,3567421,560.35,DAVID HOWARD LTD CLIENT ACCOUNT
Adults Services,Adult Social Care,Older People (Aged 65 or over) including Older Mental Ill,Physical Dis Commissioning,Social Care - Homecare,02/12/2015,3562687,560.46,LONDON COMMUNITY HOMECARE LTD
Adults Services,Adult Social Care,Older People (Aged 65 or over) including Older Mental Ill,Older People Commissioning,Social Care - Homecare,09/12/2015,3566794,560.90,AQUAFLO CARE LTD
Adults Services,Adult Social Care,Older People (Aged 65 or over) including Older Mental Ill,Older People Commissioning,Social Care - Homecare,16/12/2015,3570651,560.90,AQUAFLO CARE LTD
Development & Renewal,Corporate & Democratic Core,Corporate Management,John Onslow House,Tools and Equipment - Purchase,21/12/2015,3558740,561.15,The Maintenance Supply Co Ltd
Children's Services,No Service Specified,No Division Specified,Schools Catering,Tools and Equipment - Purchase,02/12/2015,3560709,561.20,E & R Moffat LTD
Adults Services,Adult Social Care,Older People (Aged 65 or over) including Older Mental Ill,Learning Dis Commissioning,Social Care - Homecare,04/12/2015,3565338,561.64,MiHOMECARE LIMITED
Adults Services,Adult Social Care,Older People (Aged 65 or over) including Older Mental Ill,Older People Commissioning,Social Care - Homecare,16/12/2015,3571316,561.70,MiHOMECARE LIMITED
Adults Services,Adult Social Care,Older People (Aged 65 or over) including Older Mental Ill,Mental Health Commissioning,Social Care - Supported Accommodation,18/12/2015,3562978,561.84,Look Ahead Care & Support Ltd
Adults Services,Adult Social Care,Older People (Aged 65 or over) including Older Mental Ill,Physical Dis Commissioning,Social Care - Direct Payments,09/12/2015,3567717,562.30,DAVID HOWARD LTD CLIENT ACCOUNT
Children's Services,No Service Specified,No Division Specified,Schools Catering,Kitchen Supplies - Food and Beverages,23/12/2015,3558749,562.67,Thomas Ridley & Son Ltd
Adults Services,Adult Social Care,Older People (Aged 65 or over) including Older Mental Ill,Older People Commissioning,Social Care - Day Care,21/12/2015,3563024,563.88,Peabody Trust
Children's Services,No Service Specified,No Division Specified,Schools Catering,Kitchen Supplies - Food and Beverages,18/12/2015,3557156,564.52,Thomas Ridley & Son Ltd
Children's Services,No Service Specified,No Division Specified,Contract Services M & A,Kitchen Supplies - Food and Beverages,23/12/2015,3564376,564.64,Jones Brothers
Adults Services,Adult Social Care,Older People (Aged 65 or over) including Older Mental Ill,Learning Dis Commissioning,Social Care - Day Care,23/12/2015,3565049,564.66,HOFFMANN FOUNDATION FOR AUTISM
Adults Services,Adult Social Care,Older People (Aged 65 or over) including Older Mental Ill,Older People Commissioning,Social Care - Homecare,18/12/2015,3573969,564.80,Soma Healthcare Ltd
Development & Renewal,General Fund/Council Fund,Homelessness,Hmlss Fams-Dilapidations,Third Party Payments - One Room,18/12/2015,3572919,565.00,Fairview Lets
Adults Services,Adult Social Care,Older People (Aged 65 or over) including Older Mental Ill,Older People Commissioning,Social Care - Day Care,23/12/2015,3576334,565.29,St Hilda's East Community Centre
Adults Services,Adult Social Care,Older People (Aged 65 or over) including Older Mental Ill,Older People Commissioning,Social Care - Homecare,02/12/2015,3562831,565.50,CIRCLE SUPPORT CONSORTIUM
Adults Services,Adult Social Care,Older People (Aged 65 or over) including Older Mental Ill,Older People Commissioning,Social Care - Homecare,02/12/2015,3562877,565.50,CIRCLE SUPPORT CONSORTIUM
Adults Services,Adult Social Care,Older People (Aged 65 or over) including Older Mental Ill,Older People Commissioning,Social Care - Homecare,02/12/2015,3562923,565.50,CIRCLE SUPPORT CONSORTIUM
Adults Services,Adult Social Care,Older People (Aged 65 or over) including Older Mental Ill,Older People Commissioning,Social Care - Homecare,16/12/2015,3571105,565.50,SEVACARE UK LTD
Adults Services,Adult Social Care,Older People (Aged 65 or over) including Older Mental Ill,Older People Commissioning,Social Care - Homecare,16/12/2015,3571150,565.50,SEVACARE UK LTD
Adults Services,Adult Social Care,Older People (Aged 65 or over) including Older Mental Ill,Older People Commissioning,Social Care - Homecare,16/12/2015,3571160,565.50,SEVACARE UK LTD
Adults Services,Adult Social Care,Older People (Aged 65 or over) including Older Mental Ill,Older People Commissioning,Social Care - Homecare,18/12/2015,3573554,565.50,SEVACARE UK LTD
Adults Services,Adult Social Care,Older People (Aged 65 or over) including Older Mental Ill,Older People Commissioning,Social Care - Homecare,18/12/2015,3573586,565.50,SEVACARE UK LTD
Adults Services,Adult Social Care,Older People (Aged 65 or over) including Older Mental Ill,Older People Commissioning,Social Care - Homecare,18/12/2015,3573596,565.50,SEVACARE UK LTD
Adults Services,Adult Social Care,Older People (Aged 65 or over) including Older Mental Ill,Older People Commissioning,Social Care - Homecare,18/12/2015,3573755,566.10,LONDON COMMUNITY HOMECARE LTD
Communities & Localities,Other Operating Income and Expenditure,Trading Account Surpluses and Deficits,Client Fleet Mngmnt,Transport Dept Charges,07/12/2015,3556515,567.60,L&F Plant Hire t/a Tipperhire
Communities & Localities,Other Operating Income and Expenditure,Trading Account Surpluses and Deficits,Client Fleet Mngmnt,Transport Dept Charges,07/12/2015,3556529,567.60,L&F Plant Hire t/a Tipperhire
Communities & Localities,Other Operating Income and Expenditure,Trading Account Surpluses and Deficits,Client Fleet Mngmnt,Transport Dept Charges,07/12/2015,3564201,567.60,L&F Plant Hire t/a Tipperhire
Communities & Localities,Other Operating Income and Expenditure,Trading Account Surpluses and Deficits,Client Fleet Mngmnt,Transport Dept Charges,16/12/2015,3570453,567.60,L&F Plant Hire t/a Tipperhire
Communities & Localities,Other Operating Income and Expenditure,Trading Account Surpluses and Deficits,Client Fleet Mngmnt,Transport Dept Charges,16/12/2015,3570510,567.60,L&F Plant Hire t/a Tipperhire
Communities & Localities,Other Operating Income and Expenditure,Trading Account Surpluses and Deficits,Client Fleet Mngmnt,Transport Dept Charges,23/12/2015,3570197,567.60,L&F Plant Hire t/a Tipperhire
Communities & Localities,Other Operating Income and Expenditure,Trading Account Surpluses and Deficits,Client Fleet Mngmnt,Transport Dept Charges,23/12/2015,3570486,567.60,L&F Plant Hire t/a Tipperhire
Communities & Localities,Other Operating Income and Expenditure,Trading Account Surpluses and Deficits,Client Fleet Mngmnt,Transport Dept Charges,23/12/2015,3570500,567.60,L&F Plant Hire t/a Tipperhire
Adults Services,Adult Social Care,Other Adult Services,First Response Hospital Team,Computing - Purchase of Software,16/12/2015,3560477,567.71,Specialist Computer Centres PLC
Children's Services,No Service Specified,No Division Specified,Schools Catering,Kitchen Supplies - Food and Beverages,09/12/2015,3547474,568.19,Thomas Ridley & Son Ltd
Communities & Localities,Education Services,Services to Young People and Other Community Learners,LAPS 1 - 4,Educational/Training Supplies - Curriculum Visits/Activities,23/12/2015,3566700,568.33,Parkwood Leisure LTD
Children's Services,No Service Specified,No Division Specified,Schools Catering,Kitchen Supplies - Food and Beverages,14/12/2015,3557430,568.61,William White Meats Ltd
Adults Services,Adult Social Care,Older People (Aged 65 or over) including Older Mental Ill,Older People Commissioning,Social Care - Homecare,09/12/2015,3568257,569.40,Soma Healthcare Ltd
Children's Services,No Service Specified,No Division Specified,Schools Catering,Kitchen Supplies - Food and Beverages,23/12/2015,3563368,569.91,Thomas Ridley & Son Ltd
Children's Services,Education Services,Other Strategic Functions,SEN External Travel,Non Staff Transport Costs - Reimbursement,07/12/2015,3564909,570.00,Mile End Car Hire Limited
Children's Services,Children's Social Care,Other Children's and Family Services,Signs Of Safety,Meeting Expenses,21/12/2015,3574550,570.00,Osmani Trust
Adults Services,Adult Social Care,Older People (Aged 65 or over) including Older Mental Ill,Older People Commissioning,Social Care - Direct Payments,09/12/2015,3567317,570.05,DAVID HOWARD LTD CLIENT ACCOUNT
Adults Services,Adult Social Care,Older People (Aged 65 or over) including Older Mental Ill,Older People Commissioning,Social Care - Homecare,09/12/2015,3568050,570.07,REDSPOT HOMECARE (CONTRACTS) LTD
Communities & Localities,Public Health,Substance Misuse,Public Health Funding,Refuse Collection,23/12/2015,3570463,570.25,PHS Group Plc
Communities & Localities,Education Services,Services to Young People and Other Community Learners,LAPS 1 - 4,Educational/Training Supplies - Curriculum Visits/Activities,09/12/2015,3564236,570.83,AVON TYRRELL YOUTH CLUBS UK
Development & Renewal,No Service Specified,No Division Specified,Cleaning Materials & Equipment,Materials - Cleaning Materials,23/12/2015,3560688,571.78,The Maintenance Supply Co Ltd
Adults Services,Adult Social Care,Older People (Aged 65 or over) including Older Mental Ill,Older People Commissioning,Social Care - Direct Payments,09/12/2015,3567202,571.95,DAVID HOWARD LTD CLIENT ACCOUNT
Communities & Localities,Education Services,Services to Young People and Other Community Learners,YCS Buildings,Recreational Equipment - Recreational Equipment,14/12/2015,3559696,571.97,Newitts
Communities & Localities,Peer Work,Peer Work,Peer Work,Curriculum Visits/Activities,15/12/2015,Payment Card,572.22,www.discount-london.com
Children's Services,No Service Specified,No Division Specified,Schools Library,Printing - External,07/12/2015,3563233,572.37,Bertram Library Services
Adults Services,Adult Social Care,Older People (Aged 65 or over) including Older Mental Ill,Older People Commissioning,Social Care - Homecare,02/12/2015,3562821,572.75,CIRCLE SUPPORT CONSORTIUM
Adults Services,Adult Social Care,Older People (Aged 65 or over) including Older Mental Ill,Older People Commissioning,Social Care - Homecare,16/12/2015,3571162,572.75,SEVACARE UK LTD
Adults Services,Adult Social Care,Older People (Aged 65 or over) including Older Mental Ill,Older People Commissioning,Social Care - Homecare,18/12/2015,3573598,572.75,SEVACARE UK LTD
Children's Services,No Service Specified,No Division Specified,Schools Catering,Kitchen Supplies - Food and Beverages,02/12/2015,3544165,572.90,Thomas Ridley & Son Ltd
Adults Services,Adult Social Care,Older People (Aged 65 or over) including Older Mental Ill,Older People Commissioning,Social Care - Homecare,09/12/2015,3568035,573.11,REDSPOT HOMECARE (CONTRACTS) LTD
Adults Services,Adult Social Care,Older People (Aged 65 or over) including Older Mental Ill,Mental Health Commissioning,Social Care - Homecare,16/12/2015,3570762,573.20,Carewatch Newham Ltd
Adults Services,Adult Social Care,Older People (Aged 65 or over) including Older Mental Ill,Older People Commissioning,Social Care - Homecare,16/12/2015,3570792,573.20,Carewatch Newham Ltd
Children's Services,No Service Specified,No Division Specified,Schools Catering,Kitchen Supplies - Food and Beverages,04/12/2015,3545846,573.41,Thomas Ridley & Son Ltd
Communities & Localities,Adult Social Care,Other Adult Services,Section 256 Agreements,Medical Requisites,23/12/2015,3566141,573.70,Boots UK Ltd Store 185
Adults Services,Adult Social Care,Older People (Aged 65 or over) including Older Mental Ill,Physical Dis Commissioning,Social Care - Homecare,02/12/2015,3562670,573.96,LONDON COMMUNITY HOMECARE LTD
Adults Services,Adult Social Care,Older People (Aged 65 or over) including Older Mental Ill,Physical Dis Commissioning,Social Care - Homecare,09/12/2015,3567802,573.96,LONDON COMMUNITY HOMECARE LTD
Adults Services,Adult Social Care,Older People (Aged 65 or over) including Older Mental Ill,Physical Dis Commissioning,Social Care - Homecare,09/12/2015,3567931,573.96,LONDON COMMUNITY HOMECARE LTD
Adults Services,Adult Social Care,Older People (Aged 65 or over) including Older Mental Ill,Physical Dis Commissioning,Social Care - Homecare,16/12/2015,3571188,573.96,LONDON COMMUNITY HOMECARE LTD
Adults Services,Adult Social Care,Older People (Aged 65 or over) including Older Mental Ill,Older People Commissioning,Social Care - Homecare,02/12/2015,3561276,574.00,Excelcare (Home Care Division) LTD
Children's Services,No Service Specified,No Division Specified,Schools Catering,Kitchen Supplies - Food and Beverages,21/12/2015,3564470,574.04,William White Meats Ltd
Children's Services,No Service Specified,No Division Specified,Schools Catering,Kitchen Supplies - Food and Beverages,16/12/2015,3549651,574.73,Thomas Ridley & Son Ltd
Children's Services,Education Services,Other Strategic Functions,Education Psychologists GF,Comms - Purchase of Equipment,23/12/2015,3572687,576.00,Daisy Communications PLC
Children's Services,Education Services,Early Years,EYS Mangt & Admin GF,Computing - Internet,23/12/2015,3572692,576.00,Daisy Communications PLC
Adults Services,Adult Social Care,Older People (Aged 65 or over) including Older Mental Ill,Older People Commissioning,Social Care - Homecare,23/12/2015,3576559,577.54,SANCTUARY HOME CARE LIMITED
Children's Services,Education Services,Early Years,Meath Gardens CC,Materials - Cleaning Materials,18/12/2015,3556810,578.35,The Maintenance Supply Co Ltd
Development & Renewal,No Service Specified,No Division Specified,Cleaning Materials & Equipment,Materials - Cleaning Materials,09/12/2015,3555590,578.87,IOD Skip Hire Ltd
Children's Services,No Service Specified,No Division Specified,Schools Catering,Kitchen Supplies - Food and Beverages,18/12/2015,3559862,579.00,William White Meats Ltd
Adults Services,Adult Social Care,Older People (Aged 65 or over) including Older Mental Ill,Older People Commissioning,Social Care - Homecare,18/12/2015,3573836,579.15,CIRCLE SUPPORT CONSORTIUM
Adults Services,Adult Social Care,Older People (Aged 65 or over) including Older Mental Ill,Older People Commissioning,Social Care - Homecare,18/12/2015,3573942,579.15,Soma Healthcare Ltd
Adults Services,Adult Social Care,Older People (Aged 65 or over) including Older Mental Ill,Older People Commissioning,Social Care - Homecare,23/12/2015,3576455,579.15,CIRCLE SUPPORT CONSORTIUM
Children's Services,No Service Specified,No Division Specified,Schools Catering,Kitchen Supplies - Food and Beverages,02/12/2015,3544555,579.21,Thomas Ridley & Son Ltd
Children's Services,No Service Specified,No Division Specified,Schools Catering,Kitchen Supplies - Food and Beverages,11/12/2015,3549063,579.39,Thomas Ridley & Son Ltd
Development & Renewal,No Service Specified,No Division Specified,Cleaning Materials & Equipment,Materials - Cleaning Materials,23/12/2015,3560374,579.60,GREENER SOLUTIONS LTD
Adults Services,Adult Social Care,Older People (Aged 65 or over) including Older Mental Ill,Physical Dis Commissioning,Social Care - Homecare,16/12/2015,3570785,580.36,Carewatch Newham Ltd
Adults Services,Adult Social Care,Older People (Aged 65 or over) including Older Mental Ill,Physical Dis Commissioning,Social Care - Homecare,02/12/2015,3561252,580.63,Carewatch Newham Ltd
Children's Services,No Service Specified,No Division Specified,Schools Catering,Kitchen Supplies - Food and Beverages,09/12/2015,3546239,581.04,Thomas Ridley & Son Ltd
Children's Services,No Service Specified,No Division Specified,Schools Catering,Kitchen Supplies - Food and Beverages,09/12/2015,3548282,583.47,Thomas Ridley & Son Ltd
Adults Services,Public Health,Smoking and Tobacco,Public Health Team - 2,Payments to Private Contractors - Other Contractors,23/12/2015,3566137,583.90,ALLENS PHARMACY
Adults Services,Adult Social Care,Older People (Aged 65 or over) including Older Mental Ill,Older People Commissioning,Social Care - Homecare,09/12/2015,3568345,584.00,Soma Healthcare Ltd
Communities & Localities,Environmental and Regulatory Services,Community Safety (CCTV),CCTV Minor Works,Payments to Private Contractors - Minor Works,14/12/2015,3569805,584.00,Comfort Zone
Adults Services,Adult Social Care,Older People (Aged 65 or over) including Older Mental Ill,Physical Dis Commissioning,Social Care - Direct Payments,09/12/2015,3567601,584.17,DAVID HOWARD LTD CLIENT ACCOUNT
Children's Services,No Service Specified,No Division Specified,Contract Services M & A,Kitchen Supplies - Food and Beverages,23/12/2015,3564588,584.38,Jones Brothers
Communities & Localities,Environmental and Regulatory Services,Community Safety (CCTV),CCTV,Payments to Private Contractors - CCTV Maintenance,16/12/2015,3570264,584.40,Hackney Homes Ltd
Adults Services,Public Health,Smoking and Tobacco,Public Health Team - 2,Payments to Private Contractors - Other Contractors,23/12/2015,3566122,586.80,Sonrak Ltd t/a Massighams Chemist
Adults Services,Adult Social Care,Older People (Aged 65 or over) including Older Mental Ill,Older People Commissioning,Social Care - Homecare,02/12/2015,3562685,587.32,LONDON COMMUNITY HOMECARE LTD
Adults Services,Adult Social Care,Older People (Aged 65 or over) including Older Mental Ill,Older People Commissioning,Social Care - Homecare,09/12/2015,3567815,587.32,LONDON COMMUNITY HOMECARE LTD
Adults Services,Adult Social Care,Older People (Aged 65 or over) including Older Mental Ill,Older People Commissioning,Social Care - Homecare,09/12/2015,3567945,587.32,LONDON COMMUNITY HOMECARE LTD
Adults Services,Adult Social Care,Older People (Aged 65 or over) including Older Mental Ill,Older People Commissioning,Social Care - Homecare,16/12/2015,3571202,587.32,LONDON COMMUNITY HOMECARE LTD
Adults Services,Adult Social Care,Older People (Aged 65 or over) including Older Mental Ill,Physical Dis Commissioning,Social Care - Homecare,18/12/2015,3573665,588.66,LONDON COMMUNITY HOMECARE LTD
Adults Services,Adult Social Care,Older People (Aged 65 or over) including Older Mental Ill,Physical Dis Commissioning,Social Care - Homecare,09/12/2015,3567867,588.81,LONDON COMMUNITY HOMECARE LTD
Adults Services,Adult Social Care,Older People (Aged 65 or over) including Older Mental Ill,Older People Commissioning,Social Care - Homecare,23/12/2015,3576700,589.15,Soma Healthcare Ltd
Children's Services,No Service Specified,No Division Specified,Sch. Meals A/c - C.F.S. Upper (Harley Grove),Kitchen Supplies - Food and Beverages,16/12/2015,3565647,589.25,Chicken Joes
Development & Renewal,No Service Specified,No Division Specified,Cleaning Materials & Equipment,Materials - Cleaning Materials,09/12/2015,3548170,590.00,GREENER SOLUTIONS LTD
Resource Services,No Service Specified,No Division Specified,Balance Sheet,Opted-Out Schools Payroll Deductions - AVC - Opt-Out Schs Payments,09/12/2015,3566303,591.00,PRUDENTIAL ASSURANCE COMPANY LTD
Adults Services,Adult Social Care,Older People (Aged 65 or over) including Older Mental Ill,Physical Dis Commissioning,Social Care - Direct Payments,09/12/2015,3567721,591.57,DAVID HOWARD LTD CLIENT ACCOUNT
Adults Services,Adult Social Care,Older People (Aged 65 or over) including Older Mental Ill,Older People Commissioning,Social Care - Homecare,09/12/2015,3568172,591.80,SANCTUARY HOME CARE LIMITED
Adults Services,Adult Social Care,Older People (Aged 65 or over) including Older Mental Ill,Physical Dis Commissioning,Social Care - Homecare,18/12/2015,3573964,594.00,Soma Healthcare Ltd
Adults Services,Adult Social Care,Older People (Aged 65 or over) including Older Mental Ill,Older People Commissioning,Social Care - Homecare,18/12/2015,3573974,594.00,Soma Healthcare Ltd
Adults Services,Adult Social Care,Older People (Aged 65 or over) including Older Mental Ill,Physical Dis Commissioning,Social Care - Homecare,18/12/2015,3573729,594.06,LONDON COMMUNITY HOMECARE LTD
Children's Services,No Service Specified,No Division Specified,Schools Catering,Kitchen Supplies - Food and Beverages,23/12/2015,3564064,594.33,Thomas Ridley & Son Ltd
Adults Services,Adult Social Care,Older People (Aged 65 or over) including Older Mental Ill,Older People Commissioning,Social Care - Homecare,16/12/2015,3571052,594.50,SEVACARE UK LTD
Adults Services,Adult Social Care,Older People (Aged 65 or over) including Older Mental Ill,Older People Commissioning,Social Care - Homecare,16/12/2015,3571170,594.50,SEVACARE UK LTD
Adults Services,Adult Social Care,Older People (Aged 65 or over) including Older Mental Ill,Older People Commissioning,Social Care - Homecare,02/12/2015,3561239,594.78,Carewatch Newham Ltd
Adults Services,Adult Social Care,Older People (Aged 65 or over) including Older Mental Ill,Older People Commissioning,Social Care - Homecare,16/12/2015,3570773,594.78,Carewatch Newham Ltd
Communities & Localities,Environmental and Regulatory Services,Community Safety (CCTV),CCTV Minor Works,Payments to Private Contractors - Minor Works,02/12/2015,3544267,595.00,Comfort Zone
Resource Services,Corporate & Democratic Core,Corporate Management,HR Central Services,Training Expenses - Staff External Training (UK Based),23/12/2015,3565588,595.00,Eliesha Training Ltd
Adults Services,Adult Social Care,Older People (Aged 65 or over) including Older Mental Ill,Older People Commissioning,Social Care - Homecare,04/12/2015,3565051,595.35,Mantra Recruitment
Adults Services,Adult Social Care,Older People (Aged 65 or over) including Older Mental Ill,Physical Dis Commissioning,Social Care - Homecare,09/12/2015,3567003,595.35,Mantra Recruitment
Children's Services,No Service Specified,No Division Specified,Schools Catering,Kitchen Supplies - Food and Beverages,23/12/2015,3563473,595.38,Thomas Ridley & Son Ltd
Adults Services,Adult Social Care,Older People (Aged 65 or over) including Older Mental Ill,Learning Dis Commissioning,Social Care - Homecare,09/12/2015,3558689,596.88,Outward Housing
Adults Services,Adult Social Care,Older People (Aged 65 or over) including Older Mental Ill,Learning Dis Commissioning,Social Care - Homecare,09/12/2015,3568308,598.60,Soma Healthcare Ltd
Adults Services,Adult Social Care,Older People (Aged 65 or over) including Older Mental Ill,Older People Commissioning,Social Care - Homecare,09/12/2015,3568134,598.94,SANCTUARY HOME CARE LIMITED
Adults Services,Adult Social Care,Older People (Aged 65 or over) including Older Mental Ill,Older People Commissioning,Social Care - Homecare,09/12/2015,3568139,598.94,SANCTUARY HOME CARE LIMITED
Adults Services,Adult Social Care,Older People (Aged 65 or over) including Older Mental Ill,Older People Commissioning,Social Care - Homecare,18/12/2015,3573925,598.94,SANCTUARY HOME CARE LIMITED
Adults Services,Adult Social Care,Older People (Aged 65 or over) including Older Mental Ill,Older People Commissioning,Social Care - Homecare,23/12/2015,3576561,598.94,SANCTUARY HOME CARE LIMITED
Adults Services,Adult Social Care,Older People (Aged 65 or over) including Older Mental Ill,Older People Commissioning,Social Care - Direct Payments,09/12/2015,3567697,599.63,DAVID HOWARD LTD CLIENT ACCOUNT
Children's Services,No Service Specified,No Division Specified,Schools Catering,Kitchen Supplies - Food and Beverages,07/12/2015,3555500,599.86,William White Meats Ltd
Adults Services,Adult Social Care,Other Adult Services,Reablement,Training Expenses - Staff External Training (UK Based),21/12/2015,3569208,600.00,E-voice Speech Recognition Ltd
Adults Services,Adult Social Care,Adults Aged Under 65 with Mental Health Needs,"BCF-Independent Living Project							",Training Expenses - Staff External Training (UK Based),21/12/2015,3569208,600.00,E-voice Speech Recognition Ltd
Children's Services,Education Services,Other Strategic Functions,SEN Reform,Stationery,18/12/2015,3566644,600.00,Love2Reward
Children's Services,Education Services,Early Years,Children Centre Central Team,SLA Services (Expenditure) - Service Level Agreements,23/12/2015,3574546,600.00,Quaker Social Action
"Directorate of Law, Probity and Governance",Corporate & Democratic Core,Corporate Management,Tower Design,Services - Professional Fees - Print Fees,21/12/2015,3498607,600.00,Good Impressions
Resource Services,Corporate & Democratic Core,Corporate Management,HR Central Services,Education & Training - Non Staff Tuition Fees,23/12/2015,3564759,600.00,Pulse First Aid Ltd
Children's Services,No Service Specified,No Division Specified,Sch. Meals A/c - C.F.S. Upper (Harley Grove),Kitchen Supplies - Food and Beverages,21/12/2015,3565791,601.25,Chicken Joes
Adults Services,Adult Social Care,Older People (Aged 65 or over) including Older Mental Ill,Older People Commissioning,Social Care - Day Care,21/12/2015,3562993,601.28,Peabody Trust
Children's Services,No Service Specified,No Division Specified,Contract Services M & A,Kitchen Supplies - Food and Beverages,23/12/2015,3564830,601.40,Jones Brothers
Children's Services,No Service Specified,No Division Specified,Schools Catering,Kitchen Supplies - Food and Beverages,23/12/2015,3565468,601.60,William White Meats Ltd
Adults Services,Adult Social Care,Older People (Aged 65 or over) including Older Mental Ill,Older People Commissioning,Social Care - Homecare,09/12/2015,3567881,602.17,LONDON COMMUNITY HOMECARE LTD
Adults Services,Adult Social Care,Older People (Aged 65 or over) including Older Mental Ill,Older People Commissioning,Social Care - Homecare,02/12/2015,3562644,604.00,Age UK Tower Hamlets
Children's Services,No Service Specified,No Division Specified,Welfare Catering,Kitchen Supplies - Food and Beverages,11/12/2015,3549565,605.53,William White Meats Ltd
Development & Renewal,No Service Specified,No Division Specified,Blackwall Reach,Other External Fees - Other External Fees,23/12/2015,3575959,605.67,LONDON BOROUGH OF TOWER HAMLETS
Children's Services,No Service Specified,No Division Specified,Schools Catering,Kitchen Supplies - Food and Beverages,18/12/2015,3556960,605.88,Thomas Ridley & Son Ltd
Adults Services,Adult Social Care,Older People (Aged 65 or over) including Older Mental Ill,Older People Commissioning,Social Care - Homecare,09/12/2015,3568216,605.90,Soma Healthcare Ltd
Adults Services,Adult Social Care,Older People (Aged 65 or over) including Older Mental Ill,Physical Dis Commissioning,Social Care - Homecare,18/12/2015,3573613,606.30,Oasis Care & Training Agency
Adults Services,Adult Social Care,Older People (Aged 65 or over) including Older Mental Ill,Physical Dis Commissioning,Social Care - Homecare,18/12/2015,3573637,606.30,Oasis Care & Training Agency
Adults Services,General Fund/Council Fund,Homelessness,Supporting People Services,SP - Block-Gross - Old People-Supp Needs,09/12/2015,3567135,606.67,CIRCLE SUPPORT CONSORTIUM
Adults Services,Adult Social Care,Older People (Aged 65 or over) including Older Mental Ill,Older People Commissioning,Social Care - Direct Payments,09/12/2015,3567378,607.64,DAVID HOWARD LTD CLIENT ACCOUNT
Adults Services,Adult Social Care,Older People (Aged 65 or over) including Older Mental Ill,Physical Dis Commissioning,Social Care - Direct Payments,09/12/2015,3567302,607.73,DAVID HOWARD LTD CLIENT ACCOUNT
Children's Services,No Service Specified,No Division Specified,Schools Catering,Kitchen Supplies - Food and Beverages,14/12/2015,3557512,608.17,William White Meats Ltd
Communities & Localities,Highways and Transport Services,Traffic Management and Road Safety,TFL-Funded Projects,Payments to Private Contractors - Other Contractors,11/12/2015,3564714,608.33,BIKE WORKS CIC
Adults Services,Adult Social Care,Older People (Aged 65 or over) including Older Mental Ill,Older People Commissioning,Social Care - Homecare,16/12/2015,3571644,608.85,Soma Healthcare Ltd
Adults Services,Adult Social Care,Older People (Aged 65 or over) including Older Mental Ill,Older People Commissioning,Social Care - Homecare,23/12/2015,3576695,608.85,Soma Healthcare Ltd
Adults Services,Adult Social Care,Older People (Aged 65 or over) including Older Mental Ill,Learning Dis Commissioning,Social Care - Homecare,23/12/2015,3576743,608.85,Soma Healthcare Ltd
Resource Services,Central Services to the Public,Local Tax Collection,NNDR & Community Charge,Services - Professional Fees - Financial Services Fees,23/12/2015,3576866,609.00,Neopost Finance LTD
Adults Services,Adult Social Care,Older People (Aged 65 or over) including Older Mental Ill,Older People Commissioning,Social Care - Direct Payments,09/12/2015,3567351,609.77,DAVID HOWARD LTD CLIENT ACCOUNT
Adults Services,RLH SECTION 17,RLH SECTION 17,RLH SECTION 17,General,17/12/2015,Payment Card,609.88,argos retail group
Adults Services,Adult Social Care,Older People (Aged 65 or over) including Older Mental Ill,Older People Commissioning,Social Care - Direct Payments,09/12/2015,3567711,610.08,D D PAYROLL SERVICES
Adults Services,Public Health,Smoking and Tobacco,Public Health Team - 2,Third Party Payments - Other Establishments,11/12/2015,3533989,611.00,North West London Hospitals NHS Trust
Children's Services,No Service Specified,No Division Specified,Schools Catering,Kitchen Supplies - Food and Beverages,11/12/2015,3556014,611.50,William White Meats Ltd
Development & Renewal,Corporate & Democratic Core,Corporate Management,Postal Services,Office Furniture/Equipment,23/12/2015,3576869,611.96,Neopost Ltd
Development & Renewal,No Service Specified,No Division Specified,"CLM Repairs & Maintenance		",Repairs and Maintenance - Responsive - Electrical,21/12/2015,3563252,612.00,Edmundson Electrical LTD
Children's Services,No Service Specified,No Division Specified,Schools Catering,Kitchen Supplies - Food and Beverages,23/12/2015,3563482,612.32,Thomas Ridley & Son Ltd
Adults Services,Adult Social Care,Older People (Aged 65 or over) including Older Mental Ill,Older People Commissioning,Social Care - Day Care,23/12/2015,3576347,612.47,St Hilda's East Community Centre
Adults Services,Adult Social Care,Older People (Aged 65 or over) including Older Mental Ill,Learning Dis Commissioning,Social Care - Homecare,04/12/2015,3558665,612.48,Outward Housing
Adults Services,Adult Social Care,Older People (Aged 65 or over) including Older Mental Ill,Learning Dis Commissioning,Social Care - Homecare,04/12/2015,3558668,612.48,Outward Housing
Adults Services,Adult Social Care,Older People (Aged 65 or over) including Older Mental Ill,Learning Dis Commissioning,Social Care - Homecare,04/12/2015,3558670,612.48,Outward Housing
Development & Renewal,Planning Services,Building Control,Building Control Trading,Services - Professional Fees - Consultants Fees,04/12/2015,3557443,612.50,John Pryke & Partners
Adults Services,Adult Social Care,Older People (Aged 65 or over) including Older Mental Ill,Physical Dis Commissioning,Social Care - Direct Payments,09/12/2015,3567653,612.60,DAVID HOWARD LTD CLIENT ACCOUNT
Adults Services,Adult Social Care,Older People (Aged 65 or over) including Older Mental Ill,Older People Commissioning,Social Care - Homecare,09/12/2015,3566818,612.67,ATHLONE CARE LTD
Adults Services,Adult Social Care,Older People (Aged 65 or over) including Older Mental Ill,Older People Commissioning,Social Care - Homecare,16/12/2015,3570695,612.67,ATHLONE CARE LTD
Adults Services,Adult Social Care,Older People (Aged 65 or over) including Older Mental Ill,Older People Commissioning,Social Care - Homecare,23/12/2015,3576065,612.67,ATHLONE CARE LTD
Adults Services,Adult Social Care,Older People (Aged 65 or over) including Older Mental Ill,Older People Commissioning,Social Care - Homecare,09/12/2015,3568301,613.20,Soma Healthcare Ltd
Development & Renewal,No Service Specified,No Division Specified,Cleaning Materials & Equipment,Materials - Cleaning Materials,16/12/2015,3557268,613.44,IOD Skip Hire Ltd
Children's Services,No Service Specified,No Division Specified,Schools Catering,Kitchen Supplies - Food and Beverages,23/12/2015,3560624,614.21,Thomas Ridley & Son Ltd
Children's Services,No Service Specified,No Division Specified,Schools Catering,Kitchen Supplies - Food and Beverages,16/12/2015,3559760,614.72,William White Meats Ltd
Communities & Localities,Cultural and Related Services,Open Spaces,Mile End Park,Repairs and Maintenance - Responsive - Electrical,02/12/2015,3544264,615.00,Comfort Zone
Adults Services,Adult Social Care,Older People (Aged 65 or over) including Older Mental Ill,Physical Dis Commissioning,Social Care - Direct Payments,09/12/2015,3567469,615.53,DAVID HOWARD LTD CLIENT ACCOUNT
Children's Services,No Service Specified,No Division Specified,Schools Catering,Kitchen Supplies - Food and Beverages,23/12/2015,3560851,615.61,Thomas Ridley & Son Ltd
Adults Services,Adult Social Care,Older People (Aged 65 or over) including Older Mental Ill,Older People Commissioning,Social Care - Homecare,09/12/2015,3567824,616.33,LONDON COMMUNITY HOMECARE LTD
Adults Services,Adult Social Care,Older People (Aged 65 or over) including Older Mental Ill,Older People Commissioning,Social Care - Day Care,23/12/2015,3576248,616.68,St Hilda's East Community Centre
Adults Services,Adult Social Care,Older People (Aged 65 or over) including Older Mental Ill,Older People Commissioning,Social Care - Day Care,23/12/2015,3576273,616.68,St Hilda's East Community Centre
Children's Services,No Service Specified,No Division Specified,Schools Catering,Kitchen Supplies - Food and Beverages,04/12/2015,3545885,616.68,Thomas Ridley & Son Ltd
Children's Services,No Service Specified,No Division Specified,Sch. Meals A/c - C.F.S. Upper (Harley Grove),Kitchen Supplies - Food and Beverages,23/12/2015,3565807,616.85,Chicken Joes
Adults Services,Adult Social Care,Older People (Aged 65 or over) including Older Mental Ill,Mental Health Commissioning,Social Care - Supported Accommodation,18/12/2015,3558497,616.92,Look Ahead Care & Support Ltd
Adults Services,Adult Social Care,Older People (Aged 65 or over) including Older Mental Ill,Physical Dis Commissioning,Social Care - Direct Payments,09/12/2015,3567257,617.25,D D PAYROLL SERVICES
Adults Services,Adult Social Care,Older People (Aged 65 or over) including Older Mental Ill,Older People Commissioning,Social Care - Homecare,09/12/2015,3567997,618.69,REDSPOT HOMECARE (CONTRACTS) LTD
Children's Services,Education Services,Other Strategic Functions,Education Psychologists GF,Meeting Expenses,16/12/2015,3560461,619.17,the royal foundation of st katharine
Adults Services,Adult Social Care,Older People (Aged 65 or over) including Older Mental Ill,Mental Health Commissioning,Social Care - Supported Accommodation,18/12/2015,3558494,619.80,Look Ahead Care & Support Ltd
Children's Services,Education Services,Early Years,Overland CC,Repairs and Maintenance - Responsive - Buildings,07/12/2015,3545986,620.00,JC Coster (Metalworks) Ltd
Communities & Localities,Education Services,Services to Young People and Other Community Learners,LAPS 5 - 8,Educational/Training Supplies - Curriculum Visits/Activities,04/12/2015,3545555,620.00,ESPO
Adults Services,Adult Social Care,Older People (Aged 65 or over) including Older Mental Ill,Older People Commissioning,Social Care - Homecare,02/12/2015,3563109,620.34,SANCTUARY HOME CARE LIMITED
Adults Services,Adult Social Care,Older People (Aged 65 or over) including Older Mental Ill,Older People Commissioning,Social Care - Homecare,23/12/2015,3576542,620.34,SANCTUARY HOME CARE LIMITED
Adults Services,Adult Social Care,Older People (Aged 65 or over) including Older Mental Ill,Older People Commissioning,Social Care - Homecare,23/12/2015,3576597,620.34,SANCTUARY HOME CARE LIMITED
Children's Services,No Service Specified,No Division Specified,Schools Catering,Kitchen Supplies - Food and Beverages,23/12/2015,3564430,621.25,Thomas Ridley & Son Ltd
Adults Services,Adult Social Care,Older People (Aged 65 or over) including Older Mental Ill,Older People Commissioning,Social Care - Homecare,09/12/2015,3568017,621.79,REDSPOT HOMECARE (CONTRACTS) LTD
Adults Services,Adult Social Care,Older People (Aged 65 or over) including Older Mental Ill,Physical Dis Commissioning,Social Care - Direct Payments,09/12/2015,3567343,623.54,DAVID HOWARD LTD CLIENT ACCOUNT
Children's Services,No Service Specified,No Division Specified,Schools Catering,Kitchen Supplies - Food and Beverages,02/12/2015,3544171,623.55,Thomas Ridley & Son Ltd
Adults Services,Adult Social Care,Older People (Aged 65 or over) including Older Mental Ill,Physical Dis Commissioning,Social Care - Homecare,16/12/2015,3571647,623.70,Soma Healthcare Ltd
Adults Services,Adult Social Care,Older People (Aged 65 or over) including Older Mental Ill,Older People Commissioning,Social Care - Homecare,23/12/2015,3576659,623.70,Soma Healthcare Ltd
Children's Services,No Service Specified,No Division Specified,Schools Catering,Kitchen Supplies - Food and Beverages,16/12/2015,3555948,623.70,Thomas Ridley & Son Ltd
Adults Services,Adult Social Care,Older People (Aged 65 or over) including Older Mental Ill,Older People Commissioning,Social Care - Homecare,18/12/2015,3573782,624.63,REDSPOT HOMECARE (CONTRACTS) LTD
Adults Services,Adult Social Care,Older People (Aged 65 or over) including Older Mental Ill,Physical Dis Commissioning,Social Care - Homecare,18/12/2015,3573159,624.75,Mantra Recruitment
Adults Services,Adult Social Care,Older People (Aged 65 or over) including Older Mental Ill,Physical Dis Commissioning,Social Care - Homecare,18/12/2015,3573173,624.75,Mantra Recruitment
Children's Services,No Service Specified,No Division Specified,Schools Catering,Kitchen Supplies - Food and Beverages,23/12/2015,3560641,625.53,Thomas Ridley & Son Ltd
Children's Services,Education Services,Early Years,Ocean CC,Educational/Training Supplies - Resources,23/12/2015,3569126,626.00,COMMUNITY PRODUCTS (UK) LTD
Adults Services,Adult Social Care,Older People (Aged 65 or over) including Older Mental Ill,Mental Health Commissioning,Social Care - Homecare,18/12/2015,3573181,627.00,TRIANGLE COMMUNITY SERVICES
Adults Services,Adult Social Care,Older People (Aged 65 or over) including Older Mental Ill,Older People Commissioning,Social Care - Homecare,04/12/2015,3565403,627.46,SANCTUARY HOME CARE LIMITED
Adults Services,Adult Social Care,Older People (Aged 65 or over) including Older Mental Ill,Older People Commissioning,Social Care - Homecare,16/12/2015,3571572,627.46,SANCTUARY HOME CARE LIMITED
Adults Services,Adult Social Care,Older People (Aged 65 or over) including Older Mental Ill,Older People Commissioning,Social Care - Homecare,16/12/2015,3571613,627.46,SANCTUARY HOME CARE LIMITED
Development & Renewal,No Service Specified,No Division Specified,Cleaning Materials & Equipment,Materials - Cleaning Materials,02/12/2015,3544750,627.50,GREENER SOLUTIONS LTD
Adults Services,Adult Social Care,Older People (Aged 65 or over) including Older Mental Ill,Physical Dis Commissioning,Social Care - Homecare,09/12/2015,3568220,627.80,Soma Healthcare Ltd
Adults Services,Adult Social Care,Older People (Aged 65 or over) including Older Mental Ill,Mental Health Commissioning,Social Care - Homecare,04/12/2015,3565152,627.90,COMMUNITY CARE CONSORTIUM
Children's Services,No Service Specified,No Division Specified,Schools Catering,Kitchen Supplies - Food and Beverages,11/12/2015,3549606,628.66,Thomas Ridley & Son Ltd
Children's Services,No Service Specified,No Division Specified,Schools Catering,Kitchen Supplies - Food and Beverages,16/12/2015,3549637,628.96,Thomas Ridley & Son Ltd
Adults Services,Adult Social Care,Older People (Aged 65 or over) including Older Mental Ill,Mental Health Commissioning,Social Care - Supported Accommodation,02/12/2015,3547152,629.44,Look Ahead Care & Support Ltd
Adults Services,Adult Social Care,Older People (Aged 65 or over) including Older Mental Ill,Mental Health Commissioning,Social Care - Supported Accommodation,18/12/2015,3558499,629.44,Look Ahead Care & Support Ltd
Children's Services,No Service Specified,No Division Specified,Welfare Catering,Kitchen Supplies - Food and Beverages,23/12/2015,3560739,631.04,Jones Brothers
Adults Services,Adult Social Care,Older People (Aged 65 or over) including Older Mental Ill,Older People Commissioning,Social Care - Homecare,18/12/2015,3573959,631.13,Soma Healthcare Ltd
Adults Services,Adult Social Care,Older People (Aged 65 or over) including Older Mental Ill,Older People Commissioning,Social Care - Homecare,04/12/2015,3565099,631.80,Mantra Recruitment
Adults Services,Adult Social Care,Older People (Aged 65 or over) including Older Mental Ill,Older People Commissioning,Social Care - Homecare,09/12/2015,3567776,631.80,AGE UK EAST LONDON
Adults Services,Adult Social Care,Older People (Aged 65 or over) including Older Mental Ill,Older People Commissioning,Social Care - Homecare,23/12/2015,3576207,631.80,AGE UK EAST LONDON
Communities & Localities,Environmental and Regulatory Services,Community Safety (CCTV),CCTV,Payments to Private Contractors - CCTV Maintenance,09/12/2015,3564318,632.00,WEC Group Ltd
Adults Services,Adult Social Care,Older People (Aged 65 or over) including Older Mental Ill,Mental Health Commissioning,Social Care - Supported Accommodation,02/12/2015,3547150,633.64,Look Ahead Care & Support Ltd
Children's Services,No Service Specified,No Division Specified,Schools Catering,Kitchen Supplies - Food and Beverages,23/12/2015,3566392,634.53,William White Meats Ltd
Children's Services,No Service Specified,No Division Specified,Welfare Catering,Kitchen Supplies - Food and Beverages,18/12/2015,3557412,634.58,William White Meats Ltd
Development & Renewal,Corporate & Democratic Core,Corporate Management,Mulberry Place Bldg,Stationery,23/12/2015,3564196,635.00,Altman Technologies Ltd
Adults Services,Adult Social Care,Older People (Aged 65 or over) including Older Mental Ill,Older People Commissioning,Social Care - Direct Payments,09/12/2015,3567331,635.10,DAVID HOWARD LTD CLIENT ACCOUNT
Adults Services,Adult Social Care,Older People (Aged 65 or over) including Older Mental Ill,Physical Dis Commissioning,Social Care - Homecare,04/12/2015,3565318,635.60,MiHOMECARE LIMITED
Adults Services,Adult Social Care,Older People (Aged 65 or over) including Older Mental Ill,Older People Commissioning,Social Care - Homecare,16/12/2015,3571333,635.60,MiHOMECARE LIMITED
Children's Services,No Service Specified,No Division Specified,Schools Catering,Kitchen Supplies - Food and Beverages,09/12/2015,3548085,637.00,Thomas Ridley & Son Ltd
Children's Services,No Service Specified,No Division Specified,Schools Catering,Kitchen Supplies - Food and Beverages,09/12/2015,3548270,637.74,Thomas Ridley & Son Ltd
Adults Services,Adult Social Care,Older People (Aged 65 or over) including Older Mental Ill,Physical Dis Commissioning,Social Care - Homecare,18/12/2015,3573796,637.78,REDSPOT HOMECARE (CONTRACTS) LTD
Children's Services,Education Services,Other Strategic Functions,Auxilary Aids,Training Expenses - Staff External Training (UK Based),09/12/2015,3556821,638.30,Ewing Foundation
Adults Services,Adult Social Care,Older People (Aged 65 or over) including Older Mental Ill,Mental Health Commissioning,Social Care - Homecare,04/12/2015,3565226,638.40,COMMUNITY CARE CONSORTIUM
Children's Services,Children's Social Care,Family Support Services,IPST S17 NRPF,Childrens Act Section 17 - Other Placements Bed & Breakfast,02/12/2015,3559756,640.00,Finefair Management
Children's Services,No Service Specified,No Division Specified,Schools Catering,Kitchen Supplies - Food and Beverages,23/12/2015,3563392,640.00,Thomas Ridley & Son Ltd
Communities & Localities,Cultural and Related Services,Library Service,Bibliographical Service,Computing - Licences - Software,21/12/2015,3571843,640.00,220 Soft Ltd
Communities & Localities,Education Services,Services to Young People and Other Community Learners,Outdoor,Recreational Activities,21/12/2015,3572802,640.00,Access Sport
Children's Services,No Service Specified,No Division Specified,Contract Services M & A,Kitchen Supplies - Food and Beverages,23/12/2015,3560978,640.72,Jones Brothers
Communities & Localities,Adult Social Care,Other Adult Services,Section 256 Agreements,Medical Requisites,23/12/2015,3566156,640.90,Chapel Pharmacy
Adults Services,Adult Social Care,Older People (Aged 65 or over) including Older Mental Ill,Older People Commissioning,Social Care - Direct Payments,09/12/2015,3567656,642.36,DAVID HOWARD LTD CLIENT ACCOUNT
Adults Services,Adult Social Care,Older People (Aged 65 or over) including Older Mental Ill,Older People Commissioning,Social Care - Direct Payments,09/12/2015,3567360,642.94,DAVID HOWARD LTD CLIENT ACCOUNT
Children's Services,No Service Specified,No Division Specified,Welfare Catering,Kitchen Supplies - Food and Beverages,23/12/2015,3558750,643.38,Thomas Ridley & Son Ltd
Children's Services,No Service Specified,No Division Specified,Contract Services M & A,Kitchen Supplies - Food and Beverages,23/12/2015,3560990,643.56,Jones Brothers
Development & Renewal,Corporate & Democratic Core,Corporate Management,CLM CLC,Repairs and Maintenance - Planned - Security,04/12/2015,3560773,644.00,Capstan Security
Adults Services,Adult Social Care,Older People (Aged 65 or over) including Older Mental Ill,Older People Commissioning,Social Care - Homecare,18/12/2015,3573803,644.35,REDSPOT HOMECARE (CONTRACTS) LTD
Communities & Localities,Environmental and Regulatory Services,Regulatory Services,Food,Printing - External,04/12/2015,3546045,645.00,Tutaev Design
Adults Services,Adult Social Care,Older People (Aged 65 or over) including Older Mental Ill,Older People Commissioning,Social Care - Direct Payments,09/12/2015,3567278,646.08,DAVID HOWARD LTD CLIENT ACCOUNT
Adults Services,Adult Social Care,Older People (Aged 65 or over) including Older Mental Ill,Learning Dis Commissioning,Non Staff Transport Costs - Client Transport Costs,16/12/2015,3562983,646.47,DIMENSIONS (UK) LTD
Adults Services,Adult Social Care,Older People (Aged 65 or over) including Older Mental Ill,Learning Dis Commissioning,Social Care - Direct Payments,09/12/2015,3567249,646.62,D D PAYROLL SERVICES
Children's Services,No Service Specified,No Division Specified,Schools Catering,Kitchen Supplies - Food and Beverages,16/12/2015,3556539,646.87,Thomas Ridley & Son Ltd
Children's Services,No Service Specified,No Division Specified,Schools Catering,Kitchen Supplies - Food and Beverages,18/12/2015,3557076,647.23,Thomas Ridley & Son Ltd
Adults Services,Adult Social Care,Older People (Aged 65 or over) including Older Mental Ill,Physical Dis Commissioning,Social Care - Direct Payments,09/12/2015,3567586,648.34,DAVID HOWARD LTD CLIENT ACCOUNT
Adults Services,Adult Social Care,Older People (Aged 65 or over) including Older Mental Ill,Older People Commissioning,Social Care - Direct Payments,09/12/2015,3567476,649.45,D D PAYROLL SERVICES
Children's Services,Education Services,Other Strategic Functions,Parental Involvement,Social Care - Prevention & Support,09/12/2015,3555555,650.00,Poplar HARCA LTD
Adults Services,Adult Social Care,Older People (Aged 65 or over) including Older Mental Ill,Learning Dis Commissioning,Social Care - Direct Payments,09/12/2015,3567372,650.29,D D PAYROLL SERVICES
Adults Services,Adult Social Care,Older People (Aged 65 or over) including Older Mental Ill,Learning Dis Commissioning,Social Care - Homecare,04/12/2015,3565151,650.33,COMMUNITY CARE CONSORTIUM
Adults Services,Adult Social Care,Older People (Aged 65 or over) including Older Mental Ill,Learning Dis Commissioning,Social Care - Homecare,02/12/2015,3561301,650.40,MEARS CARE LTD
Children's Services,No Service Specified,No Division Specified,Schools Catering,Kitchen Supplies - Food and Beverages,16/12/2015,3555481,650.59,Thomas Ridley & Son Ltd
Children's Services,No Service Specified,No Division Specified,Schools Catering,Kitchen Supplies - Food and Beverages,23/12/2015,3564037,651.65,Thomas Ridley & Son Ltd
Development & Renewal,Corporate & Democratic Core,Corporate Management,CLM ESCW,Repairs and Maintenance - Responsive - Repair & Maintenance,14/12/2015,3549213,652.00,RGE Services
Adults Services,Adult Social Care,Older People (Aged 65 or over) including Older Mental Ill,Older People Commissioning,Social Care - Homecare,09/12/2015,3567992,652.60,REDSPOT HOMECARE (CONTRACTS) LTD
Adults Services,Public Health,Smoking and Tobacco,Public Health Team - 2,Payments to Private Contractors - Other Contractors,23/12/2015,3566133,653.20,Guardian Pharmacy t/a Lansbury Chemist
Adults Services,Public Health,Smoking and Tobacco,Public Health Team - 2,Payments to Private Contractors - Other Contractors,23/12/2015,3566106,654.02,Pristine Health t/a Bell Pharmacy Bow
Development & Renewal,Corporate & Democratic Core,Corporate Management,CLM ESCW,Repairs and Maintenance - Responsive - Repair & Maintenance,02/12/2015,3503774,655.62,RGE Services
Adults Services,Adult Social Care,Older People (Aged 65 or over) including Older Mental Ill,Older People Commissioning,Social Care - Homecare,16/12/2015,3571564,655.96,SANCTUARY HOME CARE LIMITED
Adults Services,Adult Social Care,Older People (Aged 65 or over) including Older Mental Ill,Mental Health Commissioning,Social Care - Homecare,09/12/2015,3568233,657.00,Soma Healthcare Ltd
Adults Services,Adult Social Care,Older People (Aged 65 or over) including Older Mental Ill,Physical Dis Commissioning,Social Care - Homecare,23/12/2015,3576652,659.53,SANCTUARY HOME CARE LIMITED
Children's Services,Children's Social Care,Children Looked After,S23-Other-Mother & Baby Unit,Childrens Act Section 23 - Placement Fee,18/12/2015,3571830,660.00,OneOneCoCo
Communities & Localities,Environmental and Regulatory Services,Community Safety (CCTV),CCTV,Payments to Private Contractors - CCTV Maintenance,02/12/2015,3543440,660.00,Comfort Zone
Communities & Localities,Environmental and Regulatory Services,Community Safety (CCTV),CCTV,Payments to Private Contractors - CCTV Maintenance,02/12/2015,3543441,660.00,Comfort Zone
Communities & Localities,Environmental and Regulatory Services,Community Safety (CCTV),CCTV,Payments to Private Contractors - CCTV Maintenance,02/12/2015,3543442,660.00,Comfort Zone
Communities & Localities,Environmental and Regulatory Services,Community Safety (CCTV),CCTV,Payments to Private Contractors - CCTV Maintenance,02/12/2015,3543443,660.00,Comfort Zone
Communities & Localities,Environmental and Regulatory Services,Community Safety (CCTV),CCTV Minor Works,Payments to Private Contractors - Minor Works,07/12/2015,3565681,660.00,Murray McCaw - Electrician and CCTV
Development & Renewal,No Service Specified,No Division Specified,Ocean Block H Redevelopment,Other External Fees - Valuation Fees,11/12/2015,3569369,660.00,Redacted Section 40 FOI Act
Development & Renewal,Planning Services,Economic Development,Business Partnership,Events & Exhibition Supplies,23/12/2015,3566664,660.30,Elveden Farms Ltd
Children's Services,No Service Specified,No Division Specified,Schools Catering,Kitchen Supplies - Food and Beverages,23/12/2015,3563459,660.34,Thomas Ridley & Son Ltd
Adults Services,Adult Social Care,Older People (Aged 65 or over) including Older Mental Ill,Learning Dis Commissioning,Social Care - Homecare,04/12/2015,3565225,661.20,COMMUNITY CARE CONSORTIUM
Children's Services,No Service Specified,No Division Specified,Schools Catering,Kitchen Supplies - Food and Beverages,09/12/2015,3548068,661.28,Thomas Ridley & Son Ltd
Development & Renewal,No Service Specified,No Division Specified,Cleaning Materials & Equipment,Waste Management,16/12/2015,3569543,661.45,Cory Environmental Ltd
Children's Services,No Service Specified,No Division Specified,Contract Services M & A,Kitchen Supplies - Food and Beverages,23/12/2015,3560929,661.52,Jones Brothers
Adults Services,Adult Social Care,Older People (Aged 65 or over) including Older Mental Ill,Physical Dis Commissioning,Social Care - Homecare,09/12/2015,3567825,661.64,LONDON COMMUNITY HOMECARE LTD
Adults Services,Adult Social Care,Older People (Aged 65 or over) including Older Mental Ill,Physical Dis Commissioning,Social Care - Homecare,09/12/2015,3567955,661.64,LONDON COMMUNITY HOMECARE LTD
Adults Services,Adult Social Care,Older People (Aged 65 or over) including Older Mental Ill,Physical Dis Commissioning,Social Care - Homecare,16/12/2015,3571212,661.64,LONDON COMMUNITY HOMECARE LTD
Children's Services,No Service Specified,No Division Specified,Schools Library,Printing - External,23/12/2015,3569939,662.44,Bertram Library Services
Children's Services,No Service Specified,No Division Specified,Schools Catering,Kitchen Supplies - Food and Beverages,16/12/2015,3555512,662.57,Thomas Ridley & Son Ltd
Adults Services,Adult Social Care,Older People (Aged 65 or over) including Older Mental Ill,Mental Health Commissioning,Social Care - Direct Payments,09/12/2015,3567633,663.58,D D PAYROLL SERVICES
Communities & Localities,No Service Specified,No Division Specified,Temporary Structures,Sundry Creditors - Rechargeable Works - Rendered Accounts/Refunds,23/12/2015,3574289,666.00,Mendix Roofing
Children's Services,Children's Social Care,Children Looked After,Leaving Care-UASC,Leaving Care Financial Assistance - Grant Payment Education/Training/Employment Support,09/12/2015,3566755,667.00,NGOC BICH THI NGUYEN
Children's Services,Children's Social Care,Children Looked After,Leaving Care-UASC,Leaving Care Financial Assistance - Grant Payment Education/Training/Employment Support,09/12/2015,3566756,667.00,NAIMA MOHAMED
Children's Services,Children's Social Care,Children Looked After,LCS/Allowances-Accom,Leaving Care Financial Assistance - Grant Payment Education/Training/Employment Support,09/12/2015,3566757,667.00,ADANNA CHIKWE
Children's Services,Children's Social Care,Children Looked After,LCS/Allowances-Accom,Leaving Care Financial Assistance - Grant Payment Education/Training/Employment Support,09/12/2015,3566758,667.00,Stephanie Miller
Children's Services,Children's Social Care,Children Looked After,LCS/Allowances-Accom,Leaving Care Financial Assistance - Grant Payment Education/Training/Employment Support,09/12/2015,3566759,667.00,Suhel Chowdhury
Children's Services,Children's Social Care,Children Looked After,LCS/Allowances-Accom,Leaving Care Financial Assistance - Grant Payment Education/Training/Employment Support,09/12/2015,3566760,667.00,ABDULLAH JABARKHEL
Children's Services,Children's Social Care,Children Looked After,LCS/Allowances-Accom,Leaving Care Financial Assistance - Grant Payment Education/Training/Employment Support,09/12/2015,3566761,667.00,JAMAL CHAMBERS
Children's Services,Children's Social Care,Children Looked After,LCS/Allowances-Accom,Leaving Care Financial Assistance - Grant Payment Education/Training/Employment Support,23/12/2015,3575694,667.00,AKLAKUR RAHMAN
Children's Services,Children's Social Care,Children Looked After,LCS/Allowances-Accom,Leaving Care Financial Assistance - Grant Payment Education/Training/Employment Support,23/12/2015,3575695,667.00,DOMINIC VON GOETZ
Children's Services,Children's Social Care,Children Looked After,LCS/Allowances-Accom,Leaving Care Financial Assistance - Grant Payment Education/Training/Employment Support,23/12/2015,3575696,667.00,Tamanna Parveen
Adults Services,Adult Social Care,Older People (Aged 65 or over) including Older Mental Ill,Older People Commissioning,Social Care - Day Care,23/12/2015,3576265,668.07,St Hilda's East Community Centre
Adults Services,Adult Social Care,Older People (Aged 65 or over) including Older Mental Ill,Older People Commissioning,Social Care - Day Care,23/12/2015,3576285,668.07,St Hilda's East Community Centre
Adults Services,Adult Social Care,Older People (Aged 65 or over) including Older Mental Ill,Older People Commissioning,Social Care - Day Care,23/12/2015,3576294,668.07,St Hilda's East Community Centre
Adults Services,Adult Social Care,Older People (Aged 65 or over) including Older Mental Ill,Mental Health Commissioning,Social Care - Day Care,23/12/2015,3576318,668.07,St Hilda's East Community Centre
Adults Services,Adult Social Care,Older People (Aged 65 or over) including Older Mental Ill,Older People Commissioning,Social Care - Day Care,23/12/2015,3576333,668.07,St Hilda's East Community Centre
Adults Services,Adult Social Care,Older People (Aged 65 or over) including Older Mental Ill,Physical Dis Commissioning,Social Care - Homecare,02/12/2015,3562695,668.38,LONDON COMMUNITY HOMECARE LTD
Communities & Localities,Environmental and Regulatory Services,"Cemetery, Cremation and Mortuary Services",Parish Funeral Service,Services - Professional Fees - Burial Fees,07/12/2015,3548950,669.00,T Cribb & Sons
Communities & Localities,Environmental and Regulatory Services,"Cemetery, Cremation and Mortuary Services",Parish Funeral Service,Services - Professional Fees - Burial Fees,07/12/2015,3548986,669.00,T Cribb & Sons
Development & Renewal,Corporate & Democratic Core,Corporate Management,Mulberry Place Bldg,Materials - Cleaning Materials,23/12/2015,3560689,670.50,The Maintenance Supply Co Ltd
Adults Services,Adult Social Care,Older People (Aged 65 or over) including Older Mental Ill,Older People Commissioning,Social Care - Day Care,21/12/2015,3563005,670.70,Peabody Trust
Adults Services,Adult Social Care,Older People (Aged 65 or over) including Older Mental Ill,Older People Commissioning,Social Care - Day Care,21/12/2015,3563034,670.70,Peabody Trust
Communities & Localities,Adult Social Care,Other Adult Services,DAT Care Management Team,Client Treatment Services,23/12/2015,3574511,672.00,Action on Addiction
Adults Services,Adult Social Care,Older People (Aged 65 or over) including Older Mental Ill,Older People Commissioning,Social Care - Direct Payments,09/12/2015,3567170,672.66,DAVID HOWARD LTD CLIENT ACCOUNT
Adults Services,Adult Social Care,Older People (Aged 65 or over) including Older Mental Ill,Physical Dis Commissioning,Social Care - Homecare,16/12/2015,3570795,673.58,Carewatch Newham Ltd
Adults Services,Adult Social Care,Older People (Aged 65 or over) including Older Mental Ill,Physical Dis Commissioning,Social Care - Direct Payments,09/12/2015,3567200,675.05,DAVID HOWARD LTD CLIENT ACCOUNT
Adults Services,Adult Social Care,Older People (Aged 65 or over) including Older Mental Ill,Learning Dis Commissioning,Social Care - Direct Payments,09/12/2015,3567255,675.84,DAVID HOWARD LTD CLIENT ACCOUNT
Development & Renewal,No Service Specified,No Division Specified,Communal Energy,Electricity,04/12/2015,3564600,676.03,OPUS ENERGY LTD
Adults Services,Adult Social Care,Older People (Aged 65 or over) including Older Mental Ill,Older People Commissioning,Social Care - Homecare,11/12/2015,3563043,676.17,POSITIVE CARE LINK
Communities & Localities,Adult Social Care,Other Adult Services,Section 256 Agreements,Social Care - Nursing Care,23/12/2015,3565963,676.25,Alere Toxicology PLC
Adults Services,Adult Social Care,Older People (Aged 65 or over) including Older Mental Ill,Older People Commissioning,Social Care - Day Care,21/12/2015,3563007,676.44,Peabody Trust
Adults Services,Adult Social Care,Older People (Aged 65 or over) including Older Mental Ill,Older People Commissioning,Social Care - Homecare,02/12/2015,3563128,677.36,SANCTUARY HOME CARE LIMITED
Adults Services,Adult Social Care,Older People (Aged 65 or over) including Older Mental Ill,Older People Commissioning,Social Care - Homecare,23/12/2015,3576615,677.36,SANCTUARY HOME CARE LIMITED
Adults Services,Adult Social Care,Older People (Aged 65 or over) including Older Mental Ill,Physical Dis Commissioning,Social Care - Homecare,18/12/2015,3573687,678.72,LONDON COMMUNITY HOMECARE LTD
Children's Services,No Service Specified,No Division Specified,Schools Catering,Kitchen Supplies - Food and Beverages,23/12/2015,3559786,678.90,Thomas Ridley & Son Ltd
Adults Services,Adult Social Care,Older People (Aged 65 or over) including Older Mental Ill,Mental Health Commissioning,Social Care - Supported Accommodation,02/12/2015,3547149,678.92,Look Ahead Care & Support Ltd
Adults Services,Adult Social Care,Older People (Aged 65 or over) including Older Mental Ill,Mental Health Commissioning,Social Care - Supported Accommodation,02/12/2015,3547151,678.92,Look Ahead Care & Support Ltd
Adults Services,Adult Social Care,Older People (Aged 65 or over) including Older Mental Ill,Mental Health Commissioning,Social Care - Supported Accommodation,18/12/2015,3558496,678.92,Look Ahead Care & Support Ltd
Adults Services,Adult Social Care,Older People (Aged 65 or over) including Older Mental Ill,Mental Health Commissioning,Social Care - Supported Accommodation,18/12/2015,3558498,678.92,Look Ahead Care & Support Ltd
Adults Services,Adult Social Care,Older People (Aged 65 or over) including Older Mental Ill,Older People Commissioning,Social Care - Day Care,23/12/2015,3576377,679.31,St Hilda's East Community Centre
Development & Renewal,Corporate & Democratic Core,Corporate Management,Rushmead Bldg,Fixtures and Fittings - Purchases - General,09/12/2015,3556830,680.00,C Abbott Ltd
Adults Services,Adult Social Care,Older People (Aged 65 or over) including Older Mental Ill,Older People Commissioning,Social Care - Homecare,02/12/2015,3561167,680.40,Mantra Recruitment
Adults Services,Adult Social Care,Older People (Aged 65 or over) including Older Mental Ill,Older People Commissioning,Social Care - Homecare,04/12/2015,3565060,680.40,Mantra Recruitment
Adults Services,Adult Social Care,Older People (Aged 65 or over) including Older Mental Ill,Older People Commissioning,Social Care - Homecare,09/12/2015,3566856,680.40,Mantra Recruitment
Adults Services,Adult Social Care,Older People (Aged 65 or over) including Older Mental Ill,Older People Commissioning,Social Care - Homecare,09/12/2015,3567019,680.40,Mantra Recruitment
Adults Services,Adult Social Care,Older People (Aged 65 or over) including Older Mental Ill,Physical Dis Commissioning,Social Care - Homecare,09/12/2015,3567890,680.54,LONDON COMMUNITY HOMECARE LTD
Children's Services,Children's Social Care,Family Support Services,Tackling Troubled Families,Services - Professional Fees - Partnership Arrangement,04/12/2015,3564177,680.95,Kineara Ltd
Development & Renewal,General Fund/Council Fund,Homelessness,Hmlss Fams-Dilapidations,Third Party Payments - Four Rooms,04/12/2015,3564888,681.23,elliot leigh property management ltd
Adults Services,Adult Social Care,Older People (Aged 65 or over) including Older Mental Ill,Older People Commissioning,Social Care - Homecare,09/12/2015,3568081,681.50,CIRCLE SUPPORT CONSORTIUM
Adults Services,Adult Social Care,Older People (Aged 65 or over) including Older Mental Ill,Older People Commissioning,Social Care - Homecare,09/12/2015,3568096,681.50,CIRCLE SUPPORT CONSORTIUM
Adults Services,Adult Social Care,Older People (Aged 65 or over) including Older Mental Ill,Older People Commissioning,Social Care - Homecare,18/12/2015,3573530,681.50,SEVACARE UK LTD
Adults Services,Adult Social Care,Older People (Aged 65 or over) including Older Mental Ill,Older People Commissioning,Social Care - Homecare,18/12/2015,3573879,681.50,CIRCLE SUPPORT CONSORTIUM
Children's Services,Children's Social Care,Children's and Young People's Safety,Local Safegrd Child Board:LSCB,Services - Professional Fees - Consultants Fees,21/12/2015,3556353,682.50,YCTCS Ltd
Children's Services,No Service Specified,No Division Specified,Schools Library,Storage Costs,23/12/2015,3565965,682.80,Schoeller Allibert
Development & Renewal,Corporate & Democratic Core,Corporate Management,Mulberry Place Bldg,Healthy & Safety Supplies,23/12/2015,3559941,683.80,The Maintenance Supply Co Ltd
Adults Services,Adult Social Care,Older People (Aged 65 or over) including Older Mental Ill,Physical Dis Commissioning,Social Care - Homecare,18/12/2015,3573751,684.88,LONDON COMMUNITY HOMECARE LTD
Adults Services,Adult Social Care,Older People (Aged 65 or over) including Older Mental Ill,Physical Dis Commissioning,Social Care - Homecare,09/12/2015,3568285,686.20,Soma Healthcare Ltd
Adults Services,Adult Social Care,Older People (Aged 65 or over) including Older Mental Ill,Older People Commissioning,Social Care - Direct Payments,09/12/2015,3567391,686.30,D D PAYROLL SERVICES
Development & Renewal,No Service Specified,No Division Specified,Cleaning Materials & Equipment,Services - Professional Fees - Environmental Services Fees,07/12/2015,3549295,686.40,Cory Environmental Ltd
Adults Services,Adult Social Care,Older People (Aged 65 or over) including Older Mental Ill,Physical Dis Commissioning,Social Care - Day Care,23/12/2015,3576037,686.80,HEADWAY EAST LONDON
Adults Services,Adult Social Care,Older People (Aged 65 or over) including Older Mental Ill,Physical Dis Commissioning,Social Care - Day Care,23/12/2015,3576039,686.80,HEADWAY EAST LONDON
Children's Services,Children's Social Care,Children Looked After,Virtual School PPG,Agency Staff - Associations,16/12/2015,3556424,687.00,Academics ltd
Children's Services,Children's Social Care,Children Looked After,Virtual School PPG,Agency Staff - Associations,16/12/2015,3556425,687.00,Academics ltd
Children's Services,Children's Social Care,Children Looked After,Virtual School PPG,Agency Staff - Associations,23/12/2015,3560426,687.00,Academics ltd
Children's Services,Children's Social Care,Children Looked After,Virtual School PPG,Agency Staff - Associations,23/12/2015,3560428,687.00,Academics ltd
Children's Services,Children's Social Care,Children Looked After,Virtual School PPG,Agency Staff - Associations,23/12/2015,3566042,687.00,Academics ltd
Children's Services,Children's Social Care,Children Looked After,Virtual School PPG,Agency Staff - Associations,23/12/2015,3566044,687.00,Academics ltd
Communities & Localities,Cultural and Related Services,Open Spaces,Parks & Open Spaces Man&Admin,Educational/Training Supplies - Resources,23/12/2015,3569830,688.34,Neils Sports Trophies
Communities & Localities,Adult Social Care,Other Adult Services,Section 256 Agreements,Medical Requisites,23/12/2015,3566163,688.90,Medina Pharma LTD t/a Bee Pharmacy
Adults Services,Adult Social Care,Older People (Aged 65 or over) including Older Mental Ill,Older People Commissioning,Social Care - Homecare,18/12/2015,3573678,689.26,LONDON COMMUNITY HOMECARE LTD
Children's Services,No Service Specified,No Division Specified,Schools Catering,Kitchen Supplies - Food and Beverages,21/12/2015,3561026,689.81,William White Meats Ltd
Development & Renewal,No Service Specified,No Division Specified,Cleaning Materials & Equipment,Materials - Cleaning Materials,18/12/2015,3556795,690.00,GREENER SOLUTIONS LTD
Children's Services,Children's Social Care,Family Support Services,CNN Pool: Joint Family Support,Childrens Act Section 23 - Placement Fee,23/12/2015,3574158,690.30,QALB Centre Short Break Services
Children's Services,No Service Specified,No Division Specified,Schools Catering,Kitchen Supplies - Food and Beverages,23/12/2015,3558869,690.82,Thomas Ridley & Son Ltd
Children's Services,No Service Specified,No Division Specified,Schools Catering,Kitchen Supplies - Food and Beverages,07/12/2015,3549615,690.88,William White Meats Ltd
Children's Services,No Service Specified,No Division Specified,Schools Catering,Kitchen Supplies - Food and Beverages,23/12/2015,3560663,691.49,Thomas Ridley & Son Ltd
Development & Renewal,No Service Specified,No Division Specified,Cleaning Materials & Equipment,Materials - Cleaning Materials,09/12/2015,3548171,691.73,GREENER SOLUTIONS LTD
Adults Services,Adult Social Care,Older People (Aged 65 or over) including Older Mental Ill,Older People Commissioning,Social Care - Direct Payments,09/12/2015,3567346,691.88,D D PAYROLL SERVICES
Communities & Localities,Lifelong Learning ACL Manageme,Lifelong Learning ACL Manageme,Lifelong Learning ACL Manageme,General,14/12/2015,Payment Card,692.39,specialist crafts ltd
Adults Services,Adult Social Care,Older People (Aged 65 or over) including Older Mental Ill,Physical Dis Commissioning,Social Care - Direct Payments,09/12/2015,3567206,692.81,D D PAYROLL SERVICES
Adults Services,Adult Social Care,Older People (Aged 65 or over) including Older Mental Ill,Older People Commissioning,Social Care - Homecare,02/12/2015,3561307,693.00,Excelcare (Home Care Division) LTD
Children's Services,Education Services,Early Years,Meath Gardens CC,Community Equipment  Supplies - Non Store Items,09/12/2015,3555661,693.75,Rahmqvist UK LTD
Adults Services,Adult Social Care,Older People (Aged 65 or over) including Older Mental Ill,Older People Commissioning,Social Care - Direct Payments,09/12/2015,3567516,694.00,Soma Healthcare Ltd
Children's Services,Education Services,Early Years,Mary Sambrook,Educational/Training Supplies - Resources,16/12/2015,3569842,695.00,COMMUNITY PRODUCTS (UK) LTD
Children's Services,No Service Specified,No Division Specified,Contract Services M & A,Kitchen Supplies - Food and Beverages,23/12/2015,3564066,695.36,Jones Brothers
Communities & Localities,Education Services,Services to Young People and Other Community Learners,LAPS 1 - 4,Educational/Training Supplies - Curriculum Visits/Activities,18/12/2015,3559661,695.48,Sports Warehouse (Edinburgh) LTD
Children's Services,No Service Specified,No Division Specified,Schools Catering,Kitchen Supplies - Food and Beverages,18/12/2015,3557079,696.04,Thomas Ridley & Son Ltd
Development & Renewal,Planning Services,Community Development,Cost of sale on disps (HRA),Non Staff Advertising - Public Notices,16/12/2015,3564721,696.80,Archant Community Media
Development & Renewal,No Service Specified,No Division Specified,"CLM Repairs & Maintenance		",Repairs and Maintenance - Responsive - Electrical,23/12/2015,3569118,697.50,Edmundson Electrical LTD
"Directorate of Law, Probity and Governance",Corporate & Democratic Core,Corporate Management,East End Life,Photocopier Charges - Consumables,04/12/2015,3545493,697.74,Office Depot (Catalogue)
Adults Services,Adult Social Care,Older People (Aged 65 or over) including Older Mental Ill,Learning Dis Commissioning,Social Care - Homecare,09/12/2015,3553867,697.81,Outward Housing
Adults Services,Adult Social Care,Older People (Aged 65 or over) including Older Mental Ill,Older People Commissioning,Social Care - Direct Payments,09/12/2015,3567706,697.99,D D PAYROLL SERVICES
Adults Services,Adult Social Care,Older People (Aged 65 or over) including Older Mental Ill,Learning Dis Commissioning,Social Care - Day Care,09/12/2015,3567108,698.40,MEARS CARE LTD
Adults Services,Adult Social Care,Older People (Aged 65 or over) including Older Mental Ill,Learning Dis Commissioning,Social Care - Day Care,16/12/2015,3570807,698.40,MEARS CARE LTD
Adults Services,Adult Social Care,Older People (Aged 65 or over) including Older Mental Ill,Older People Commissioning,Social Care - Homecare,23/12/2015,3576120,698.63,Mantra Recruitment
Adults Services,Adult Social Care,Older People (Aged 65 or over) including Older Mental Ill,Older People Commissioning,Social Care - Homecare,23/12/2015,3576128,698.63,Mantra Recruitment
Children's Services,Children's Social Care,Children Looked After,S23-Other-Semi-Ind. Unit,Childrens Act Section 23 - Placement Fee,02/12/2015,3546130,699.52,Look Ahead Care & Support Ltd
Adults Services,Adult Social Care,Older People (Aged 65 or over) including Older Mental Ill,Older People Commissioning,Social Care - Direct Payments,09/12/2015,3567652,699.98,DAVID HOWARD LTD CLIENT ACCOUNT
Adults Services,Adult Social Care,Older People (Aged 65 or over) including Older Mental Ill,Learning Dis Commissioning,Social Care - Respite Care,14/12/2015,3557814,700.00,Specialized Care & Support Sevices Ltd
Children's Services,Children's Social Care,Family Support Services,CNN Pool: Joint Family Support,Non Staff Transport Costs - Reimbursement,16/12/2015,3569595,700.00,Mile End Car Hire Limited
Children's Services,Children's Social Care,Children Looked After,Virtual School PPG,Third Party Payments - Payments to Schools,23/12/2015,3564760,700.00,Snaresbrook Primary School
Children's Services,Children's Social Care,Children Looked After,Virtual School PPG,Third Party Payments - Payments to Schools,23/12/2015,3565698,700.00,Danecourt School
Children's Services,Children's Social Care,Children Looked After,Virtual School PPG,Third Party Payments - Payments to Schools,23/12/2015,3565724,700.00,Seven Kings High School
Children's Services,Children's Social Care,Children Looked After,Virtual School PPG,Third Party Payments - Payments to Schools,23/12/2015,3566016,700.00,Pelham Primary School
Children's Services,Children's Social Care,Children Looked After,Virtual School PPG,Third Party Payments - Payments to Schools,23/12/2015,3566232,700.00,Haberdashers Askes Crayford Academy
Communities & Localities,Other Operating Income and Expenditure,Trading Account Surpluses and Deficits,Health and Safety,Training Expenses - Staff External Training (UK Based),16/12/2015,3570245,700.00,Screen Technology Associates Limited
Children's Services,No Service Specified,No Division Specified,Schools Catering,Kitchen Supplies - Food and Beverages,23/12/2015,3560638,700.51,Thomas Ridley & Son Ltd
Development & Renewal,Planning Services,Building Control,Building Control Trading,Staff Advertising,09/12/2015,3555817,700.68,Penna PLC
Adults Services,Adult Social Care,Older People (Aged 65 or over) including Older Mental Ill,Older People Commissioning,Social Care - Direct Payments,09/12/2015,3567367,701.53,DAVID HOWARD LTD CLIENT ACCOUNT
Adults Services,Adult Social Care,Older People (Aged 65 or over) including Older Mental Ill,Older People Commissioning,Social Care - Homecare,02/12/2015,3562686,702.14,LONDON COMMUNITY HOMECARE LTD
Adults Services,Adult Social Care,Older People (Aged 65 or over) including Older Mental Ill,Older People Commissioning,Social Care - Homecare,09/12/2015,3567816,702.14,LONDON COMMUNITY HOMECARE LTD
Adults Services,Adult Social Care,Older People (Aged 65 or over) including Older Mental Ill,Older People Commissioning,Social Care - Homecare,09/12/2015,3567946,702.14,LONDON COMMUNITY HOMECARE LTD
Adults Services,Adult Social Care,Older People (Aged 65 or over) including Older Mental Ill,Older People Commissioning,Social Care - Homecare,16/12/2015,3571203,702.14,LONDON COMMUNITY HOMECARE LTD
Adults Services,Adult Social Care,Older People (Aged 65 or over) including Older Mental Ill,Physical Dis Commissioning,Social Care - Direct Payments,09/12/2015,3567684,702.24,DAVID HOWARD LTD CLIENT ACCOUNT
Adults Services,Adult Social Care,Older People (Aged 65 or over) including Older Mental Ill,Learning Dis Commissioning,Social Care - Day Care,09/12/2015,3567115,702.84,MEARS CARE LTD
Adults Services,Public Health,Smoking and Tobacco,Public Health Team - 2,Payments to Private Contractors - Other Contractors,23/12/2015,3566105,703.30,Pristine Health t/a Bell Pharmacy Bow
Development & Renewal,No Service Specified,No Division Specified,D&R BATs Team,Services - Professional Fees - Consultants Fees,02/12/2015,3545952,705.00,Tim Crocker Architectural Photography
Adults Services,Adult Social Care,Older People (Aged 65 or over) including Older Mental Ill,Learning Dis Commissioning,Social Care - Direct Payments,09/12/2015,3567692,707.20,DAVID HOWARD LTD CLIENT ACCOUNT
Development & Renewal,Corporate & Democratic Core,Corporate Management,Mulberry Place Bldg,Training Expenses - Staff External Training (UK Based),11/12/2015,3559947,708.50,Skills Training Centre Ltd
Adults Services,Adult Social Care,Older People (Aged 65 or over) including Older Mental Ill,Older People Commissioning,Social Care - Direct Payments,09/12/2015,3567595,709.63,DAVID HOWARD LTD CLIENT ACCOUNT
Adults Services,Adults Services,Adults Services,Adults Services,General,23/12/2015,Payment Card,710.00,post office counter
Adults Services,Adult Social Care,Older People (Aged 65 or over) including Older Mental Ill,Older People Commissioning,Social Care - Direct Payments,09/12/2015,3567392,710.12,D D PAYROLL SERVICES
Adults Services,Adult Social Care,Older People (Aged 65 or over) including Older Mental Ill,Older People Commissioning,Social Care - Direct Payments,09/12/2015,3567357,710.21,DAVID HOWARD LTD CLIENT ACCOUNT
Adults Services,Adult Social Care,Older People (Aged 65 or over) including Older Mental Ill,Older People Commissioning,Social Care - Homecare,16/12/2015,3571121,710.50,SEVACARE UK LTD
Adults Services,Adult Social Care,Older People (Aged 65 or over) including Older Mental Ill,Mental Health Commissioning,Social Care - Direct Payments,09/12/2015,3567235,711.27,DAVID HOWARD LTD CLIENT ACCOUNT
Children's Services,No Service Specified,No Division Specified,Contract Services M & A,Kitchen Supplies - Food and Beverages,23/12/2015,3564586,711.28,Jones Brothers
Adults Services,Adult Social Care,Older People (Aged 65 or over) including Older Mental Ill,Mental Health Commissioning,Social Care - Homecare,02/12/2015,3561227,713.00,Carewatch Newham Ltd
Communities & Localities,Other Operating Income and Expenditure,Trading Account Surpluses and Deficits,Vehicle Maintenance Operation,Spare Parts,23/12/2015,3566194,713.32,GP Auto Ltd
Adults Services,Adult Social Care,Older People (Aged 65 or over) including Older Mental Ill,Older People Commissioning,Social Care - Homecare,18/12/2015,3573072,714.00,Mantra Recruitment
Adults Services,Adult Social Care,Older People (Aged 65 or over) including Older Mental Ill,Older People Commissioning,Social Care - Homecare,18/12/2015,3573081,714.00,Mantra Recruitment
Children's Services,Children's Social Care,Children Looked After,Leaving Care-UASC,Leaving Care Financial Assistance - Supp Accom/Hous Rents,23/12/2015,3570307,714.29,Pangea Support Services
Adults Services,Adult Social Care,Older People (Aged 65 or over) including Older Mental Ill,Learning Dis Commissioning,Social Care - Homecare,09/12/2015,3553869,714.86,Outward Housing
Adults Services,Adult Social Care,Older People (Aged 65 or over) including Older Mental Ill,Older People Commissioning,Social Care - Direct Payments,09/12/2015,3567444,716.06,D D PAYROLL SERVICES
Adults Services,Adult Social Care,Older People (Aged 65 or over) including Older Mental Ill,Older People Commissioning,Social Care - Direct Payments,09/12/2015,3567293,717.52,DAVID HOWARD LTD CLIENT ACCOUNT
Adults Services,Adult Social Care,Older People (Aged 65 or over) including Older Mental Ill,Learning Dis Commissioning,Social Care - Homecare,09/12/2015,3567117,717.60,MEARS CARE LTD
Adults Services,Adult Social Care,Older People (Aged 65 or over) including Older Mental Ill,Learning Dis Commissioning,Social Care - Homecare,16/12/2015,3570849,717.60,MEARS CARE LTD
Adults Services,Adult Social Care,Older People (Aged 65 or over) including Older Mental Ill,Learning Dis Commissioning,Social Care - Homecare,16/12/2015,3570856,717.60,MEARS CARE LTD
Adults Services,Adult Social Care,Older People (Aged 65 or over) including Older Mental Ill,Older People Commissioning,Social Care - Direct Payments,09/12/2015,3567742,718.20,Soma Healthcare Ltd
Adults Services,Adult Social Care,Older People (Aged 65 or over) including Older Mental Ill,Older People Commissioning,Social Care - Direct Payments,09/12/2015,3567363,719.82,DAVID HOWARD LTD CLIENT ACCOUNT
Adults Services,Adults Services,Adults Services,Adults Services,General,11/12/2015,Payment Card,720.00,flex-e-vouchers
Adults Services,Adult Social Care,Older People (Aged 65 or over) including Older Mental Ill,Mental Health Commissioning,Social Care - Day Care,23/12/2015,3567989,720.00,PORTUGAL PRINTS
Children's Services,Children's Social Care,Children Looked After,LCS/Allowances-Accom,Leaving Care Financial Assistance - Supp Accom/Hous Rents,02/12/2015,3546011,720.00,Newhaven 16 Plus
Children's Services,Education Services,Early Years,SSEYCG Workforce Dev't,Meeting Expenses,23/12/2015,3560035,720.00,Central City Training Venues
Communities & Localities,Environmental and Regulatory Services,Community Safety (CCTV),CCTV,Payments to Private Contractors - CCTV Maintenance,14/12/2015,3569812,720.00,Comfort Zone
Development & Renewal,Corporate & Democratic Core,Corporate Management,CLM CLC,Repairs and Maintenance - Planned - Security,14/12/2015,3549255,720.00,surelock security systems ltd
Communities & Localities,Support Staff Idea Store,Support Staff Idea Store,Support Staff Idea Store,External Printing,17/12/2015,Payment Card,720.92,screenstretch ltd
Adults Services,Adult Social Care,Older People (Aged 65 or over) including Older Mental Ill,Physical Dis Commissioning,Social Care - Direct Payments,09/12/2015,3567301,721.68,DAVID HOWARD LTD CLIENT ACCOUNT
Adults Services,Adult Social Care,Older People (Aged 65 or over) including Older Mental Ill,Older People Commissioning,Social Care - Homecare,02/12/2015,3561176,721.93,Mantra Recruitment
Adults Services,Adult Social Care,Older People (Aged 65 or over) including Older Mental Ill,Older People Commissioning,Social Care - Homecare,09/12/2015,3566867,721.93,Mantra Recruitment
Adults Services,Public Health,Smoking and Tobacco,Public Health Team - 2,Payments to Private Contractors - Other Contractors,23/12/2015,3566103,721.98,Guardian Pharmacy t/a Nash Chemist
Children's Services,No Service Specified,No Division Specified,Schools Catering,Kitchen Supplies - Food and Beverages,23/12/2015,3564309,722.25,Greggs Plc
Adults Services,Adult Social Care,Older People (Aged 65 or over) including Older Mental Ill,Strategic Commissioning,Social Care - MSG Prevention Health & Wellbeing,21/12/2015,3563030,722.72,Peabody Trust
Adults Services,Adult Social Care,Older People (Aged 65 or over) including Older Mental Ill,Older People Commissioning,Social Care - Homecare,18/12/2015,3573749,723.07,LONDON COMMUNITY HOMECARE LTD
Adults Services,Adult Social Care,Older People (Aged 65 or over) including Older Mental Ill,Older People Commissioning,Social Care - Direct Payments,09/12/2015,3567279,723.23,DAVID HOWARD LTD CLIENT ACCOUNT
Children's Services,No Service Specified,No Division Specified,Schools Catering,Kitchen Supplies - Food and Beverages,07/12/2015,3555508,723.75,William White Meats Ltd
Development & Renewal,No Service Specified,No Division Specified,Blackwall Reach,Other External Fees - Other External Fees,23/12/2015,3575721,723.81,LONDON BOROUGH OF TOWER HAMLETS
Adults Services,Adult Social Care,Older People (Aged 65 or over) including Older Mental Ill,Older People Commissioning,Social Care - Direct Payments,09/12/2015,3567713,723.85,DAVID HOWARD LTD CLIENT ACCOUNT
Children's Services,No Service Specified,No Division Specified,Schools Catering,Kitchen Supplies - Food and Beverages,23/12/2015,3569048,724.80,William White Meats Ltd
Adults Services,Adult Social Care,Older People (Aged 65 or over) including Older Mental Ill,Older People Commissioning,Social Care - Direct Payments,09/12/2015,3567528,725.13,DAVID HOWARD LTD CLIENT ACCOUNT
Children's Services,No Service Specified,No Division Specified,Welfare Catering,Kitchen Supplies - Food and Beverages,02/12/2015,3543450,725.85,Thomas Ridley & Son Ltd
Adults Services,Adult Social Care,Older People (Aged 65 or over) including Older Mental Ill,Older People Commissioning,Social Care - Direct Payments,09/12/2015,3567181,726.64,D D PAYROLL SERVICES
Adults Services,Adult Social Care,Older People (Aged 65 or over) including Older Mental Ill,Older People Commissioning,Social Care - Homecare,09/12/2015,3568060,726.93,MiHOMECARE LIMITED
Adults Services,Adult Social Care,Older People (Aged 65 or over) including Older Mental Ill,Physical Dis Commissioning,Social Care - Homecare,02/12/2015,3563047,727.26,SANCTUARY HOME CARE LIMITED
Adults Services,Adult Social Care,Older People (Aged 65 or over) including Older Mental Ill,Physical Dis Commissioning,Social Care - Homecare,02/12/2015,3563091,727.26,SANCTUARY HOME CARE LIMITED
Adults Services,Adult Social Care,Older People (Aged 65 or over) including Older Mental Ill,Physical Dis Commissioning,Social Care - Homecare,23/12/2015,3576589,727.26,SANCTUARY HOME CARE LIMITED
Adults Services,Adult Social Care,Older People (Aged 65 or over) including Older Mental Ill,Older People Commissioning,Social Care - Homecare,09/12/2015,3567882,729.14,LONDON COMMUNITY HOMECARE LTD
Adults Services,Adult Social Care,Older People (Aged 65 or over) including Older Mental Ill,Older People Commissioning,Social Care - Homecare,02/12/2015,3562709,729.24,LONDON COMMUNITY HOMECARE LTD
Adults Services,Adult Social Care,Older People (Aged 65 or over) including Older Mental Ill,Older People Commissioning,Social Care - Homecare,09/12/2015,3567999,729.40,REDSPOT HOMECARE (CONTRACTS) LTD
Adults Services,Adult Social Care,Older People (Aged 65 or over) including Older Mental Ill,Physical Dis Commissioning,Social Care - Homecare,09/12/2015,3568325,730.00,Soma Healthcare Ltd
Children's Services,No Service Specified,No Division Specified,Schools Catering,Kitchen Supplies - Food and Beverages,11/12/2015,3549109,731.78,Thomas Ridley & Son Ltd
Children's Services,No Service Specified,No Division Specified,Schools Catering,Kitchen Supplies - Food and Beverages,23/12/2015,3559445,731.84,Thomas Ridley & Son Ltd
Adults Services,Adult Social Care,Older People (Aged 65 or over) including Older Mental Ill,Physical Dis Commissioning,Social Care - Direct Payments,09/12/2015,3567285,733.95,D D PAYROLL SERVICES
Children's Services,No Service Specified,No Division Specified,Welfare Catering,Kitchen Supplies - Food and Beverages,23/12/2015,3566286,734.36,William White Meats Ltd
Children's Services,Education Services,Other Strategic Functions,Empty Properties,Electricity,02/12/2015,3559480,735.22,British Gas Business
Adults Services,Adult Social Care,Older People (Aged 65 or over) including Older Mental Ill,Physical Dis Commissioning,Social Care - Homecare,09/12/2015,3567817,736.02,LONDON COMMUNITY HOMECARE LTD
Adults Services,Adult Social Care,Older People (Aged 65 or over) including Older Mental Ill,Older People Commissioning,Social Care - Homecare,18/12/2015,3573785,736.40,REDSPOT HOMECARE (CONTRACTS) LTD
Adults Services,Adult Social Care,Older People (Aged 65 or over) including Older Mental Ill,Older People Commissioning,Social Care - Day Care,23/12/2015,3576327,736.67,St Hilda's East Community Centre
Adults Services,Adult Social Care,Older People (Aged 65 or over) including Older Mental Ill,Physical Dis Commissioning,Social Care - Direct Payments,09/12/2015,3567620,737.18,DAVID HOWARD LTD CLIENT ACCOUNT
Development & Renewal,Central Services to the Public,"General Grants, Bequests & Donations",Ch Exec Mainstream Grants,Third Party Payments - Voluntary Associations,04/12/2015,3560552,740.00,CUBITT TOWN BANGLADESH
Adults Services,Adult Social Care,Older People (Aged 65 or over) including Older Mental Ill,Mental Health Commissioning,Social Care - Direct Payments,09/12/2015,3567728,742.18,D D PAYROLL SERVICES
Children's Services,No Service Specified,No Division Specified,Schools Catering,Kitchen Supplies - Food and Beverages,23/12/2015,3566445,742.20,William White Meats Ltd
Adults Services,Adult Social Care,Older People (Aged 65 or over) including Older Mental Ill,Physical Dis Commissioning,Social Care - Homecare,23/12/2015,3576679,742.50,Soma Healthcare Ltd
Development & Renewal,Corporate & Democratic Core,Corporate Management,CLM CLC,Repairs and Maintenance - Planned - Fire Prevention ,11/12/2015,3548532,742.84,RGE Services
Adults Services,Public Health,Smoking and Tobacco,Public Health Team - 2,Payments to Private Contractors - Other Contractors,23/12/2015,3566139,743.00,Boots UK Ltd Store 185
Children's Services,No Service Specified,No Division Specified,Schools Catering,Kitchen Supplies - Food and Beverages,23/12/2015,3560547,743.42,Thomas Ridley & Son Ltd
"Directorate of Law, Probity and Governance",Corporate & Democratic Core,Corporate Management,Business Team,Staff Advertising,09/12/2015,3555665,743.75,Penna PLC
"Directorate of Law, Probity and Governance",Corporate & Democratic Core,Corporate Management,Business Team,Staff Advertising,18/12/2015,3559981,743.75,Penna PLC
Adults Services,Adult Social Care,Older People (Aged 65 or over) including Older Mental Ill,Older People Commissioning,Social Care - Direct Payments,09/12/2015,3567261,746.13,DAVID HOWARD LTD CLIENT ACCOUNT
Children's Services,Education Services,Other Strategic Functions,Empty Properties,Electricity,23/12/2015,3570050,746.84,British Gas Business
Children's Services,No Service Specified,No Division Specified,Schools Catering,Kitchen Supplies - Food and Beverages,09/12/2015,3548064,747.50,Thomas Ridley & Son Ltd
Adults Services,Adult Social Care,Older People (Aged 65 or over) including Older Mental Ill,Older People Commissioning,Social Care - Direct Payments,09/12/2015,3567448,748.25,DAVID HOWARD LTD CLIENT ACCOUNT
Adults Services,Adult Social Care,Older People (Aged 65 or over) including Older Mental Ill,Physical Dis Commissioning,Social Care - Direct Payments,09/12/2015,3567227,748.65,DAVID HOWARD LTD CLIENT ACCOUNT
Adults Services,Adult Social Care,Older People (Aged 65 or over) including Older Mental Ill,Mental Health Commissioning,Social Care - Supported Accommodation,02/12/2015,3547148,749.00,Look Ahead Care & Support Ltd
Adults Services,Adult Social Care,Older People (Aged 65 or over) including Older Mental Ill,Mental Health Commissioning,Social Care - Supported Accommodation,18/12/2015,3558495,749.00,Look Ahead Care & Support Ltd
Adults Services,Adult Social Care,Older People (Aged 65 or over) including Older Mental Ill,Older People Commissioning,Social Care - Homecare,09/12/2015,3567837,749.50,LONDON COMMUNITY HOMECARE LTD
Adults Services,Adult Social Care,Older People (Aged 65 or over) including Older Mental Ill,Older People Commissioning,Social Care - Direct Payments,09/12/2015,3567526,749.54,DAVID HOWARD LTD CLIENT ACCOUNT
Development & Renewal,No Service Specified,No Division Specified,Cleaning Materials & Equipment,Tools and Equipment - Purchase,09/12/2015,3560717,749.99,Aps LTD
Communities & Localities,Public Realm Admin,Public Realm Admin,Public Realm Admin,Training Expenses,17/12/2015,Payment Card,750.00,e learning centre
Children's Services,Education Services,Other Strategic Functions,Project Costs and Training,Computing - Purchase of Hardware,18/12/2015,3574097,750.00,VMS Network Cabling Ltd
Children's Services,Children's Social Care,Children Looked After,Virtual School PPG,Third Party Payments - Payments to Schools,23/12/2015,3572750,750.00,National Teaching And Advisory Service
Communities & Localities,Cultural and Related Services,Open Spaces,Aboriculture Management,Grounds Maintenance - Contract - Christmas Trees,23/12/2015,3566666,750.00,Elveden Farms Ltd
Communities & Localities,Other Operating Income and Expenditure,Trading Account Surpluses and Deficits,Client Fleet Mngmnt,Transport Dept Charges,23/12/2015,3570541,750.00,London Hire Ltd
Development & Renewal,No Service Specified,No Division Specified,"CLM Repairs & Maintenance		",Repairs and Maintenance - Responsive - Drainage & Sewers,16/12/2015,3556849,750.00,J&L Coster (Drainage) Ltd
Adults Services,Adult Social Care,Older People (Aged 65 or over) including Older Mental Ill,Physical Dis Commissioning,Social Care - Direct Payments,09/12/2015,3567619,750.60,DAVID HOWARD LTD CLIENT ACCOUNT
Adults Services,Adult Social Care,Older People (Aged 65 or over) including Older Mental Ill,Older People Commissioning,Social Care - Day Care,23/12/2015,3576306,750.67,St Hilda's East Community Centre
Children's Services,No Service Specified,No Division Specified,Schools Catering,Kitchen Supplies - Food and Beverages,23/12/2015,3564387,750.75,Greggs Plc
Adults Services,Adult Social Care,Older People (Aged 65 or over) including Older Mental Ill,Older People Commissioning,Social Care - Direct Payments,09/12/2015,3567631,751.04,DAVID HOWARD LTD CLIENT ACCOUNT
Communities & Localities,Other Operating Income and Expenditure,Trading Account Surpluses and Deficits,Vehicle Maintenance Operation,Vehicle Maintenance - Repairs,23/12/2015,3564220,752.00,VOR Services Ltd
Development & Renewal,General Fund/Council Fund,Homelessness,Hmlss Fams-Bed and Breakfast,Third Party Payments - One Room,18/12/2015,3572961,752.00,Assetgrove
Adults Services,Adult Social Care,Older People (Aged 65 or over) including Older Mental Ill,Older People Commissioning,Social Care - Direct Payments,09/12/2015,3567284,752.95,D D PAYROLL SERVICES
Children's Services,Children's Social Care,Children Looked After,S23 Fam Pl P&V-F/Care,Childrens Act Section 23 - Placement Fee,23/12/2015,3566273,755.02,National Fostering Agency
Adults Services,Adult Social Care,Older People (Aged 65 or over) including Older Mental Ill,Older People Commissioning,Social Care - Direct Payments,09/12/2015,3567663,755.16,D D PAYROLL SERVICES
Adults Services,Adult Social Care,Older People (Aged 65 or over) including Older Mental Ill,Older People Commissioning,Social Care - Homecare,02/12/2015,3562689,756.00,LONDON COMMUNITY HOMECARE LTD
Adults Services,Adult Social Care,Older People (Aged 65 or over) including Older Mental Ill,Physical Dis Commissioning,Social Care - Homecare,09/12/2015,3567947,756.28,LONDON COMMUNITY HOMECARE LTD
Adults Services,Adult Social Care,Older People (Aged 65 or over) including Older Mental Ill,Physical Dis Commissioning,Social Care - Homecare,16/12/2015,3571204,756.28,LONDON COMMUNITY HOMECARE LTD
Development & Renewal,General Fund/Council Fund,Homelessness,Hmlss Fams-NST Properties,Fixtures and Fittings - Purchases - General,21/12/2015,3559629,756.36,Lodge Group Furniture Supply LTD
Adults Services,Adult Social Care,Older People (Aged 65 or over) including Older Mental Ill,Learning Dis Commissioning,Social Care - Direct Payments,09/12/2015,3567379,757.82,HUMAN MANAGEMENT ASSISTANCE
Development & Renewal,No Service Specified,No Division Specified,Cleaning Materials & Equipment,Tools and Equipment - Purchase,09/12/2015,3560720,757.91,Aps LTD
Development & Renewal,No Service Specified,No Division Specified,Cleaning Materials & Equipment,Tools and Equipment - Purchase,16/12/2015,3560721,757.91,Aps LTD
Adults Services,Adult Social Care,Older People (Aged 65 or over) including Older Mental Ill,Older People Commissioning,Social Care - Homecare,09/12/2015,3568225,759.20,Soma Healthcare Ltd
Children's Services,Education Services,Other Strategic Functions,SEN External Travel,Non Staff Transport Costs - Reimbursement,07/12/2015,3564936,760.00,Mile End Car Hire Limited
Children's Services,No Service Specified,No Division Specified,Schools Catering,Kitchen Supplies - Food and Beverages,04/12/2015,3549222,761.25,Greggs Plc
Children's Services,No Service Specified,No Division Specified,Schools Catering,Kitchen Supplies - Food and Beverages,23/12/2015,3564363,761.25,Greggs Plc
Development & Renewal,Corporate & Democratic Core,Corporate Management,CLM CLC,Contract Cleaning,18/12/2015,3559925,761.40,Wetton Cleaning Services LTD
Resource Services,General Fund/Council Fund,Housing Benefits Administration,Central Benefits Team,Services - Professional Fees - Financial Services Fees,09/12/2015,3564211,762.29,Neopost Finance LTD
Adults Services,Adult Social Care,Older People (Aged 65 or over) including Older Mental Ill,Mental Health Commissioning,Social Care - Prevention & Support,07/12/2015,3565029,763.50,SANCTUARY HOUSING ASSOCIATION
Adults Services,Adult Social Care,Older People (Aged 65 or over) including Older Mental Ill,Older People Commissioning,Social Care - Homecare,16/12/2015,3571311,765.07,MiHOMECARE LIMITED
Adults Services,Adult Social Care,Older People (Aged 65 or over) including Older Mental Ill,Learning Dis Commissioning,Social Care - Homecare,04/12/2015,3558662,765.60,Outward Housing
Adults Services,Adult Social Care,Older People (Aged 65 or over) including Older Mental Ill,Learning Dis Commissioning,Social Care - Homecare,04/12/2015,3558675,765.60,Outward Housing
Adults Services,Adult Social Care,Older People (Aged 65 or over) including Older Mental Ill,Learning Dis Commissioning,Social Care - Homecare,04/12/2015,3558679,765.60,Outward Housing
Development & Renewal,Planning Services,Community Development,Community Use Of Buildings,Repairs and Maintenance - Planned - Fire Prevention ,09/12/2015,3538716,766.05,RGE Services
Adults Services,Adult Social Care,Older People (Aged 65 or over) including Older Mental Ill,Learning Dis Commissioning,Social Care - Direct Payments,09/12/2015,3567260,766.32,DAVID HOWARD LTD CLIENT ACCOUNT
Children's Services,S23 Fam Pl P&V-F/Care,S23 Fam Pl P&V-F/Care,S23 Fam Pl P&V-F/Care,Non-Contact Trans/Travel Costs,07/12/2015,Payment Card,766.94,trainline
Children's Services,Education Services,Other Strategic Functions,Parental Involvement,Comms - Purchase of Equipment,23/12/2015,3572686,768.00,Daisy Communications PLC
Adults Services,Adult Social Care,Older People (Aged 65 or over) including Older Mental Ill,Older People Commissioning,Social Care - Homecare,16/12/2015,3571081,768.50,SEVACARE UK LTD
Adults Services,Adult Social Care,Older People (Aged 65 or over) including Older Mental Ill,Older People Commissioning,Social Care - Homecare,02/12/2015,3562694,768.68,LONDON COMMUNITY HOMECARE LTD
Children's Services,No Service Specified,No Division Specified,Schools Catering,Kitchen Supplies - Food and Beverages,04/12/2015,3545820,768.77,Thomas Ridley & Son Ltd
Adults Services,Adult Social Care,Older People (Aged 65 or over) including Older Mental Ill,Older People Commissioning,Social Care - Homecare,16/12/2015,3571201,769.50,LONDON COMMUNITY HOMECARE LTD
Communities & Localities,Education Services,Services to Young People and Other Community Learners,Positive Activities Young Pple,Third Party Payments - Voluntary Associations,07/12/2015,3565041,770.00,Society Links
Adults Services,Adult Social Care,Older People (Aged 65 or over) including Older Mental Ill,Mental Health Commissioning,Social Care - Homecare,02/12/2015,3563054,770.04,SANCTUARY HOME CARE LIMITED
Children's Services,89 CA Sec 17 Chld in Need POPS,89 CA Sec 17 Chld in Need POPS,89 CA Sec 17 Chld in Need POPS,Non-Contact Trans/Travel Costs,15/12/2015,Payment Card,770.51,trainline
Children's Services,Children's Social Care,Children Looked After,LCS/Allowances-Accom,Leaving Care Financial Assistance - Supp Accom/Hous Rents,21/12/2015,3560052,771.43,Newhaven 16 Plus
Adults Services,Public Health,Smoking and Tobacco,Public Health Team - 2,Payments to Private Contractors - Other Contractors,23/12/2015,3566186,772.46,AR Parmar Ltd
Adults Services,Adult Social Care,Older People (Aged 65 or over) including Older Mental Ill,Older People Commissioning,Social Care - Day Care,23/12/2015,3576275,773.10,St Hilda's East Community Centre
Adults Services,Adult Social Care,Older People (Aged 65 or over) including Older Mental Ill,Older People Commissioning,Social Care - Homecare,09/12/2015,3567904,773.80,LONDON COMMUNITY HOMECARE LTD
Adults Services,Adult Social Care,Older People (Aged 65 or over) including Older Mental Ill,Physical Dis Commissioning,Social Care - Homecare,09/12/2015,3568306,773.80,Soma Healthcare Ltd
Adults Services,Adult Social Care,Older People (Aged 65 or over) including Older Mental Ill,Older People Commissioning,Social Care - Direct Payments,09/12/2015,3567349,773.89,DAVID HOWARD LTD CLIENT ACCOUNT
Children's Services,Education Services,Early Years,Mowlem CC,Recreational Equipment - Recreational Equipment,09/12/2015,3566038,775.00,Total Sensory
Adults Services,Adult Social Care,Older People (Aged 65 or over) including Older Mental Ill,Older People Commissioning,Social Care - Homecare,23/12/2015,3576026,775.53,ATHLONE CARE LTD
Adults Services,Adult Social Care,Older People (Aged 65 or over) including Older Mental Ill,Physical Dis Commissioning,Social Care - Homecare,18/12/2015,3573680,775.88,LONDON COMMUNITY HOMECARE LTD
Adults Services,Adult Social Care,Older People (Aged 65 or over) including Older Mental Ill,Physical Dis Commissioning,Social Care - Direct Payments,09/12/2015,3567233,776.20,DAVID HOWARD LTD CLIENT ACCOUNT
Adults Services,Adult Social Care,Older People (Aged 65 or over) including Older Mental Ill,Physical Dis Commissioning,Social Care - Homecare,09/12/2015,3567883,777.88,LONDON COMMUNITY HOMECARE LTD
Communities & Localities,Environmental and Regulatory Services,Community Safety (CCTV),CCTV,Payments to Private Contractors - CCTV Maintenance,18/12/2015,3574110,780.00,Murray McCaw - Electrician and CCTV
Communities & Localities,Education Services,Services to Young People and Other Community Learners,Outdoor,Recreational Activities,21/12/2015,3572803,780.00,Access Sport
Communities & Localities,Cultural and Related Services,Recreation & Sport,Football Development Programme,Recreational Activities,23/12/2015,3575883,780.00,Sportslink
Adults Services,Adult Social Care,Older People (Aged 65 or over) including Older Mental Ill,Older People Commissioning,Social Care - Homecare,16/12/2015,3571337,780.48,MiHOMECARE LIMITED
Development & Renewal,General Fund/Council Fund,Homelessness,Hmlss Fams-NST Properties,Fixtures and Fittings - Purchases - General,23/12/2015,3564694,780.60,Lodge Group Furniture Supply LTD
Development & Renewal,General Fund/Council Fund,Homelessness,Hmlss Fams-NST Properties,Fixtures and Fittings - Purchases - General,23/12/2015,3564695,782.20,Lodge Group Furniture Supply LTD
Adults Services,Adult Social Care,Older People (Aged 65 or over) including Older Mental Ill,Physical Dis Commissioning,Social Care - Homecare,18/12/2015,3573744,782.88,LONDON COMMUNITY HOMECARE LTD
Adults Services,Adult Social Care,Older People (Aged 65 or over) including Older Mental Ill,Older People Commissioning,Social Care - Homecare,16/12/2015,3571652,783.34,Soma Healthcare Ltd
Adults Services,Adult Social Care,Older People (Aged 65 or over) including Older Mental Ill,Older People Commissioning,Social Care - Direct Payments,09/12/2015,3567375,786.56,D D PAYROLL SERVICES
Communities & Localities,Cultural and Related Services,Library Service,Bibliographical Service,Computing - Purchase of Software,14/12/2015,3569542,787.50,Axiell Ltd
Development & Renewal,Planning Services,Community Development,Community Use Of Buildings,Water Services - Metered,09/12/2015,3565927,787.67,Thames Water Utilities LTD
Adults Services,Adult Social Care,Older People (Aged 65 or over) including Older Mental Ill,Physical Dis Commissioning,Social Care - Homecare,02/12/2015,3557613,788.00,Active Assistance
Children's Services,No Service Specified,No Division Specified,Schools Catering,Kitchen Supplies - Food and Beverages,02/12/2015,3560230,789.17,William White Meats Ltd
Adults Services,Adult Social Care,Older People (Aged 65 or over) including Older Mental Ill,Older People Commissioning,Social Care - Day Care,21/12/2015,3563029,789.18,Peabody Trust
Adults Services,Adult Social Care,Older People (Aged 65 or over) including Older Mental Ill,Older People Commissioning,Social Care - Direct Payments,09/12/2015,3567676,789.88,DAVID HOWARD LTD CLIENT ACCOUNT
Communities & Localities,Education Services,Services to Young People and Other Community Learners,Positive Activities Young Pple,Third Party Payments - Voluntary Associations,07/12/2015,3565035,790.00,Mudchute Association
Development & Renewal,No Service Specified,No Division Specified,Cleaning Materials & Equipment,Materials - Cleaning Materials,04/12/2015,3545508,790.47,GREENER SOLUTIONS LTD
Corporate Cost and Central Items,Corporate & Democratic Core,Democratic Representation & Management,Pension Fund Management,Staff Advertising,16/12/2015,3555818,791.00,Penna PLC
Development & Renewal,Planning Services,Planning Policy,Place Shaping,Staff Advertising,16/12/2015,3546019,791.00,Penna PLC
Children's Services,Education Services,Early Years,,Comms - Courier,18/12/2015,3556864,795.00,Figurehead Studios
Development & Renewal,Corporate & Democratic Core,Corporate Management,CLM ESCW,Repairs and Maintenance - Responsive - Repair & Maintenance,14/12/2015,3549546,795.44,RGE Services
Adults Services,Adult Social Care,Older People (Aged 65 or over) including Older Mental Ill,Physical Dis Commissioning,Social Care - Homecare,02/12/2015,3562681,796.60,LONDON COMMUNITY HOMECARE LTD
Adults Services,Adult Social Care,Older People (Aged 65 or over) including Older Mental Ill,Physical Dis Commissioning,Social Care - Homecare,09/12/2015,3567811,796.60,LONDON COMMUNITY HOMECARE LTD
Adults Services,Adult Social Care,Older People (Aged 65 or over) including Older Mental Ill,Physical Dis Commissioning,Social Care - Homecare,18/12/2015,3573612,796.65,Oasis Care & Training Agency
Adults Services,Adult Social Care,Older People (Aged 65 or over) including Older Mental Ill,Learning Dis Commissioning,Social Care - Direct Payments,09/12/2015,3567228,797.14,D D PAYROLL SERVICES
Adults Services,Adult Social Care,Older People (Aged 65 or over) including Older Mental Ill,Learning Dis Commissioning,Social Care - Direct Payments,09/12/2015,3567479,797.14,DAVID HOWARD LTD CLIENT ACCOUNT
Children's Services,No Service Specified,No Division Specified,Schools Library,Printing - External,02/12/2015,3548731,798.90,Bertram Library Services
Adults Services,Adult Social Care,Older People (Aged 65 or over) including Older Mental Ill,Learning Dis Commissioning,Social Care - Homecare,02/12/2015,3562979,799.54,East Thames Group Ltd
Children's Services,No Service Specified,No Division Specified,Childrens Services IT Trading,Training Expenses - Staff External Training (UK Based),14/12/2015,3565641,800.00,Dotted Eyes Ltd
Children's Services,Children's Social Care,Children Looked After,Leaving Care-UASC,Leaving Care Financial Assistance - Supp Accom/Hous Rents,18/12/2015,3546119,800.00,Pangea Support Services
Children's Services,Children's Social Care,Children Looked After,Leaving Care-UASC,Leaving Care Financial Assistance - Supp Accom/Hous Rents,18/12/2015,3546120,800.00,Pangea Support Services
Children's Services,Children's Social Care,Children Looked After,Leaving Care-UASC,Leaving Care Financial Assistance - Supp Accom/Hous Rents,23/12/2015,3570304,800.00,Pangea Support Services
Children's Services,Children's Social Care,Children Looked After,Leaving Care-UASC,Leaving Care Financial Assistance - Supp Accom/Hous Rents,23/12/2015,3570308,800.00,Pangea Support Services
Children's Services,Children's Social Care,Children Looked After,Leaving Care-UASC,Leaving Care Financial Assistance - Supp Accom/Hous Rents,23/12/2015,3570311,800.00,Pangea Support Services
Communities & Localities,Education Services,Services to Young People and Other Community Learners,Positive Activities Young Pple,Third Party Payments - Voluntary Associations,07/12/2015,3565021,800.00,Weavers Community Forum
Communities & Localities,Education Services,Services to Young People and Other Community Learners,Positive Activities Young Pple,Third Party Payments - Voluntary Associations,07/12/2015,3565031,800.00,2nd East London Scout Group
Communities & Localities,Education Services,Services to Young People and Other Community Learners,Positive Activities Young Pple,Third Party Payments - Voluntary Associations,07/12/2015,3565037,800.00,NEWARK YOUTH LONDON
Communities & Localities,Education Services,Services to Young People and Other Community Learners,Positive Activities Young Pple,Third Party Payments - Voluntary Associations,07/12/2015,3565038,800.00,Osmani Trust
Communities & Localities,Education Services,Services to Young People and Other Community Learners,Positive Activities Young Pple,Third Party Payments - Voluntary Associations,07/12/2015,3565040,800.00,The Rooted Forum
Communities & Localities,Education Services,Services to Young People and Other Community Learners,Positive Activities Young Pple,Third Party Payments - Voluntary Associations,07/12/2015,3565046,800.00,Ocean Youth Connexions
Communities & Localities,Education Services,Services to Young People and Other Community Learners,Positive Activities Young Pple,Third Party Payments - Voluntary Associations,14/12/2015,3569917,800.00,BANGLADESH FOOTBALL ASSOCIATION
Adults Services,Adult Social Care,Older People (Aged 65 or over) including Older Mental Ill,Older People Commissioning,Social Care - Day Care,23/12/2015,3576389,801.19,St Hilda's East Community Centre
"Directorate of Law, Probity and Governance",Corporate & Democratic Core,Democratic Representation & Management,Members Support,Photocopier Charges - Consumables,23/12/2015,3564250,802.94,Supplies Team Ltd
Children's Services,No Service Specified,No Division Specified,Schools Catering,Kitchen Supplies - Food and Beverages,04/12/2015,3548840,803.55,William White Meats Ltd
"Directorate of Law, Probity and Governance",Corporate & Democratic Core,Corporate Management,Tower Design,Printing - External,23/12/2015,3564732,804.00,Cubiquity Ltd
Communities & Localities,Cultural and Related Services,Open Spaces,Parks & Open Spaces Man&Admin,Water Services - Metered,09/12/2015,3565945,804.47,Thames Water Utilities LTD
"Directorate of Law, Probity and Governance",Corporate & Democratic Core,Corporate Management,Tower Design,Services - Professional Fees - Print Fees,11/12/2015,3549037,805.00,Good Impressions
Adults Services,Adult Social Care,Older People (Aged 65 or over) including Older Mental Ill,Older People Commissioning,Social Care - Day Care,23/12/2015,3576322,805.21,St Hilda's East Community Centre
Children's Services,Children's Social Care,Children Looked After,S23 Fam Pl In-Hse-S/Term F/C,Childrens Act Section 23 - Placement Fee,21/12/2015,3574308,806.86,MR ANTHONY ROSE
Children's Services,Adult Social Care,Support Service and Management Costs,Org Development L&D Training,Training Expenses - Staff External Training (UK Based),07/12/2015,3548596,807.50,Huntersjoy Ltd
Children's Services,Adult Social Care,Support Service and Management Costs,Org Development L&D Training,Training Expenses - Staff External Training (UK Based),14/12/2015,3555707,807.50,Huntersjoy Ltd
Children's Services,No Service Specified,No Division Specified,Schools Catering,Kitchen Supplies - Food and Beverages,18/12/2015,3557085,807.75,Thomas Ridley & Son Ltd
Adults Services,Adult Social Care,Older People (Aged 65 or over) including Older Mental Ill,Older People Commissioning,Social Care - Direct Payments,09/12/2015,3567630,808.39,DAVID HOWARD LTD CLIENT ACCOUNT
Children's Services,No Service Specified,No Division Specified,Schools Catering,Kitchen Supplies - Food and Beverages,14/12/2015,3558840,808.75,William White Meats Ltd
Adults Services,Adult Social Care,Older People (Aged 65 or over) including Older Mental Ill,Physical Dis Commissioning,Social Care - Homecare,23/12/2015,3576665,809.33,Soma Healthcare Ltd
Adults Services,Adult Social Care,Older People (Aged 65 or over) including Older Mental Ill,Learning Dis Commissioning,Social Care - Day Care,02/12/2015,3561116,809.50,The Camden Society
Adults Services,Adult Social Care,Older People (Aged 65 or over) including Older Mental Ill,Older People Commissioning,Social Care - Homecare,09/12/2015,3567969,810.29,LONDON COMMUNITY HOMECARE LTD
Development & Renewal,Corporate & Democratic Core,Corporate Management,CLM ESCW,Repairs and Maintenance - Responsive - Repair & Maintenance,02/12/2015,3560553,811.20,RGE Services
Children's Services,No Service Specified,No Division Specified,Schools Catering,Kitchen Supplies - Food and Beverages,14/12/2015,3559377,811.96,William White Meats Ltd
Adults Services,Adult Social Care,Older People (Aged 65 or over) including Older Mental Ill,Physical Dis Commissioning,Social Care - Homecare,04/12/2015,3565353,812.82,SANCTUARY HOME CARE LIMITED
Adults Services,Adult Social Care,Older People (Aged 65 or over) including Older Mental Ill,Older People Commissioning,Social Care - Direct Payments,09/12/2015,3567687,813.09,D D PAYROLL SERVICES
Adults Services,Adult Social Care,Older People (Aged 65 or over) including Older Mental Ill,Learning Dis Commissioning,Social Care - Homecare,04/12/2015,3558678,813.45,Outward Housing
Adults Services,Adult Social Care,Older People (Aged 65 or over) including Older Mental Ill,Physical Dis Commissioning,Social Care - Direct Payments,09/12/2015,3567638,814.90,D D PAYROLL SERVICES
Children's Services,Education Services,Primary Schools,Primary Schools Development,Panel & Conference Expenses - Conference - UK Based,04/12/2015,3559979,815.00,Hay Group
Development & Renewal,Corporate & Democratic Core,Corporate Management,CLM CLC,Repairs and Maintenance - Responsive - Repair & Maintenance,02/12/2015,3503744,815.23,RGE Services
Children's Services,Education Services,Other Strategic Functions,Music Trading Account,Services - Professional Fees - Financial Services Fees,23/12/2015,3574464,815.91,London Borough Of Hackney
Adults Services,Adult Social Care,Older People (Aged 65 or over) including Older Mental Ill,Physical Dis Commissioning,Social Care - Direct Payments,09/12/2015,3567474,816.32,DAVID HOWARD LTD CLIENT ACCOUNT
Adults Services,Adult Social Care,Older People (Aged 65 or over) including Older Mental Ill,Learning Dis Commissioning,Social Care - Homecare,16/12/2015,3571642,816.75,Soma Healthcare Ltd
Adults Services,Adult Social Care,Older People (Aged 65 or over) including Older Mental Ill,Learning Dis Commissioning,Social Care - Homecare,09/12/2015,3553870,816.81,Outward Housing
Development & Renewal,General Fund/Council Fund,Homelessness,Hmlss Fams-Priv Lic Accom,Third Party Payments - One Room,04/12/2015,3564640,816.90,Raj Properties LTD
Development & Renewal,Adult Social Care,Other Adult Services,Health & Safety Works,Uniforms & Clothing,16/12/2015,3558769,818.33,Burlington Uniforms Ltd
"Directorate of Law, Probity and Governance",Corporate & Democratic Core,Corporate Management,Tower Design,Non Staff Advertising - General,21/12/2015,3570461,820.00,Fraser Hamilton Associates Ltd
Adults Services,Adult Social Care,Older People (Aged 65 or over) including Older Mental Ill,Physical Dis Commissioning,Social Care - Homecare,09/12/2015,3568027,820.58,REDSPOT HOMECARE (CONTRACTS) LTD
Adults Services,Adult Social Care,Older People (Aged 65 or over) including Older Mental Ill,Older People Commissioning,Social Care - Homecare,09/12/2015,3568046,820.58,REDSPOT HOMECARE (CONTRACTS) LTD
Children's Services,No Service Specified,No Division Specified,Schools Catering,Kitchen Supplies - Food and Beverages,11/12/2015,3555991,821.20,William White Meats Ltd
Children's Services,Children's Social Care,Family Support Services,CNN Pool: Joint Family Support,Childrens Act Section 23 - Placement Fee,23/12/2015,3574196,821.25,QALB Centre Short Break Services
Development & Renewal,No Service Specified,No Division Specified,Cleaning Materials & Equipment,Materials - Cleaning Materials,23/12/2015,3560373,822.66,GREENER SOLUTIONS LTD
Adults Services,Adult Social Care,Older People (Aged 65 or over) including Older Mental Ill,Older People Commissioning,Social Care - Homecare,09/12/2015,3567953,824.08,LONDON COMMUNITY HOMECARE LTD
Adults Services,Adult Social Care,Older People (Aged 65 or over) including Older Mental Ill,Physical Dis Commissioning,Social Care - Direct Payments,09/12/2015,3567432,824.69,DAVID HOWARD LTD CLIENT ACCOUNT
Children's Services,Children's Social Care,Children Looked After,S23-Other-Semi-Ind. Unit,Childrens Act Section 23 - Placement Fee,02/12/2015,3543465,825.00,Real Life
Children's Services,Children's Social Care,Children Looked After,S23-Other-Semi-Ind. Unit,Childrens Act Section 23 - Placement Fee,23/12/2015,3558760,825.00,Real Life
Resource Services,Corporate & Democratic Core,Corporate Management,ICT Business Support,Computing - Maint Agreements - Computing Costs,09/12/2015,3565620,825.00,Agilisys Professional Services
Adults Services,Adult Social Care,Older People (Aged 65 or over) including Older Mental Ill,Older People Commissioning,Social Care - Homecare,02/12/2015,3561291,826.00,Excelcare (Home Care Division) LTD
Adults Services,Adult Social Care,Older People (Aged 65 or over) including Older Mental Ill,Learning Dis Commissioning,Social Care - Homecare,23/12/2015,3576520,826.19,East Thames Group Ltd
Adults Services,Adult Social Care,Older People (Aged 65 or over) including Older Mental Ill,Older People Commissioning,Social Care - Day Care,21/12/2015,3562992,826.76,Peabody Trust
Adults Services,Adult Social Care,Older People (Aged 65 or over) including Older Mental Ill,Older People Commissioning,Social Care - Day Care,21/12/2015,3563023,826.76,Peabody Trust
Adults Services,Adult Social Care,Older People (Aged 65 or over) including Older Mental Ill,Older People Commissioning,Social Care - Homecare,16/12/2015,3571210,831.01,LONDON COMMUNITY HOMECARE LTD
Adults Services,Adult Social Care,Older People (Aged 65 or over) including Older Mental Ill,Physical Dis Commissioning,Social Care - Direct Payments,09/12/2015,3567417,831.24,DAVID HOWARD LTD CLIENT ACCOUNT
Adults Services,Adult Social Care,Older People (Aged 65 or over) including Older Mental Ill,Older People Commissioning,Social Care - Homecare,18/12/2015,3573826,831.60,CIRCLE SUPPORT CONSORTIUM
Adults Services,Adult Social Care,Older People (Aged 65 or over) including Older Mental Ill,Older People Commissioning,Social Care - Homecare,23/12/2015,3576447,831.60,CIRCLE SUPPORT CONSORTIUM
Children's Services,No Service Specified,No Division Specified,Schools Catering,Kitchen Supplies - Food and Beverages,23/12/2015,3564374,832.30,Thomas Ridley & Son Ltd
Adults Services,Adult Social Care,Older People (Aged 65 or over) including Older Mental Ill,Mental Health Commissioning,Social Care - Day Care,21/12/2015,3562991,832.32,Peabody Trust
